{"text_format":"1","workbook":"xlsx","n_sheets":4,"sheets":["Engines","Results Summary","Calculations","Datasets"],"not_rendered":{"charts":0,"images":12,"macros":1,"external_links":1,"defined_names":6,"comments":0,"pivot_tables":0},"unopened":[],"bounds":{"document_bytes":16777216,"sheet_cells":100000,"rows_first":2000,"rows_last":500,"rows_between":2000,"halvings":0,"cell_chars":16384,"cell_head_chars":4096},"cells_cut":0,"cells_raw":0,"read":"whole","date_system":"1900"}

{"sheet":"Engines","index":0,"n_rows":72,"n_cols":49,"rows_kept":72,"cut":false,"hidden":false,"merged":[[7,47,8,47],[7,48,8,48],[3,32,3,33],[3,20,3,21],[9,0,9,2],[9,3,9,5],[9,13,9,15],[11,0,11,2],[11,3,11,5],[11,13,11,15],[5,13,5,16],[6,3,6,6],[6,13,6,16],[7,0,7,2],[7,3,7,5],[7,13,7,15],[7,10,7,12],[9,10,9,12],[11,10,11,12],[6,20,6,21],[6,32,6,33],[7,20,7,21],[7,32,7,33],[8,20,8,21],[8,32,8,33],[4,20,4,21],[4,32,4,33],[5,20,5,21],[5,32,5,33],[12,20,12,21],[12,32,12,33],[13,20,13,21],[13,32,13,33],[14,20,14,21],[14,32,14,33],[9,20,9,21],[9,32,9,33],[10,20,10,21],[10,32,10,33],[18,20,18,21],[18,32,18,33],[19,20,19,21],[19,32,19,33],[20,20,20,21],[20,32,20,33],[15,20,15,21],[15,32,15,33],[16,20,16,21],[16,32,16,33],[17,20,17,21],[17,32,17,33],[24,20,24,21],[24,32,24,33],[25,20,25,21],[25,32,25,33],[26,20,26,21],[26,32,26,33],[21,20,21,21],[21,32,21,33],[22,20,22,21],[22,32,22,33],[23,20,23,21],[23,32,23,33],[30,20,30,21],[30,32,30,33],[31,20,31,21],[31,32,31,33],[32,20,32,21],[32,32,32,33],[27,20,27,21],[27,32,27,33],[28,20,28,21],[28,32,28,33],[29,20,29,21],[29,32,29,33],[44,20,44,21],[44,32,44,33],[45,20,45,21],[45,32,45,33],[46,20,46,21],[46,32,46,33],[41,20,41,21],[41,32,41,33],[42,20,42,21],[42,32,42,33],[43,20,43,21],[43,32,43,33],[51,20,51,21],[51,32,51,33],[52,20,52,21],[52,32,52,33],[53,20,53,21],[53,32,53,33],[47,20,47,21],[47,32,47,33],[48,20,48,21],[48,32,48,33],[50,20,50,21],[50,32,50,33],[57,20,57,21],[57,32,57,33],[58,20,58,21],[58,32,58,33],[59,20,59,21],[59,32,59,33],[54,20,54,21],[54,32,54,33],[55,20,55,21],[55,32,55,33],[56,20,56,21],[56,32,56,33],[63,20,63,21],[63,32,63,33],[64,20,64,21],[64,32,64,33],[65,20,65,21],[65,32,65,33],[60,20,60,21],[60,32,60,33],[61,20,61,21],[61,32,61,33],[62,20,62,21],[62,32,62,33],[69,20,69,21],[69,32,69,33],[70,20,70,21],[70,32,70,33],[68,20,68,21],[68,32,68,33],[66,20,66,21],[66,32,66,33],[67,20,67,21],[67,32,67,33]]}
[null,null,null,null,null,null,null,null,null,null,null,null,null,null,null,null,null,null,null,null,null,null,null,null,null,null,null,null,null,null,null,null,null,null,null,null,null,null,null,null,null,null,null,null,null,"Essential Unit Conversion"]
["Universal Calculation Spreadsheets applicable for the Emissions of Ethanol Industry",null,null,null,null,null,null,null,null,null,null,null,null,null,null,null,null,null,null,null,"Please, enter information describing specific permit limits or source specific emissions guarantee. If the limit or data are in other units, please, convert them to lb/mmBtu"]
["Engines",null,null,null,null,null,null,null,null,null,null,null,null,null,null,null,null,null,null,null,null,null,null,null,null,null,null,null,null,null,null,null,null,null,null,null,null,null,null,null,null,null,null,null,null,"From ",null,"To"]
[null,null,null,null,null,null,null,null,null,null,null,null,null,null,null,null,null,null,null,null,null,null,"1st Compression Engine","2nd Compression Engine","3rd Compression Engine","4th Compression Engine","5th Compression Engine","6th Compression Engine","7th Compression Engine","8th Compression Engine","9th Compression Engine","10th Compression Engine",null,null,"1st Compression Engine","2nd Spark Ignition Engine","3rd Spark Ignition Engine","4th Spark Ignition Engine","5th Spark Ignition Engine","6th Spark Ignition Engine","7th Spark Ignition Engine","8th Spark Ignition Engine","9th Spark Ignition Engine","10th Spark Ignition Engine",null,null,"MMSCF",{"$f":"AT4*1020","v":0},"MMBtu"]
[null,null,null,null,null,null,null,null,null,null,null,null,null,null,null,null,null,null,null,null,"PMfilterable",null,null,null,null,null,null,null,null,null,null,null,"PMfilterable"]
[null,null,null,null,null,null,null,null,null,null,null,null,null,null,null,null,null,null,null,null,"PM10",null,null,null,null,null,null,null,null,null,null,null,"PM10",null,null,null,null,null,null,null,null,null,null,null,null,null,"lb/MMSCF",{"$f":"AT6/1020","v":0},"lb/MMBtu"]
["Questions",null,null,"Current Capacity",null,null,null,null,null,null,null,null,null,"Maximum Proposed Capacity",null,null,null,null,null,null,"PM2.5",null,null,null,null,null,null,null,null,null,null,null,"PM2.5"]
[null,null,null,null,null,null,null,null,null,null,null,null,null,null,null,null,null,null,null,null,"SO2",null,null,null,null,null,null,null,null,null,null,null,"SO2",null,null,null,null,null,null,null,null,null,null,null,null,null,"lb/hr",{"$f":"AT8/AT9","v":0},"lb/MMBtu"]
[null,null,null,null,null,null,null,null,null,null,null,null,null,null,null,null,null,null,null,null,"NOx",null,null,null,null,null,null,null,null,null,null,null,"NOx",null,null,null,null,null,null,null,null,null,null,null,null,1,"MMBtu/hr"]
["Number of Compression Engines",null,null,null,null,null,"Units",null,null,null,"Number of Compression Engines",null,null,null,null,null,"Units",null,null,null,"CO",null,null,null,null,null,null,null,null,null,null,null,"CO"]
[null,null,null,null,null,null,null,null,null,null,null,null,null,null,null,null,null,null,null,null,"VOC",null,null,null,null,null,null,null,null,null,null,null,"VOC"]
["Number of Spark Ignition Engines",null,null,null,null,null,"Units",null,null,null,"Number of Spark Ignition Engines",null,null,null,null,null,"Units",null,null,null,"Individual HAP",null,null,null,null,null,null,null,null,null,null,null,"Individual HAP"]
[null,null,null,null,null,null,null,null,null,null,null,null,null,null,null,null,null,null,null,null,"Acetaldehyde",null,null,null,null,null,null,null,null,null,null,null,"Acetaldehyde"]
[null,null,null,null,null,null,null,null,null,null,null,null,null,null,null,null,null,null,null,null,"Acrolein",null,null,null,null,null,null,null,null,null,null,null,"Acrolein"]
[null,"ID","Emission Unit Name","Engine Rating (hp)","Maximum Fuel Capacity \n(gal/hr)","Manufacturer Emission's Gurantee Available","Restricted operating hours",null,null,null,null,"ID","Emission Unit Name","Engine Rating (hp)","Maximum Fuel Capacity \n(gal/hr)","Manufacturer Emission's Gurantee Available","Restricted operating hours",null,null,null,"Arsenic compounds",null,null,null,null,null,null,null,null,null,null,null,"Arsenic compounds"]
["1st Compression Engine",null,null,null,null,null,8760,null,null,null,"1st Compression Engine",null,null,null,null,null,8760,null,null,null,"Benzene",null,null,null,null,null,null,null,null,null,null,null,"Benzene"]
["2nd Compression Engine",null,null,null,null,null,8760,null,null,null,"2nd Compression Engine",null,null,null,null,null,8760,null,null,null,"Benzyl chloride",null,null,null,null,null,null,null,null,null,null,null,"Benzyl chloride"]
["3rd Compression Engine",null,null,null,null,null,8760,null,null,null,"3rd Compression Engine",null,null,null,null,null,8760,null,null,null,"Beryllium compounds",null,null,null,null,null,null,null,null,null,null,null,"Beryllium compounds"]
["4th Compression Engine",null,null,null,null,null,8760,null,null,null,"4th Compression Engine",null,null,null,null,null,8760,null,null,null,"Cadmium compounds",null,null,null,null,null,null,null,null,null,null,null,"Cadmium compounds"]
["5th Compression Engine",null,null,null,null,null,8760,null,null,null,"5th Compression Engine",null,null,null,null,null,8760,null,null,null,"Cyanide compounds",null,null,null,null,null,null,null,null,null,null,null,"Cyanide compounds"]
["6th Compression Engine",null,null,null,null,null,8760,null,null,null,"6th Compression Engine",null,null,null,null,null,8760,null,null,null,"Formaldehyde",null,null,null,null,null,null,null,null,null,null,null,"Formaldehyde"]
["7th Compression Engine",null,null,null,null,null,8760,null,null,null,"7th Compression Engine",null,null,null,null,null,8760,null,null,null,"n-Hexane",null,null,null,null,null,null,null,null,null,null,null,"n-Hexane"]
["8th Compression Engine",null,null,null,null,null,8760,null,null,null,"8th Compression Engine",null,null,null,null,null,8760,null,null,null,"Hydrochloric acid",null,null,null,null,null,null,null,null,null,null,null,"Hydrochloric acid"]
["9th Compression Engine",null,null,null,null,null,8760,null,null,null,"9th Compression Engine",null,null,null,null,null,8760,null,null,null,"Lead Compounds",null,null,null,null,null,null,null,null,null,null,null,"Lead Compounds"]
["10th Compression Engine",null,null,null,null,null,8760,null,null,null,"10th Compression Engine",null,null,null,null,null,8760,null,null,null,"Mercury compounds",null,null,null,null,null,null,null,null,null,null,null,"Mercury compounds"]
[null,null,null,null,null,null,null,null,null,null,null,null,null,null,null,null,null,null,null,null,"Methanol",null,null,null,null,null,null,null,null,null,null,null,"Methanol"]
[null,null,null,null,null,null,null,null,null,null,null,null,null,null,null,null,null,null,null,null,"Methyl hydrazine",null,null,null,null,null,null,null,null,null,null,null,"Methyl hydrazine"]
[null,"ID","Emission Unit Name","Engine Rating (hp)","Fuel Use Factor (Btu/hp-hr)","Manufacturer Emission's Gurantee Available","Fuel Type","Engine Configuration","Restricted operating hours",null,null,"ID","Emission Unit Name","Engine Rating (hp)","Fuel Use Factor (Btu/hp-hr)","Manufacturer Emission's Gurantee Available","Fuel Type","Engine Configuration","Restricted operating hours",null,"Selenium compounds",null,null,null,null,null,null,null,null,null,null,null,"Selenium compounds"]
["1st Spark Ignition Engine",null,null,null,null,null,null,null,8760,null,"1st Spark Ignition Engine",null,null,null,null,null,null,null,8760,null,"Other HAPs",null,null,null,null,null,null,null,null,null,null,null,"Other HAPs"]
["2nd Spark Ignition Engine",null,null,null,null,null,null,null,8760,null,"2nd Spark Ignition Engine",null,null,null,null,null,null,null,8760,null,"Total HAPs",null,null,null,null,null,null,null,null,null,null,null,"Total HAPs"]
["3rd Spark Ignition Engine",null,null,null,null,null,null,null,8760,null,"3rd Spark Ignition Engine",null,null,null,null,null,null,null,8760,null,"Green House Gasses",null,null,null,null,null,null,null,null,null,null,null,"Green House Gasses"]
["4th Spark Ignition Engine",null,null,null,null,null,null,null,8760,null,"4th Spark Ignition Engine",null,null,null,null,null,null,null,8760,null,"  Carbon Dioxide (CO2)",null,null,null,null,null,null,null,null,null,null,null,"  Carbon Dioxide (CO2)"]
["5th Spark Ignition Engine",null,null,null,null,null,null,null,8760,null,"5th Spark Ignition Engine",null,null,null,null,null,null,null,8760,null,"  Methane (CH4)",null,null,null,null,null,null,null,null,null,null,null,"  Methane (CH4)"]
["6th Spark Ignition Engine",null,null,null,null,null,null,null,8760,null,"6th Spark Ignition Engine",null,null,null,null,null,null,null,8760,null,"  Nitrous Oxide (N2O)",null,null,null,null,null,null,null,null,null,null,null,"  Nitrous Oxide (N2O)"]
["7th Spark Ignition Engine",null,null,null,null,null,null,null,8760,null,"7th Spark Ignition Engine",null,null,null,null,null,null,null,8760]
["8th Spark Ignition Engine",null,null,null,null,null,null,null,8760,null,"8th Spark Ignition Engine",null,null,null,null,null,null,null,8760]
["9th Spark Ignition Engine",null,null,null,null,null,null,null,8760,null,"9th Spark Ignition Engine",null,null,null,null,null,null,null,8760]
["10th Spark Ignition Engine",null,null,null,null,null,null,null,8760,null,"10th Spark Ignition Engine",null,null,null,null,null,null,null,8760]
[]
[]
[]
[null,null,null,null,null,null,null,null,null,null,null,null,null,null,null,null,null,null,null,null,null,null,"1st Compression Engine","2nd Compression Engine","3rd Compression Engine","4th Compression Engine","5th Compression Engine","6th Compression Engine","7th Compression Engine","8th Compression Engine","9th Compression Engine","10th Compression Engine",null,null,"1st Compression Engine","2nd Spark Ignition Engine","3rd Spark Ignition Engine","4th Spark Ignition Engine","5th Spark Ignition Engine","6th Spark Ignition Engine","7th Spark Ignition Engine","8th Spark Ignition Engine","9th Spark Ignition Engine","10th Spark Ignition Engine"]
[null,null,null,null,null,null,null,null,null,null,null,null,null,null,null,null,null,null,null,null,"PMfilterable",null,null,null,null,null,null,null,null,null,null,null,"PMfilterable"]
[null,null,null,null,null,null,null,null,null,null,null,null,null,null,null,null,null,null,null,null,"PM10",null,null,null,null,null,null,null,null,null,null,null,"PM10"]
[null,null,null,null,null,null,null,null,null,null,null,null,null,null,null,null,null,null,null,null,"PM2.5",null,null,null,null,null,null,null,null,null,null,null,"PM2.5"]
[null,null,null,null,null,null,null,null,null,null,null,null,null,null,null,null,null,null,null,null,"SO2",null,null,null,null,null,null,null,null,null,null,null,"SO2"]
[null,null,null,null,null,null,null,null,null,null,null,null,null,null,null,null,null,null,null,null,"NOx",null,null,null,null,null,null,null,null,null,null,null,"NOx"]
[null,null,null,null,null,null,null,null,null,null,null,null,null,null,null,null,null,null,null,null,"CO",null,null,null,null,null,null,null,null,null,null,null,"CO"]
[null,null,null,null,null,null,null,null,null,null,null,null,null,null,null,null,null,null,null,null,"VOC",null,null,null,null,null,null,null,null,null,null,null,"VOC"]
[null,null,null,null,null,null,null,null,null,null,null,null,null,null,null,null,null,null,null,null,"Individual HAP",null,null,null,null,null,null,null,null,null,null,null,"Individual HAP"]
[null,null,null,null,null,null,null,null,null,null,null,null,null,null,null,null,null,null,null,null,"Acetaldehyde",null,null,null,null,null,null,null,null,null,null,null,"Acetaldehyde"]
[null,null,null,null,null,null,null,null,null,null,null,null,null,null,null,null,null,null,null,null,"Acrolein",null,null,null,null,null,null,null,null,null,null,null,"Acrolein"]
[null,null,null,null,null,null,null,null,null,null,null,null,null,null,null,null,null,null,null,null,"Arsenic compounds",null,null,null,null,null,null,null,null,null,null,null,"Arsenic compounds"]
[null,null,null,null,null,null,null,null,null,null,null,null,null,null,null,null,null,null,null,null,"Benzene",null,null,null,null,null,null,null,null,null,null,null,"Benzene"]
[null,null,null,null,null,null,null,null,null,null,null,null,null,null,null,null,null,null,null,null,"Benzyl chloride",null,null,null,null,null,null,null,null,null,null,null,"Benzyl chloride"]
[null,null,null,null,null,null,null,null,null,null,null,null,null,null,null,null,null,null,null,null,"Beryllium compounds",null,null,null,null,null,null,null,null,null,null,null,"Beryllium compounds"]
[null,null,null,null,null,null,null,null,null,null,null,null,null,null,null,null,null,null,null,null,"Cadmium compounds",null,null,null,null,null,null,null,null,null,null,null,"Cadmium compounds"]
[null,null,null,null,null,null,null,null,null,null,null,null,null,null,null,null,null,null,null,null,"Cyanide compounds",null,null,null,null,null,null,null,null,null,null,null,"Cyanide compounds"]
[null,null,null,null,null,null,null,null,null,null,null,null,null,null,null,null,null,null,null,null,"Formaldehyde",null,null,null,null,null,null,null,null,null,null,null,"Formaldehyde"]
[null,null,null,null,null,null,null,null,null,null,null,null,null,null,null,null,null,null,null,null,"n-Hexane",null,null,null,null,null,null,null,null,null,null,null,"n-Hexane"]
[null,null,null,null,null,null,null,null,null,null,null,null,null,null,null,null,null,null,null,null,"Hydrochloric acid",null,null,null,null,null,null,null,null,null,null,null,"Hydrochloric acid"]
[null,null,null,null,null,null,null,null,null,null,null,null,null,null,null,null,null,null,null,null,"Lead Compounds",null,null,null,null,null,null,null,null,null,null,null,"Lead Compounds"]
[null,null,null,null,null,null,null,null,null,null,null,null,null,null,null,null,null,null,null,null,"Mercury compounds",null,null,null,null,null,null,null,null,null,null,null,"Mercury compounds"]
[null,null,null,null,null,null,null,null,null,null,null,null,null,null,null,null,null,null,null,null,"Methanol",null,null,null,null,null,null,null,null,null,null,null,"Methanol"]
[null,null,null,null,null,null,null,null,null,null,null,null,null,null,null,null,null,null,null,null,"Methyl hydrazine",null,null,null,null,null,null,null,null,null,null,null,"Methyl hydrazine"]
[null,null,null,null,null,null,null,null,null,null,null,null,null,null,null,null,null,null,null,null,"Selenium compounds",null,null,null,null,null,null,null,null,null,null,null,"Selenium compounds"]
[null,null,null,null,null,null,null,null,null,null,null,null,null,null,null,null,null,null,null,null,"Other HAPs",null,null,null,null,null,null,null,null,null,null,null,"Other HAPs"]
[null,null,null,null,null,null,null,null,null,null,null,null,null,null,null,null,null,null,null,null,"Total HAPs",null,null,null,null,null,null,null,null,null,null,null,"Total HAPs"]
[null,null,null,null,null,null,null,null,null,null,null,null,null,null,null,null,null,null,null,null,"Green House Gasses",null,null,null,null,null,null,null,null,null,null,null,"Green House Gasses"]
[null,null,null,null,null,null,null,null,null,null,null,null,null,null,null,null,null,null,null,null,"  Carbon Dioxide (CO2)",null,null,null,null,null,null,null,null,null,null,null,"  Carbon Dioxide (CO2)"]
[null,null,null,null,null,null,null,null,null,null,null,null,null,null,null,null,null,null,null,null,"  Methane (CH4)",null,null,null,null,null,null,null,null,null,null,null,"  Methane (CH4)"]
[null,null,null,null,null,null,null,null,null,null,null,null,null,null,null,null,null,null,null,null,"  Nitrous Oxide (N2O)",null,null,null,null,null,null,null,null,null,null,null,"  Nitrous Oxide (N2O)"]

{"sheet":"Results Summary","index":1,"n_rows":43,"n_cols":11,"rows_kept":43,"cut":false,"hidden":false,"merged":[[38,0,38,2],[38,4,38,6],[38,8,38,10],[5,4,6,4],[5,8,6,8],[5,1,5,2],[5,5,5,6],[5,9,5,10],[14,0,14,2],[14,4,14,6],[33,4,33,6],[33,0,33,2],[14,8,14,10],[33,8,33,10],[5,0,6,0]]}
[]
["Universal Calculation Spreadsheets applicable for the Emissions of Ethanol Industry"]
["Results Summary"]
[]
["Non-Fugitive PTE"]
["Pollutants","Current PTE",null,null,"Pollutants","Total PTE after Project","DDGS dryers",null,"Pollutants","Project PTE"]
[null,"(lb/hr)","(ton/yr)",null,null,"(lb/hr)","(ton/yr)",null,null,"(lb/hr)","(ton/yr)"]
["  PMfilterable",{"$f":"Calculations!Z46+Calculations!Z85","v":0},{"$f":"Calculations!AN46+Calculations!AN85","v":0},null,"  PMfilterable",{"$f":"Calculations!Z125+Calculations!Z164","v":0},{"$f":"Calculations!AN125+Calculations!AN164","v":0},null,"  PMfilterable",{"$f":"F8-B8","v":0},{"$f":"G8-C8","v":0}]
["  PM10",{"$f":"Calculations!Z47+Calculations!Z86","v":0},{"$f":"Calculations!AN47+Calculations!AN86","v":0},null,"  PM10",{"$f":"Calculations!Z126+Calculations!Z165","v":0},{"$f":"Calculations!AN126+Calculations!AN165","v":0},null,"  PM10",{"$f":"F9-B9","v":0},{"$f":"G9-C9","v":0}]
["  PM2.5",{"$f":"Calculations!Z48+Calculations!Z87","v":0},{"$f":"Calculations!AN48+Calculations!AN87","v":0},null,"  PM2.5",{"$f":"Calculations!Z127+Calculations!Z166","v":0},{"$f":"Calculations!AN127+Calculations!AN166","v":0},null,"  PM2.5",0,0]
["  SO2",{"$f":"Calculations!Z49+Calculations!Z88","v":0},{"$f":"Calculations!AN49+Calculations!AN88","v":0},null,"  SO2",{"$f":"Calculations!Z128+Calculations!Z167","v":0},{"$f":"Calculations!AN128+Calculations!AN167","v":0},null,"  SO2",0,0]
["  NOx",{"$f":"Calculations!Z50+Calculations!Z89","v":0},{"$f":"Calculations!AN50+Calculations!AN89","v":0},null,"  NOx",{"$f":"Calculations!Z129+Calculations!Z168","v":0},{"$f":"Calculations!AN129+Calculations!AN168","v":0},null,"  NOx",0,0]
["  CO",{"$f":"Calculations!Z51+Calculations!Z90","v":0},{"$f":"Calculations!AN51+Calculations!AN90","v":0},null,"  CO",{"$f":"Calculations!Z130+Calculations!Z169","v":0},{"$f":"Calculations!AN130+Calculations!AN169","v":0},null,"  CO",0,0]
["  VOC",{"$f":"Calculations!Z52+Calculations!Z91","v":0},{"$f":"Calculations!AN52+Calculations!AN91","v":0},null,"  VOC",{"$f":"Calculations!Z131+Calculations!Z170","v":0},{"$f":"Calculations!AN131+Calculations!AN170","v":0},null,"  VOC",0,0]
["Individual HAP",null,null,null,"Individual HAP",null,null,null,"Individual HAP"]
["  Acetaldehyde",{"$f":"Calculations!Z54+Calculations!Z93","v":0},{"$f":"Calculations!AN54+Calculations!AN93","v":0},null,"  Acetaldehyde",{"$f":"Calculations!Z133+Calculations!Z172","v":0},{"$f":"Calculations!AN133+Calculations!AN172","v":0},null,"  Acetaldehyde",{"$f":"F16-B16","v":0},{"$f":"G16-C16","v":0}]
["  Acrolein",{"$f":"Calculations!Z55+Calculations!Z94","v":0},{"$f":"Calculations!AN55+Calculations!AN94","v":0},null,"  Acrolein",{"$f":"Calculations!Z134+Calculations!Z173","v":0},{"$f":"Calculations!AN134+Calculations!AN173","v":0},null,"  Acrolein",0,0]
["  Arsenic compounds",{"$f":"Calculations!Z56+Calculations!Z95","v":0},{"$f":"Calculations!AN56+Calculations!AN95","v":0},null,"  Arsenic compounds",{"$f":"Calculations!Z135+Calculations!Z174","v":0},{"$f":"Calculations!AN135+Calculations!AN174","v":0},null,"  Arsenic compounds",0,0]
["  Benzene",{"$f":"Calculations!Z57+Calculations!Z96","v":0},{"$f":"Calculations!AN57+Calculations!AN96","v":0},null,"  Benzene",{"$f":"Calculations!Z136+Calculations!Z175","v":0},{"$f":"Calculations!AN136+Calculations!AN175","v":0},null,"  Benzene",0,0]
["  Benzyl chloride",{"$f":"Calculations!Z58+Calculations!Z97","v":0},{"$f":"Calculations!AN58+Calculations!AN97","v":0},null,"  Benzyl chloride",{"$f":"Calculations!Z137+Calculations!Z176","v":0},{"$f":"Calculations!AN137+Calculations!AN176","v":0},null,"  Benzyl chloride",0,0]
["  Beryllium compounds",{"$f":"Calculations!Z59+Calculations!Z98","v":0},{"$f":"Calculations!AN59+Calculations!AN98","v":0},null,"  Beryllium compounds",{"$f":"Calculations!Z138+Calculations!Z177","v":0},{"$f":"Calculations!AN138+Calculations!AN177","v":0},null,"  Beryllium compounds",0,0]
["  Cadmium compounds",{"$f":"Calculations!Z60+Calculations!Z99","v":0},{"$f":"Calculations!AN60+Calculations!AN99","v":0},null,"  Cadmium compounds",{"$f":"Calculations!Z139+Calculations!Z178","v":0},{"$f":"Calculations!AN139+Calculations!AN178","v":0},null,"  Cadmium compounds",0,0]
["  Cyanide compounds",{"$f":"Calculations!Z61+Calculations!Z100","v":0},{"$f":"Calculations!AN61+Calculations!AN100","v":0},null,"  Cyanide compounds",{"$f":"Calculations!Z140+Calculations!Z179","v":0},{"$f":"Calculations!AN140+Calculations!AN179","v":0},null,"  Cyanide compounds",0,0]
["  Formaldehyde",{"$f":"Calculations!Z62+Calculations!Z101","v":0},{"$f":"Calculations!AN62+Calculations!AN101","v":0},null,"  Formaldehyde",{"$f":"Calculations!Z141+Calculations!Z180","v":0},{"$f":"Calculations!AN141+Calculations!AN180","v":0},null,"  Formaldehyde",0,0]
["  Hexane",{"$f":"Calculations!Z63+Calculations!Z102","v":0},{"$f":"Calculations!AN63+Calculations!AN102","v":0},null,"  Hexane",{"$f":"Calculations!Z142+Calculations!Z181","v":0},{"$f":"Calculations!AN142+Calculations!AN181","v":0},null,"  Hexane",0,0]
["  Hydrochloric acid",{"$f":"Calculations!Z64+Calculations!Z103","v":0},{"$f":"Calculations!AN64+Calculations!AN103","v":0},null,"  Hydrochloric acid",{"$f":"Calculations!Z143+Calculations!Z182","v":0},{"$f":"Calculations!AN143+Calculations!AN182","v":0},null,"  Hydrochloric acid",0,0]
["  Lead Compounds",{"$f":"Calculations!Z65+Calculations!Z104","v":0},{"$f":"Calculations!AN65+Calculations!AN104","v":0},null,"  Lead Compounds",{"$f":"Calculations!Z144+Calculations!Z183","v":0},{"$f":"Calculations!AN144+Calculations!AN183","v":0},null,"  Lead Compounds",0,0]
["  Mercury compounds",{"$f":"Calculations!Z66+Calculations!Z105","v":0},{"$f":"Calculations!AN66+Calculations!AN105","v":0},null,"  Mercury compounds",{"$f":"Calculations!Z145+Calculations!Z184","v":0},{"$f":"Calculations!AN145+Calculations!AN184","v":0},null,"  Mercury compounds",0,0]
["  Methanol",{"$f":"Calculations!Z67+Calculations!Z106","v":0},{"$f":"Calculations!AN67+Calculations!AN106","v":0},null,"  Methanol",{"$f":"Calculations!Z146+Calculations!Z185","v":0},{"$f":"Calculations!AN146+Calculations!AN185","v":0},null,"  Methanol",0,0]
["  Methyl hydrazine",{"$f":"Calculations!Z68+Calculations!Z107","v":0},{"$f":"Calculations!AN68+Calculations!AN107","v":0},null,"  Methyl hydrazine",{"$f":"Calculations!Z147+Calculations!Z186","v":0},{"$f":"Calculations!AN147+Calculations!AN186","v":0},null,"  Methyl hydrazine",0,0]
["  Selenium compounds",{"$f":"Calculations!Z69+Calculations!Z108","v":0},{"$f":"Calculations!AN69+Calculations!AN108","v":0},null,"  Selenium compounds",{"$f":"Calculations!Z148+Calculations!Z187","v":0},{"$f":"Calculations!AN148+Calculations!AN187","v":0},null,"  Selenium compounds",0,0]
["Other HAPs",{"$f":"Calculations!Z70+Calculations!Z109","v":0},{"$f":"Calculations!AN70+Calculations!AN109","v":0},null,"Other HAPs",{"$f":"Calculations!Z149+Calculations!Z188","v":0},{"$f":"Calculations!AN149+Calculations!AN188","v":0},null,"Other HAPs",0,0]
["Total HAPs",{"$f":"Calculations!Z71+Calculations!Z110","v":0},{"$f":"Calculations!AN71+Calculations!AN110","v":0},null,"Total HAPs",{"$f":"Calculations!Z150+Calculations!Z189","v":0},{"$f":"Calculations!AN150+Calculations!AN189","v":0},null,"Total HAPs",0,0]
["Greenhouse Gases (GHG) (Mass Basis)",null,null,null,"Greenhouse Gases (GHG) (Mass Basis)",null,null,null,"Greenhouse Gases (GHG) (Mass Basis)"]
["  Carbon Dioxide ",{"$f":"Calculations!Z73+Calculations!Z112","v":0},{"$f":"Calculations!AN73+Calculations!AN112","v":0},null,"  Carbon Dioxide ",{"$f":"Calculations!Z152+Calculations!Z191","v":0},{"$f":"Calculations!AN152+Calculations!AN191","v":0},null,"  Carbon Dioxide ",{"$f":"F35-B35","v":0},{"$f":"G35-C35","v":0}]
["  Methane",{"$f":"Calculations!Z74+Calculations!Z113","v":0},{"$f":"Calculations!AN74+Calculations!AN113","v":0},null,"  Methane",{"$f":"Calculations!Z153+Calculations!Z192","v":0},{"$f":"Calculations!AN153+Calculations!AN192","v":0},null,"  Methane",0,0]
["  Nitrous Oxide",{"$f":"Calculations!Z75+Calculations!Z114","v":0},{"$f":"Calculations!AN75+Calculations!AN114","v":0},null,"  Nitrous Oxide",{"$f":"Calculations!Z154+Calculations!Z193","v":0},{"$f":"Calculations!AN154+Calculations!AN193","v":0},null,"  Nitrous Oxide",0,0]
["Total GHGs ",{"$f":"SUM(B35:B37)","v":0},{"$f":"SUM(C35:C37)","v":0},null,"Total GHGs ",{"$f":"Calculations!Z155+Calculations!Z194","v":0},{"$f":"Calculations!AN155+Calculations!AN194","v":0},null,"Total GHGs ",0,0]
["Greenhouse Gases (GHG) (CO2 Equivalent Basis)",null,null,null,"Greenhouse Gases (GHG) (CO2 Equivalent Basis)",null,null,null,"Greenhouse Gases (GHG) (CO2 Equivalent Basis)"]
["  Carbon Dioxide ",{"$f":"B35","v":0},{"$f":"C35","v":0},null,"  Carbon Dioxide ",{"$f":"F35","v":0},{"$f":"G35","v":0},null,"  Carbon Dioxide ",{"$f":"F40-B40","v":0},{"$f":"G40-C40","v":0}]
["  Methane",{"$f":"B36*25","v":0},{"$f":"C36*25","v":0},null,"  Methane",{"$f":"F36*25","v":0},{"$f":"G36*25","v":0},null,"  Methane",0,0]
["  Nitrous Oxide",{"$f":"B38*298","v":0},{"$f":"C38*298","v":0},null,"  Nitrous Oxide",{"$f":"F38*298","v":0},{"$f":"G38*298","v":0},null,"  Nitrous Oxide",0,0]
["Total GHGs ",{"$f":"SUM(B40:B42)","v":0},{"$f":"SUM(C40:C42)","v":0},null,"Total GHGs ",{"$f":"SUM(F40:F42)","v":0},{"$f":"SUM(G40:G42)","v":0},null,"Total GHGs ",0,0]

{"sheet":"Calculations","index":2,"n_rows":434,"n_cols":40,"rows_kept":434,"cut":false,"hidden":false,"merged":[[237,0,237,6],[232,0,232,6],[213,0,213,6],[213,8,213,13],[232,8,232,13],[237,8,237,13],[201,12,201,13],[170,0,170,1],[170,2,170,11],[170,13,170,14],[188,13,188,14],[191,13,191,14],[170,15,170,25],[170,27,170,28],[170,29,170,39],[189,2,189,11],[189,15,189,25],[189,29,189,39],[171,27,171,28],[172,13,172,14],[172,27,172,28],[176,13,176,14],[176,27,176,28],[177,13,177,14],[177,27,177,28],[178,13,178,14],[178,27,178,28],[173,13,173,14],[173,27,173,28],[174,13,174,14],[174,27,174,28],[175,13,175,14],[175,27,175,28],[182,13,182,14],[182,27,182,28],[183,13,183,14],[121,15,121,25],[121,27,123,28],[121,29,121,39],[131,0,131,1],[131,2,131,11],[131,13,131,14],[131,15,131,25],[131,27,131,28],[131,29,131,39],[124,0,124,1],[129,27,129,28],[130,27,130,28],[121,0,123,1],[121,2,121,11],[121,13,123,14],[113,0,113,1],[114,0,114,11],[52,13,52,14],[74,13,74,14],[71,15,71,25],[52,15,52,25],[87,0,87,1],[88,0,88,1],[81,0,83,1],[81,2,81,11],[84,0,84,1],[85,0,85,1],[86,0,86,1],[95,0,95,1],[96,0,96,1],[101,0,101,1],[102,0,102,1],[97,0,97,1],[89,0,89,1],[91,0,91,1],[62,0,62,1],[63,0,63,1],[58,0,58,1],[59,0,59,1],[7,1,8,1],[56,0,56,1],[57,0,57,1],[91,15,91,25],[91,27,91,28],[91,29,91,39],[110,2,110,11],[110,15,110,25],[110,29,110,39],[69,0,69,1],[64,0,64,1],[65,0,65,1],[66,0,66,1],[42,15,42,25],[100,0,100,1],[76,0,76,1],[77,0,77,1],[78,0,78,1],[90,0,90,1],[53,0,53,1],[92,0,92,1],[54,0,54,1],[93,0,93,1],[61,0,61,1],[2,0,2,3],[42,2,42,11],[42,0,44,1],[74,0,74,1],[52,0,52,1],[52,2,52,11],[71,2,71,11],[42,13,44,14],[36,2,36,8],[7,2,7,8],[48,0,48,1],[49,0,49,1],[50,0,50,1],[5,0,5,2],[45,0,45,1],[46,0,46,1],[47,0,47,1],[55,0,55,1],[7,0,8,0],[72,0,72,1],[70,0,70,1],[71,0,71,1],[73,0,73,1],[51,0,51,1],[60,0,60,1],[67,0,67,1],[68,0,68,1],[73,13,73,14],[106,0,106,1],[81,13,83,14],[91,2,91,11],[91,13,91,14],[85,13,85,14],[86,13,86,14],[87,13,87,14],[98,0,98,1],[88,13,88,14],[89,13,89,14],[90,13,90,14],[92,13,92,14],[99,0,99,1],[94,0,94,1],[103,0,103,1],[104,0,104,1],[105,0,105,1],[75,0,75,11],[66,13,66,14],[67,13,67,14],[111,0,111,1],[110,0,110,1],[103,13,103,14],[104,13,104,14],[105,13,105,14],[106,13,106,14],[93,13,93,14],[94,13,94,14],[95,13,95,14],[96,13,96,14],[110,13,110,14],[111,13,111,14],[109,0,109,1],[107,13,107,14],[108,13,108,14],[109,13,109,14],[107,0,107,1],[108,0,108,1],[167,0,167,1],[129,0,129,1],[168,0,168,1],[130,0,130,1],[169,0,169,1],[125,0,125,1],[164,0,164,1],[126,0,126,1],[165,0,165,1],[127,0,127,1],[166,0,166,1],[163,0,163,1],[157,0,157,1],[153,0,153,1],[154,0,154,11],[160,0,162,1],[160,2,160,11],[150,2,150,11],[128,0,128,1],[112,13,112,14],[101,13,101,14],[102,13,102,14],[112,0,112,1],[45,13,45,14],[46,13,46,14],[47,13,47,14],[48,13,48,14],[61,13,61,14],[49,13,49,14],[50,13,50,14],[51,13,51,14],[53,13,53,14],[54,13,54,14],[55,13,55,14],[68,13,68,14],[69,13,69,14],[70,13,70,14],[71,13,71,14],[84,13,84,14],[62,13,62,14],[63,13,63,14],[64,13,64,14],[65,13,65,14],[44,15,44,25],[151,0,151,1],[190,0,190,1],[152,0,152,1],[97,13,97,14],[98,13,98,14],[99,13,99,14],[100,13,100,14],[150,0,150,1],[189,0,189,1],[147,0,147,1],[186,0,186,1],[148,0,148,1],[187,0,187,1],[149,0,149,1],[188,0,188,1],[144,0,144,1],[183,0,183,1],[145,0,145,1],[56,13,56,14],[57,13,57,14],[58,13,58,14],[59,13,59,14],[60,13,60,14],[72,13,72,14],[49,27,49,28],[50,27,50,28],[51,27,51,28],[53,27,53,28],[54,27,54,28],[55,27,55,28],[62,27,62,28],[63,27,63,28],[64,27,64,28],[65,27,65,28],[66,27,66,28],[67,27,67,28],[56,27,56,28],[57,27,57,28],[58,27,58,28],[59,27,59,28],[60,27,60,28],[61,27,61,28],[44,29,44,39],[45,27,45,28],[46,27,46,28],[47,27,47,28],[48,27,48,28],[42,27,44,28],[42,29,42,39],[52,27,52,28],[52,29,52,39],[83,15,83,25],[83,29,83,39],[84,27,84,28],[85,27,85,28],[86,27,86,28],[68,27,68,28],[69,27,69,28],[70,27,70,28],[71,27,71,28],[72,27,72,28],[73,27,73,28],[71,29,71,39],[74,27,74,28],[81,15,81,25],[81,27,83,28],[81,29,81,39],[94,27,94,28],[95,27,95,28],[96,27,96,28],[97,27,97,28],[98,27,98,28],[99,27,99,28],[87,27,87,28],[88,27,88,28],[89,27,89,28],[90,27,90,28],[92,27,92,28],[93,27,93,28],[106,27,106,28],[107,27,107,28],[108,27,108,28],[109,27,109,28],[110,27,110,28],[111,27,111,28],[100,27,100,28],[101,27,101,28],[102,27,102,28],[103,27,103,28],[104,27,104,28],[105,27,105,28],[112,27,112,28],[115,0,115,1],[116,0,116,1],[118,0,118,1],[155,0,155,1],[156,0,156,1],[113,27,113,28],[123,15,123,25],[127,27,127,28],[146,0,146,1],[141,0,141,1],[142,0,142,1],[143,0,143,1],[138,0,138,1],[139,0,139,1],[140,0,140,1],[135,0,135,1],[136,0,136,1],[137,0,137,1],[132,0,132,1],[133,0,133,1],[134,0,134,1],[128,27,128,28],[117,0,117,1],[113,13,113,14],[127,13,127,14],[128,13,128,14],[133,13,133,14],[191,0,191,1],[184,0,184,1],[185,0,185,1],[180,0,180,1],[181,0,181,1],[182,0,182,1],[177,0,177,1],[178,0,178,1],[179,0,179,1],[174,0,174,1],[175,0,175,1],[176,0,176,1],[171,0,171,1],[172,0,172,1],[129,13,129,14],[173,0,173,1],[130,13,130,14],[132,13,132,14],[138,13,138,14],[171,13,171,14],[132,27,132,28],[123,29,123,39],[124,13,124,14],[124,27,124,28],[125,13,125,14],[125,27,125,28],[126,13,126,14],[126,27,126,28],[137,27,137,28],[137,13,137,14],[138,27,138,28],[139,13,139,14],[139,27,139,28],[133,27,133,28],[134,13,134,14],[134,27,134,28],[135,13,135,14],[135,27,135,28],[136,13,136,14],[136,27,136,28],[143,27,143,28],[144,13,144,14],[144,27,144,28],[145,13,145,14],[145,27,145,28],[140,13,140,14],[140,27,140,28],[141,13,141,14],[141,27,141,28],[142,13,142,14],[142,27,142,28],[143,13,143,14],[162,29,162,39],[149,13,149,14],[149,27,149,28],[150,13,150,14],[150,27,150,28],[151,13,151,14],[151,27,151,28],[146,13,146,14],[146,27,146,28],[147,13,147,14],[147,27,147,28],[148,13,148,14],[148,27,148,28],[150,15,150,25],[150,29,150,39],[160,29,160,39],[153,13,153,14],[153,27,153,28],[160,13,162,14],[160,15,160,25],[160,27,162,28],[163,27,163,28],[164,13,164,14],[164,27,164,28],[165,13,165,14],[165,27,165,28],[152,13,152,14],[152,27,152,28],[162,15,162,25],[169,13,169,14],[169,27,169,28],[166,13,166,14],[166,27,166,28],[167,13,167,14],[167,27,167,28],[168,13,168,14],[168,27,168,28],[163,13,163,14],[183,27,183,28],[184,13,184,14],[184,27,184,28],[179,13,179,14],[179,27,179,28],[180,13,180,14],[180,27,180,28],[181,13,181,14],[181,27,181,28],[188,27,188,28],[189,13,189,14],[189,27,189,28],[190,13,190,14],[190,27,190,28],[185,13,185,14],[185,27,185,28],[186,13,186,14],[186,27,186,28],[187,13,187,14],[187,27,187,28],[191,27,191,28],[192,13,192,14],[192,27,192,28],[196,0,196,1],[201,1,201,2],[201,3,201,4],[201,5,201,6],[201,8,201,9],[201,10,201,11],[194,0,194,1],[195,0,195,1],[197,0,197,1],[192,0,192,1],[193,0,193,11],[200,0,202,0],[200,1,200,6],[200,8,200,13]]}
["Fuel Type",null,"Natural Gas","Natural Gas","Natural Gas","Gasoline","Diesel","Diesel","Dual Fuel (95% NG + Diesel"]
["Engine Configuration",null,"4-STROKE LEAN-BURN","4-STROKE RICH-BURN","2-STROKE LEAN-BURN",null,"Small <600 HP","Large >600 HP"]
[]
["Engines"]
[]
["Diesel Fuel Heat Content (MMBtu/gal)",null,null,0.13900000000000001]
[]
["Pollutant","Units","Emission Factor"]
[null,null,1,2,3,4,5,6,7]
["Criteria Pollutants",null,"AP-42: Table 3.2-2","AP-42: Table 3.2-3","AP-42: Table 3.2-1","AP-42: Table 3.3-1","AP-42: Table 3.3-1","AP-42: Table 3.4-1","AP-42: Table 3.4-1"]
["PM","lb/MMBtu",9.9871000000000005E-3,9.4999999999999998E-3,3.8399999999999997E-2,0.1,0.31,6.9699999999999998E-2,9.9871000000000005E-3]
["PM10","lb/MMBtu",9.9871000000000005E-3,{"$f":"0.0095+0.00991","v":1.941E-2},{"$f":"E11+0.00991","v":4.8309999999999999E-2},0.1,0.31,5.7299999999999997E-2,9.9871000000000005E-3]
["PM2.5","lb/MMBtu",9.9871000000000005E-3,{"$f":"0.0095+0.00991","v":1.941E-2},{"$f":"E11+0.00991","v":4.8309999999999999E-2},0.1,0.31,{"$f":"0.0479+0.0077","v":5.5599999999999997E-2},9.9871000000000005E-3]
["SO2","lb/MMBtu",5.8799999999999998E-4,5.8799999999999998E-4,5.8799999999999998E-4,8.4000000000000005E-2,0.28999999999999998,{"$f":"1.01*0.05","v":5.0500000000000003E-2},{"$f":"0.05*0.05+0.895*0.05","v":4.7250000000000007E-2}]
["NOx","lb/MMBtu",4.08,2.27,3.17,1.63,4.41,3.2,2.7]
["CO","lb/MMBtu",0.55700000000000005,3.72,0.38600000000000001,0.99,0.95,0.85,1.1599999999999999]
["VOC","lb/MMBtu",0.11799999999999999,2.9600000000000001E-2,0.12,{"$f":"2.1+0.09+0.69+0.15","v":3.03},0.36,0.09,0.8]
["Hazardous air pollutants",null,"AP-42: Table 3.2-2","AP-42: Table 3.2-3","AP-42: Table 3.2-1","AP-42: Table 3.3-2","AP-42: Table 3.3-2","AP-42: Table 3.4-3","AP-42: Table 3.2-2"]
["Acetaldehyde","lb/MMBtu",8.3599999999999994E-3,2.7899999999999999E-3,7.7600000000000004E-3,7.67E-4,7.67E-4,2.5199999999999999E-5,8.3599999999999994E-3]
["Acrolein","lb/MMBtu",5.1399999999999996E-3,2.63E-3,7.7799999999999996E-3,9.2499999999999999E-5,9.2499999999999999E-5,7.8800000000000008E-6,5.1399999999999996E-3]
["Arsenic compounds","lb/MMBtu"]
["Benzene","lb/MMBtu",4.4000000000000002E-4,1.58E-3,1.9400000000000001E-3,9.3300000000000002E-4,9.3300000000000002E-4,7.76E-4,4.4000000000000002E-4]
["Benzyl chloride","lb/MMBtu"]
["Beryllium compounds","lb/MMBtu"]
["Cadmium compounds","lb/MMBtu"]
["Cyanide compounds","lb/MMBtu"]
["Formaldehyde","lb/MMBtu",5.28E-2,2.0500000000000001E-2,5.5199999999999999E-2,1.1800000000000001E-3,1.1800000000000001E-3,7.8899999999999993E-5,5.28E-2]
["n-Hexane","lb/MMBtu",1.1100000000000001E-3,null,4.4499999999999997E-4,null,null,null,1.1100000000000001E-3]
["Hydrochloric acid","lb/MMBtu"]
["Lead Compounds","lb/MMBtu"]
["Mercury compounds","lb/MMBtu"]
["Methanol","lb/MMBtu",2.5000000000000001E-3,3.0599999999999998E-3,2.48E-3,null,null,null,2.5000000000000001E-3]
["Methyl hydrazine","lb/MMBtu"]
["Selenium compounds","lb/MMBtu"]
["Other HAPs","lb/MMBtu",6.1645600000000012E-3,1.8443800000000001E-3,3.0610225499999996E-3,9.0109999999999995E-4,9.0109999999999995E-4,6.8599999999999998E-4,6.1645600000000012E-3]
["Total HAPs","lb/MMBtu",{"$f":"SUM(C19:C35)","v":7.6514559999999995E-2},{"$f":"SUM(D19:D35)","v":3.2404380000000003E-2},7.8666022549999992E-2,3.8736000000000005E-3,3.8736000000000005E-3,1.57398E-3,{"$f":"SUM(I19:I35)","v":7.6514559999999995E-2}]
["Greenhouse Gases",null,"40 CFR 98, Subpart C, Tables 1 & 2"]
["CO2","kg CO2/MMBtu",53.06,53.06,53.06,70.22,73.959999999999994,73.959999999999994,53.06]
["Methane","kg CO2/MMBtu",1E-3,1E-3,1E-3,3.0000000000000001E-3,3.0000000000000001E-3,3.0000000000000001E-3,1E-3]
["N2O","kg CO2/MMBtu",1E-4,1E-4,1E-4,5.9999999999999995E-4,5.9999999999999995E-4,5.9999999999999995E-4,1E-4]
[]
[]
[]
[null,null,"1st Compression Engine","2nd Compression Engine","3rd Compression Engine","4th Compression Engine","5th Compression Engine","6th Compression Engine","7th Compression Engine","8th Compression Engine","9th Compression Engine","10th Compression Engine",null,null,null,"1st Compression Engine","2nd Compression Engine","3rd Compression Engine","4th Compression Engine","5th Compression Engine","6th Compression Engine","7th Compression Engine","8th Compression Engine","9th Compression Engine","10th Compression Engine","Total",null,null,null,"1st Compression Engine","2nd Compression Engine","3rd Compression Engine","4th Compression Engine","5th Compression Engine","6th Compression Engine","7th Compression Engine","8th Compression Engine","9th Compression Engine","10th Compression Engine","Total"]
[null,null,{"$f":"IF(Engines!D16<600,5,6)","v":5},{"$f":"IF(Engines!D17<600,5,6)","v":5},{"$f":"IF(Engines!D18<600,5,6)","v":5},{"$f":"IF(Engines!D19<600,5,6)","v":5},{"$f":"IF(Engines!D20<600,5,6)","v":5},{"$f":"IF(Engines!D21<600,5,6)","v":5},{"$f":"IF(Engines!D22<600,5,6)","v":5},{"$f":"IF(Engines!D23<600,5,6)","v":5},{"$f":"IF(Engines!D24<600,5,6)","v":5},{"$f":"IF(Engines!D25<600,5,6)","v":5},null,null,null,"(lb/hr)",null,null,null,null,null,null,null,null,null,null,null,null,null,"(ton/yr)"]
["PMfilterable",null,{"$f":"IF(Engines!W5<>\"\",Engines!W5,LOOKUP(Calculations!C$45,Calculations!$C$9:$I$9,Calculations!$C11:$I11))","v":0.31},{"$f":"IF(Engines!X5<>\"\",Engines!X5,LOOKUP(Calculations!D$45,Calculations!$C$9:$I$9,Calculations!$C11:$I11))","v":0.31},{"$f":"IF(Engines!Y5<>\"\",Engines!Y5,LOOKUP(Calculations!E$45,Calculations!$C$9:$I$9,Calculations!$C11:$I11))","v":0.31},{"$f":"IF(Engines!Z5<>\"\",Engines!Z5,LOOKUP(Calculations!F$45,Calculations!$C$9:$I$9,Calculations!$C11:$I11))","v":0.31},{"$f":"IF(Engines!AA5<>\"\",Engines!AA5,LOOKUP(Calculations!G$45,Calculations!$C$9:$I$9,Calculations!$C11:$I11))","v":0.31},{"$f":"IF(Engines!AB5<>\"\",Engines!AB5,LOOKUP(Calculations!H$45,Calculations!$C$9:$I$9,Calculations!$C11:$I11))","v":0.31},{"$f":"IF(Engines!AC5<>\"\",Engines!AC5,LOOKUP(Calculations!I$45,Calculations!$C$9:$I$9,Calculations!$C11:$I11))","v":0.31},{"$f":"IF(Engines!AD5<>\"\",Engines!AD5,LOOKUP(Calculations!J$45,Calculations!$C$9:$I$9,Calculations!$C11:$I11))","v":0.31},{"$f":"IF(Engines!AE5<>\"\",Engines!AE5,LOOKUP(Calculations!K$45,Calculations!$C$9:$I$9,Calculations!$C11:$I11))","v":0.31},{"$f":"IF(Engines!AF5<>\"\",Engines!AF5,LOOKUP(Calculations!L$45,Calculations!$C$9:$I$9,Calculations!$C11:$I11))","v":0.31},null,"PMfilterable",null,{"$f":"C46*$D$6*C$78","v":0},0,0,0,0,0,0,0,0,0,{"$f":"SUM(P46:Y46)","v":0},null,"PMfilterable",null,{"$f":"P46*C$79/2000","v":0},{"$f":"Q46*D$79/2000","v":0},0,{"$f":"S46*F$79/2000","v":0},0,0,0,0,0,0,{"$f":"SUM(AD46:AM46)","v":0}]
["PM10",null,{"$f":"IF(Engines!W6<>\"\",Engines!W6,LOOKUP(Calculations!C$45,Calculations!$C$9:$I$9,Calculations!$C12:$I12))","v":0.31},{"$f":"IF(Engines!X6<>\"\",Engines!X6,LOOKUP(Calculations!D$45,Calculations!$C$9:$I$9,Calculations!$C12:$I12))","v":0.31},{"$f":"IF(Engines!Y6<>\"\",Engines!Y6,LOOKUP(Calculations!E$45,Calculations!$C$9:$I$9,Calculations!$C12:$I12))","v":0.31},{"$f":"IF(Engines!Z6<>\"\",Engines!Z6,LOOKUP(Calculations!F$45,Calculations!$C$9:$I$9,Calculations!$C12:$I12))","v":0.31},{"$f":"IF(Engines!AA6<>\"\",Engines!AA6,LOOKUP(Calculations!G$45,Calculations!$C$9:$I$9,Calculations!$C12:$I12))","v":0.31},{"$f":"IF(Engines!AB6<>\"\",Engines!AB6,LOOKUP(Calculations!H$45,Calculations!$C$9:$I$9,Calculations!$C12:$I12))","v":0.31},{"$f":"IF(Engines!AC6<>\"\",Engines!AC6,LOOKUP(Calculations!I$45,Calculations!$C$9:$I$9,Calculations!$C12:$I12))","v":0.31},{"$f":"IF(Engines!AD6<>\"\",Engines!AD6,LOOKUP(Calculations!J$45,Calculations!$C$9:$I$9,Calculations!$C12:$I12))","v":0.31},{"$f":"IF(Engines!AE6<>\"\",Engines!AE6,LOOKUP(Calculations!K$45,Calculations!$C$9:$I$9,Calculations!$C12:$I12))","v":0.31},{"$f":"IF(Engines!AF6<>\"\",Engines!AF6,LOOKUP(Calculations!L$45,Calculations!$C$9:$I$9,Calculations!$C12:$I12))","v":0.31},null,"PM10",null,0,0,0,0,0,0,0,0,0,0,{"$f":"SUM(P47:Y47)","v":0},null,"PM10",null,{"$f":"P47*C$79/2000","v":0},{"$f":"Q47*D$79/2000","v":0},{"$f":"R47*E$79/2000","v":0},{"$f":"S47*F$79/2000","v":0},{"$f":"T47*G$79/2000","v":0},{"$f":"U47*H$79/2000","v":0},{"$f":"V47*I$79/2000","v":0},{"$f":"W47*J$79/2000","v":0},{"$f":"X47*K$79/2000","v":0},{"$f":"Y47*L$79/2000","v":0},{"$f":"SUM(AD47:AM47)","v":0}]
["PM2.5",null,{"$f":"IF(Engines!W7<>\"\",Engines!W7,LOOKUP(Calculations!C$45,Calculations!$C$9:$I$9,Calculations!$C13:$I13))","v":0.31},{"$f":"IF(Engines!X7<>\"\",Engines!X7,LOOKUP(Calculations!D$45,Calculations!$C$9:$I$9,Calculations!$C13:$I13))","v":0.31},{"$f":"IF(Engines!Y7<>\"\",Engines!Y7,LOOKUP(Calculations!E$45,Calculations!$C$9:$I$9,Calculations!$C13:$I13))","v":0.31},{"$f":"IF(Engines!Z7<>\"\",Engines!Z7,LOOKUP(Calculations!F$45,Calculations!$C$9:$I$9,Calculations!$C13:$I13))","v":0.31},{"$f":"IF(Engines!AA7<>\"\",Engines!AA7,LOOKUP(Calculations!G$45,Calculations!$C$9:$I$9,Calculations!$C13:$I13))","v":0.31},{"$f":"IF(Engines!AB7<>\"\",Engines!AB7,LOOKUP(Calculations!H$45,Calculations!$C$9:$I$9,Calculations!$C13:$I13))","v":0.31},{"$f":"IF(Engines!AC7<>\"\",Engines!AC7,LOOKUP(Calculations!I$45,Calculations!$C$9:$I$9,Calculations!$C13:$I13))","v":0.31},{"$f":"IF(Engines!AD7<>\"\",Engines!AD7,LOOKUP(Calculations!J$45,Calculations!$C$9:$I$9,Calculations!$C13:$I13))","v":0.31},{"$f":"IF(Engines!AE7<>\"\",Engines!AE7,LOOKUP(Calculations!K$45,Calculations!$C$9:$I$9,Calculations!$C13:$I13))","v":0.31},{"$f":"IF(Engines!AF7<>\"\",Engines!AF7,LOOKUP(Calculations!L$45,Calculations!$C$9:$I$9,Calculations!$C13:$I13))","v":0.31},null,"PM2.5",null,0,0,0,0,0,0,0,0,0,0,0,null,"PM2.5",null,0,0,0,0,0,0,0,0,0,0,0]
["SO2",null,{"$f":"IF(Engines!W8<>\"\",Engines!W8,LOOKUP(Calculations!C$45,Calculations!$C$9:$I$9,Calculations!$C14:$I14))","v":0.28999999999999998},{"$f":"IF(Engines!X8<>\"\",Engines!X8,LOOKUP(Calculations!D$45,Calculations!$C$9:$I$9,Calculations!$C14:$I14))","v":0.28999999999999998},{"$f":"IF(Engines!Y8<>\"\",Engines!Y8,LOOKUP(Calculations!E$45,Calculations!$C$9:$I$9,Calculations!$C14:$I14))","v":0.28999999999999998},{"$f":"IF(Engines!Z8<>\"\",Engines!Z8,LOOKUP(Calculations!F$45,Calculations!$C$9:$I$9,Calculations!$C14:$I14))","v":0.28999999999999998},{"$f":"IF(Engines!AA8<>\"\",Engines!AA8,LOOKUP(Calculations!G$45,Calculations!$C$9:$I$9,Calculations!$C14:$I14))","v":0.28999999999999998},{"$f":"IF(Engines!AB8<>\"\",Engines!AB8,LOOKUP(Calculations!H$45,Calculations!$C$9:$I$9,Calculations!$C14:$I14))","v":0.28999999999999998},{"$f":"IF(Engines!AC8<>\"\",Engines!AC8,LOOKUP(Calculations!I$45,Calculations!$C$9:$I$9,Calculations!$C14:$I14))","v":0.28999999999999998},{"$f":"IF(Engines!AD8<>\"\",Engines!AD8,LOOKUP(Calculations!J$45,Calculations!$C$9:$I$9,Calculations!$C14:$I14))","v":0.28999999999999998},{"$f":"IF(Engines!AE8<>\"\",Engines!AE8,LOOKUP(Calculations!K$45,Calculations!$C$9:$I$9,Calculations!$C14:$I14))","v":0.28999999999999998},{"$f":"IF(Engines!AF8<>\"\",Engines!AF8,LOOKUP(Calculations!L$45,Calculations!$C$9:$I$9,Calculations!$C14:$I14))","v":0.28999999999999998},null,"SO2",null,0,0,0,0,0,0,0,0,0,0,0,null,"SO2",null,0,0,0,0,0,0,0,0,0,0,0]
["NOx",null,{"$f":"IF(Engines!W9<>\"\",Engines!W9,LOOKUP(Calculations!C$45,Calculations!$C$9:$I$9,Calculations!$C15:$I15))","v":4.41},{"$f":"IF(Engines!X9<>\"\",Engines!X9,LOOKUP(Calculations!D$45,Calculations!$C$9:$I$9,Calculations!$C15:$I15))","v":4.41},{"$f":"IF(Engines!Y9<>\"\",Engines!Y9,LOOKUP(Calculations!E$45,Calculations!$C$9:$I$9,Calculations!$C15:$I15))","v":4.41},{"$f":"IF(Engines!Z9<>\"\",Engines!Z9,LOOKUP(Calculations!F$45,Calculations!$C$9:$I$9,Calculations!$C15:$I15))","v":4.41},{"$f":"IF(Engines!AA9<>\"\",Engines!AA9,LOOKUP(Calculations!G$45,Calculations!$C$9:$I$9,Calculations!$C15:$I15))","v":4.41},{"$f":"IF(Engines!AB9<>\"\",Engines!AB9,LOOKUP(Calculations!H$45,Calculations!$C$9:$I$9,Calculations!$C15:$I15))","v":4.41},{"$f":"IF(Engines!AC9<>\"\",Engines!AC9,LOOKUP(Calculations!I$45,Calculations!$C$9:$I$9,Calculations!$C15:$I15))","v":4.41},{"$f":"IF(Engines!AD9<>\"\",Engines!AD9,LOOKUP(Calculations!J$45,Calculations!$C$9:$I$9,Calculations!$C15:$I15))","v":4.41},{"$f":"IF(Engines!AE9<>\"\",Engines!AE9,LOOKUP(Calculations!K$45,Calculations!$C$9:$I$9,Calculations!$C15:$I15))","v":4.41},{"$f":"IF(Engines!AF9<>\"\",Engines!AF9,LOOKUP(Calculations!L$45,Calculations!$C$9:$I$9,Calculations!$C15:$I15))","v":4.41},null,"NOx",null,0,0,0,0,0,0,0,0,0,0,0,null,"NOx",null,0,0,0,0,0,0,0,0,0,0,0]
["CO",null,{"$f":"IF(Engines!W10<>\"\",Engines!W10,LOOKUP(Calculations!C$45,Calculations!$C$9:$I$9,Calculations!$C16:$I16))","v":0.95},{"$f":"IF(Engines!X10<>\"\",Engines!X10,LOOKUP(Calculations!D$45,Calculations!$C$9:$I$9,Calculations!$C16:$I16))","v":0.95},{"$f":"IF(Engines!Y10<>\"\",Engines!Y10,LOOKUP(Calculations!E$45,Calculations!$C$9:$I$9,Calculations!$C16:$I16))","v":0.95},{"$f":"IF(Engines!Z10<>\"\",Engines!Z10,LOOKUP(Calculations!F$45,Calculations!$C$9:$I$9,Calculations!$C16:$I16))","v":0.95},{"$f":"IF(Engines!AA10<>\"\",Engines!AA10,LOOKUP(Calculations!G$45,Calculations!$C$9:$I$9,Calculations!$C16:$I16))","v":0.95},{"$f":"IF(Engines!AB10<>\"\",Engines!AB10,LOOKUP(Calculations!H$45,Calculations!$C$9:$I$9,Calculations!$C16:$I16))","v":0.95},{"$f":"IF(Engines!AC10<>\"\",Engines!AC10,LOOKUP(Calculations!I$45,Calculations!$C$9:$I$9,Calculations!$C16:$I16))","v":0.95},{"$f":"IF(Engines!AD10<>\"\",Engines!AD10,LOOKUP(Calculations!J$45,Calculations!$C$9:$I$9,Calculations!$C16:$I16))","v":0.95},{"$f":"IF(Engines!AE10<>\"\",Engines!AE10,LOOKUP(Calculations!K$45,Calculations!$C$9:$I$9,Calculations!$C16:$I16))","v":0.95},{"$f":"IF(Engines!AF10<>\"\",Engines!AF10,LOOKUP(Calculations!L$45,Calculations!$C$9:$I$9,Calculations!$C16:$I16))","v":0.95},null,"CO",null,0,0,0,0,0,0,0,0,0,0,0,null,"CO",null,0,0,0,0,0,0,0,0,0,0,0]
["VOC",null,{"$f":"IF(Engines!W11<>\"\",Engines!W11,LOOKUP(Calculations!C$45,Calculations!$C$9:$I$9,Calculations!$C17:$I17))","v":0.36},{"$f":"IF(Engines!X11<>\"\",Engines!X11,LOOKUP(Calculations!D$45,Calculations!$C$9:$I$9,Calculations!$C17:$I17))","v":0.36},{"$f":"IF(Engines!Y11<>\"\",Engines!Y11,LOOKUP(Calculations!E$45,Calculations!$C$9:$I$9,Calculations!$C17:$I17))","v":0.36},{"$f":"IF(Engines!Z11<>\"\",Engines!Z11,LOOKUP(Calculations!F$45,Calculations!$C$9:$I$9,Calculations!$C17:$I17))","v":0.36},{"$f":"IF(Engines!AA11<>\"\",Engines!AA11,LOOKUP(Calculations!G$45,Calculations!$C$9:$I$9,Calculations!$C17:$I17))","v":0.36},{"$f":"IF(Engines!AB11<>\"\",Engines!AB11,LOOKUP(Calculations!H$45,Calculations!$C$9:$I$9,Calculations!$C17:$I17))","v":0.36},{"$f":"IF(Engines!AC11<>\"\",Engines!AC11,LOOKUP(Calculations!I$45,Calculations!$C$9:$I$9,Calculations!$C17:$I17))","v":0.36},{"$f":"IF(Engines!AD11<>\"\",Engines!AD11,LOOKUP(Calculations!J$45,Calculations!$C$9:$I$9,Calculations!$C17:$I17))","v":0.36},{"$f":"IF(Engines!AE11<>\"\",Engines!AE11,LOOKUP(Calculations!K$45,Calculations!$C$9:$I$9,Calculations!$C17:$I17))","v":0.36},{"$f":"IF(Engines!AF11<>\"\",Engines!AF11,LOOKUP(Calculations!L$45,Calculations!$C$9:$I$9,Calculations!$C17:$I17))","v":0.36},null,"VOC",null,0,0,0,0,0,0,0,0,0,0,0,null,"VOC",null,0,0,0,0,0,0,0,0,0,0,0]
["Individual HAP",null,null,null,null,null,null,null,null,null,null,null,null,"Individual HAP",null,null,null,null,null,null,null,null,null,null,null,null,null,"Individual HAP"]
["Acetaldehyde",null,{"$f":"IF(Engines!W13<>\"\",Engines!W13,LOOKUP(Calculations!C$45,Calculations!$C$9:$I$9,Calculations!$C19:$I19))","v":7.67E-4},{"$f":"IF(Engines!X13<>\"\",Engines!X13,LOOKUP(Calculations!D$45,Calculations!$C$9:$I$9,Calculations!$C19:$I19))","v":7.67E-4},{"$f":"IF(Engines!Y13<>\"\",Engines!Y13,LOOKUP(Calculations!E$45,Calculations!$C$9:$I$9,Calculations!$C19:$I19))","v":7.67E-4},{"$f":"IF(Engines!Z13<>\"\",Engines!Z13,LOOKUP(Calculations!F$45,Calculations!$C$9:$I$9,Calculations!$C19:$I19))","v":7.67E-4},{"$f":"IF(Engines!AA13<>\"\",Engines!AA13,LOOKUP(Calculations!G$45,Calculations!$C$9:$I$9,Calculations!$C19:$I19))","v":7.67E-4},{"$f":"IF(Engines!AB13<>\"\",Engines!AB13,LOOKUP(Calculations!H$45,Calculations!$C$9:$I$9,Calculations!$C19:$I19))","v":7.67E-4},{"$f":"IF(Engines!AC13<>\"\",Engines!AC13,LOOKUP(Calculations!I$45,Calculations!$C$9:$I$9,Calculations!$C19:$I19))","v":7.67E-4},{"$f":"IF(Engines!AD13<>\"\",Engines!AD13,LOOKUP(Calculations!J$45,Calculations!$C$9:$I$9,Calculations!$C19:$I19))","v":7.67E-4},{"$f":"IF(Engines!AE13<>\"\",Engines!AE13,LOOKUP(Calculations!K$45,Calculations!$C$9:$I$9,Calculations!$C19:$I19))","v":7.67E-4},{"$f":"IF(Engines!AF13<>\"\",Engines!AF13,LOOKUP(Calculations!L$45,Calculations!$C$9:$I$9,Calculations!$C19:$I19))","v":7.67E-4},null,"Acetaldehyde",null,{"$f":"C54*$D$6*C$78","v":0},{"$f":"D54*$D$6*D$78","v":0},{"$f":"E54*$D$6*E$78","v":0},{"$f":"F54*$D$6*F$78","v":0},{"$f":"G54*$D$6*G$78","v":0},{"$f":"H54*$D$6*H$78","v":0},{"$f":"I54*$D$6*I$78","v":0},{"$f":"J54*$D$6*J$78","v":0},{"$f":"K54*$D$6*K$78","v":0},{"$f":"L54*$D$6*L$78","v":0},0,null,"Acetaldehyde",null,{"$f":"P54*C$79/2000","v":0},{"$f":"Q54*D$79/2000","v":0},{"$f":"R54*E$79/2000","v":0},{"$f":"S54*F$79/2000","v":0},{"$f":"T54*G$79/2000","v":0},{"$f":"U54*H$79/2000","v":0},{"$f":"V54*I$79/2000","v":0},{"$f":"W54*J$79/2000","v":0},{"$f":"X54*K$79/2000","v":0},{"$f":"Y54*L$79/2000","v":0},{"$f":"SUM(AD54:AM54)","v":0}]
["Acrolein",null,{"$f":"IF(Engines!W14<>\"\",Engines!W14,LOOKUP(Calculations!C$45,Calculations!$C$9:$I$9,Calculations!$C20:$I20))","v":9.2499999999999999E-5},{"$f":"IF(Engines!X14<>\"\",Engines!X14,LOOKUP(Calculations!D$45,Calculations!$C$9:$I$9,Calculations!$C20:$I20))","v":9.2499999999999999E-5},{"$f":"IF(Engines!Y14<>\"\",Engines!Y14,LOOKUP(Calculations!E$45,Calculations!$C$9:$I$9,Calculations!$C20:$I20))","v":9.2499999999999999E-5},{"$f":"IF(Engines!Z14<>\"\",Engines!Z14,LOOKUP(Calculations!F$45,Calculations!$C$9:$I$9,Calculations!$C20:$I20))","v":9.2499999999999999E-5},{"$f":"IF(Engines!AA14<>\"\",Engines!AA14,LOOKUP(Calculations!G$45,Calculations!$C$9:$I$9,Calculations!$C20:$I20))","v":9.2499999999999999E-5},{"$f":"IF(Engines!AB14<>\"\",Engines!AB14,LOOKUP(Calculations!H$45,Calculations!$C$9:$I$9,Calculations!$C20:$I20))","v":9.2499999999999999E-5},{"$f":"IF(Engines!AC14<>\"\",Engines!AC14,LOOKUP(Calculations!I$45,Calculations!$C$9:$I$9,Calculations!$C20:$I20))","v":9.2499999999999999E-5},{"$f":"IF(Engines!AD14<>\"\",Engines!AD14,LOOKUP(Calculations!J$45,Calculations!$C$9:$I$9,Calculations!$C20:$I20))","v":9.2499999999999999E-5},{"$f":"IF(Engines!AE14<>\"\",Engines!AE14,LOOKUP(Calculations!K$45,Calculations!$C$9:$I$9,Calculations!$C20:$I20))","v":9.2499999999999999E-5},{"$f":"IF(Engines!AF14<>\"\",Engines!AF14,LOOKUP(Calculations!L$45,Calculations!$C$9:$I$9,Calculations!$C20:$I20))","v":9.2499999999999999E-5},null,"Acrolein",null,0,0,0,0,0,0,0,0,0,0,0,null,"Acrolein",null,0,0,0,0,0,0,0,0,0,0,0]
["Arsenic compounds",null,{"$f":"IF(Engines!W15<>\"\",Engines!W15,LOOKUP(Calculations!C$45,Calculations!$C$9:$I$9,Calculations!$C21:$I21))","v":0},{"$f":"IF(Engines!X15<>\"\",Engines!X15,LOOKUP(Calculations!D$45,Calculations!$C$9:$I$9,Calculations!$C21:$I21))","v":0},{"$f":"IF(Engines!Y15<>\"\",Engines!Y15,LOOKUP(Calculations!E$45,Calculations!$C$9:$I$9,Calculations!$C21:$I21))","v":0},{"$f":"IF(Engines!Z15<>\"\",Engines!Z15,LOOKUP(Calculations!F$45,Calculations!$C$9:$I$9,Calculations!$C21:$I21))","v":0},{"$f":"IF(Engines!AA15<>\"\",Engines!AA15,LOOKUP(Calculations!G$45,Calculations!$C$9:$I$9,Calculations!$C21:$I21))","v":0},{"$f":"IF(Engines!AB15<>\"\",Engines!AB15,LOOKUP(Calculations!H$45,Calculations!$C$9:$I$9,Calculations!$C21:$I21))","v":0},{"$f":"IF(Engines!AC15<>\"\",Engines!AC15,LOOKUP(Calculations!I$45,Calculations!$C$9:$I$9,Calculations!$C21:$I21))","v":0},{"$f":"IF(Engines!AD15<>\"\",Engines!AD15,LOOKUP(Calculations!J$45,Calculations!$C$9:$I$9,Calculations!$C21:$I21))","v":0},{"$f":"IF(Engines!AE15<>\"\",Engines!AE15,LOOKUP(Calculations!K$45,Calculations!$C$9:$I$9,Calculations!$C21:$I21))","v":0},{"$f":"IF(Engines!AF15<>\"\",Engines!AF15,LOOKUP(Calculations!L$45,Calculations!$C$9:$I$9,Calculations!$C21:$I21))","v":0},null,"Arsenic compounds",null,0,0,0,0,0,0,0,0,0,0,0,null,"Arsenic compounds",null,0,0,0,0,0,0,0,0,0,0,0]
["Benzene",null,{"$f":"IF(Engines!W16<>\"\",Engines!W16,LOOKUP(Calculations!C$45,Calculations!$C$9:$I$9,Calculations!$C22:$I22))","v":9.3300000000000002E-4},{"$f":"IF(Engines!X16<>\"\",Engines!X16,LOOKUP(Calculations!D$45,Calculations!$C$9:$I$9,Calculations!$C22:$I22))","v":9.3300000000000002E-4},{"$f":"IF(Engines!Y16<>\"\",Engines!Y16,LOOKUP(Calculations!E$45,Calculations!$C$9:$I$9,Calculations!$C22:$I22))","v":9.3300000000000002E-4},{"$f":"IF(Engines!Z16<>\"\",Engines!Z16,LOOKUP(Calculations!F$45,Calculations!$C$9:$I$9,Calculations!$C22:$I22))","v":9.3300000000000002E-4},{"$f":"IF(Engines!AA16<>\"\",Engines!AA16,LOOKUP(Calculations!G$45,Calculations!$C$9:$I$9,Calculations!$C22:$I22))","v":9.3300000000000002E-4},{"$f":"IF(Engines!AB16<>\"\",Engines!AB16,LOOKUP(Calculations!H$45,Calculations!$C$9:$I$9,Calculations!$C22:$I22))","v":9.3300000000000002E-4},{"$f":"IF(Engines!AC16<>\"\",Engines!AC16,LOOKUP(Calculations!I$45,Calculations!$C$9:$I$9,Calculations!$C22:$I22))","v":9.3300000000000002E-4},{"$f":"IF(Engines!AD16<>\"\",Engines!AD16,LOOKUP(Calculations!J$45,Calculations!$C$9:$I$9,Calculations!$C22:$I22))","v":9.3300000000000002E-4},{"$f":"IF(Engines!AE16<>\"\",Engines!AE16,LOOKUP(Calculations!K$45,Calculations!$C$9:$I$9,Calculations!$C22:$I22))","v":9.3300000000000002E-4},{"$f":"IF(Engines!AF16<>\"\",Engines!AF16,LOOKUP(Calculations!L$45,Calculations!$C$9:$I$9,Calculations!$C22:$I22))","v":9.3300000000000002E-4},null,"Benzene",null,0,0,0,0,0,0,0,0,0,0,0,null,"Benzene",null,0,0,0,0,0,0,0,0,0,0,0]
["Benzyl chloride",null,{"$f":"IF(Engines!W17<>\"\",Engines!W17,LOOKUP(Calculations!C$45,Calculations!$C$9:$I$9,Calculations!$C23:$I23))","v":0},{"$f":"IF(Engines!X17<>\"\",Engines!X17,LOOKUP(Calculations!D$45,Calculations!$C$9:$I$9,Calculations!$C23:$I23))","v":0},{"$f":"IF(Engines!Y17<>\"\",Engines!Y17,LOOKUP(Calculations!E$45,Calculations!$C$9:$I$9,Calculations!$C23:$I23))","v":0},{"$f":"IF(Engines!Z17<>\"\",Engines!Z17,LOOKUP(Calculations!F$45,Calculations!$C$9:$I$9,Calculations!$C23:$I23))","v":0},{"$f":"IF(Engines!AA17<>\"\",Engines!AA17,LOOKUP(Calculations!G$45,Calculations!$C$9:$I$9,Calculations!$C23:$I23))","v":0},{"$f":"IF(Engines!AB17<>\"\",Engines!AB17,LOOKUP(Calculations!H$45,Calculations!$C$9:$I$9,Calculations!$C23:$I23))","v":0},{"$f":"IF(Engines!AC17<>\"\",Engines!AC17,LOOKUP(Calculations!I$45,Calculations!$C$9:$I$9,Calculations!$C23:$I23))","v":0},{"$f":"IF(Engines!AD17<>\"\",Engines!AD17,LOOKUP(Calculations!J$45,Calculations!$C$9:$I$9,Calculations!$C23:$I23))","v":0},{"$f":"IF(Engines!AE17<>\"\",Engines!AE17,LOOKUP(Calculations!K$45,Calculations!$C$9:$I$9,Calculations!$C23:$I23))","v":0},{"$f":"IF(Engines!AF17<>\"\",Engines!AF17,LOOKUP(Calculations!L$45,Calculations!$C$9:$I$9,Calculations!$C23:$I23))","v":0},null,"Benzyl chloride",null,0,0,0,0,0,0,0,0,0,0,0,null,"Benzyl chloride",null,0,0,0,0,0,0,0,0,0,0,0]
["Beryllium compounds",null,{"$f":"IF(Engines!W18<>\"\",Engines!W18,LOOKUP(Calculations!C$45,Calculations!$C$9:$I$9,Calculations!$C24:$I24))","v":0},{"$f":"IF(Engines!X18<>\"\",Engines!X18,LOOKUP(Calculations!D$45,Calculations!$C$9:$I$9,Calculations!$C24:$I24))","v":0},{"$f":"IF(Engines!Y18<>\"\",Engines!Y18,LOOKUP(Calculations!E$45,Calculations!$C$9:$I$9,Calculations!$C24:$I24))","v":0},{"$f":"IF(Engines!Z18<>\"\",Engines!Z18,LOOKUP(Calculations!F$45,Calculations!$C$9:$I$9,Calculations!$C24:$I24))","v":0},{"$f":"IF(Engines!AA18<>\"\",Engines!AA18,LOOKUP(Calculations!G$45,Calculations!$C$9:$I$9,Calculations!$C24:$I24))","v":0},{"$f":"IF(Engines!AB18<>\"\",Engines!AB18,LOOKUP(Calculations!H$45,Calculations!$C$9:$I$9,Calculations!$C24:$I24))","v":0},{"$f":"IF(Engines!AC18<>\"\",Engines!AC18,LOOKUP(Calculations!I$45,Calculations!$C$9:$I$9,Calculations!$C24:$I24))","v":0},{"$f":"IF(Engines!AD18<>\"\",Engines!AD18,LOOKUP(Calculations!J$45,Calculations!$C$9:$I$9,Calculations!$C24:$I24))","v":0},{"$f":"IF(Engines!AE18<>\"\",Engines!AE18,LOOKUP(Calculations!K$45,Calculations!$C$9:$I$9,Calculations!$C24:$I24))","v":0},{"$f":"IF(Engines!AF18<>\"\",Engines!AF18,LOOKUP(Calculations!L$45,Calculations!$C$9:$I$9,Calculations!$C24:$I24))","v":0},null,"Beryllium compounds",null,0,0,0,0,0,0,0,0,0,0,0,null,"Beryllium compounds",null,0,0,0,0,0,0,0,0,0,0,0]
["Cadmium compounds",null,{"$f":"IF(Engines!W19<>\"\",Engines!W19,LOOKUP(Calculations!C$45,Calculations!$C$9:$I$9,Calculations!$C25:$I25))","v":0},{"$f":"IF(Engines!X19<>\"\",Engines!X19,LOOKUP(Calculations!D$45,Calculations!$C$9:$I$9,Calculations!$C25:$I25))","v":0},{"$f":"IF(Engines!Y19<>\"\",Engines!Y19,LOOKUP(Calculations!E$45,Calculations!$C$9:$I$9,Calculations!$C25:$I25))","v":0},{"$f":"IF(Engines!Z19<>\"\",Engines!Z19,LOOKUP(Calculations!F$45,Calculations!$C$9:$I$9,Calculations!$C25:$I25))","v":0},{"$f":"IF(Engines!AA19<>\"\",Engines!AA19,LOOKUP(Calculations!G$45,Calculations!$C$9:$I$9,Calculations!$C25:$I25))","v":0},{"$f":"IF(Engines!AB19<>\"\",Engines!AB19,LOOKUP(Calculations!H$45,Calculations!$C$9:$I$9,Calculations!$C25:$I25))","v":0},{"$f":"IF(Engines!AC19<>\"\",Engines!AC19,LOOKUP(Calculations!I$45,Calculations!$C$9:$I$9,Calculations!$C25:$I25))","v":0},{"$f":"IF(Engines!AD19<>\"\",Engines!AD19,LOOKUP(Calculations!J$45,Calculations!$C$9:$I$9,Calculations!$C25:$I25))","v":0},{"$f":"IF(Engines!AE19<>\"\",Engines!AE19,LOOKUP(Calculations!K$45,Calculations!$C$9:$I$9,Calculations!$C25:$I25))","v":0},{"$f":"IF(Engines!AF19<>\"\",Engines!AF19,LOOKUP(Calculations!L$45,Calculations!$C$9:$I$9,Calculations!$C25:$I25))","v":0},null,"Cadmium compounds",null,0,0,0,0,0,0,0,0,0,0,0,null,"Cadmium compounds",null,0,0,0,0,0,0,0,0,0,0,0]
["Cyanide compounds",null,{"$f":"IF(Engines!W20<>\"\",Engines!W20,LOOKUP(Calculations!C$45,Calculations!$C$9:$I$9,Calculations!$C26:$I26))","v":0},{"$f":"IF(Engines!X20<>\"\",Engines!X20,LOOKUP(Calculations!D$45,Calculations!$C$9:$I$9,Calculations!$C26:$I26))","v":0},{"$f":"IF(Engines!Y20<>\"\",Engines!Y20,LOOKUP(Calculations!E$45,Calculations!$C$9:$I$9,Calculations!$C26:$I26))","v":0},{"$f":"IF(Engines!Z20<>\"\",Engines!Z20,LOOKUP(Calculations!F$45,Calculations!$C$9:$I$9,Calculations!$C26:$I26))","v":0},{"$f":"IF(Engines!AA20<>\"\",Engines!AA20,LOOKUP(Calculations!G$45,Calculations!$C$9:$I$9,Calculations!$C26:$I26))","v":0},{"$f":"IF(Engines!AB20<>\"\",Engines!AB20,LOOKUP(Calculations!H$45,Calculations!$C$9:$I$9,Calculations!$C26:$I26))","v":0},{"$f":"IF(Engines!AC20<>\"\",Engines!AC20,LOOKUP(Calculations!I$45,Calculations!$C$9:$I$9,Calculations!$C26:$I26))","v":0},{"$f":"IF(Engines!AD20<>\"\",Engines!AD20,LOOKUP(Calculations!J$45,Calculations!$C$9:$I$9,Calculations!$C26:$I26))","v":0},{"$f":"IF(Engines!AE20<>\"\",Engines!AE20,LOOKUP(Calculations!K$45,Calculations!$C$9:$I$9,Calculations!$C26:$I26))","v":0},{"$f":"IF(Engines!AF20<>\"\",Engines!AF20,LOOKUP(Calculations!L$45,Calculations!$C$9:$I$9,Calculations!$C26:$I26))","v":0},null,"Cyanide compounds",null,0,0,0,0,0,0,0,0,0,0,0,null,"Cyanide compounds",null,0,0,0,0,0,0,0,0,0,0,0]
["Formaldehyde",null,{"$f":"IF(Engines!W21<>\"\",Engines!W21,LOOKUP(Calculations!C$45,Calculations!$C$9:$I$9,Calculations!$C27:$I27))","v":1.1800000000000001E-3},{"$f":"IF(Engines!X21<>\"\",Engines!X21,LOOKUP(Calculations!D$45,Calculations!$C$9:$I$9,Calculations!$C27:$I27))","v":1.1800000000000001E-3},{"$f":"IF(Engines!Y21<>\"\",Engines!Y21,LOOKUP(Calculations!E$45,Calculations!$C$9:$I$9,Calculations!$C27:$I27))","v":1.1800000000000001E-3},{"$f":"IF(Engines!Z21<>\"\",Engines!Z21,LOOKUP(Calculations!F$45,Calculations!$C$9:$I$9,Calculations!$C27:$I27))","v":1.1800000000000001E-3},{"$f":"IF(Engines!AA21<>\"\",Engines!AA21,LOOKUP(Calculations!G$45,Calculations!$C$9:$I$9,Calculations!$C27:$I27))","v":1.1800000000000001E-3},{"$f":"IF(Engines!AB21<>\"\",Engines!AB21,LOOKUP(Calculations!H$45,Calculations!$C$9:$I$9,Calculations!$C27:$I27))","v":1.1800000000000001E-3},{"$f":"IF(Engines!AC21<>\"\",Engines!AC21,LOOKUP(Calculations!I$45,Calculations!$C$9:$I$9,Calculations!$C27:$I27))","v":1.1800000000000001E-3},{"$f":"IF(Engines!AD21<>\"\",Engines!AD21,LOOKUP(Calculations!J$45,Calculations!$C$9:$I$9,Calculations!$C27:$I27))","v":1.1800000000000001E-3},{"$f":"IF(Engines!AE21<>\"\",Engines!AE21,LOOKUP(Calculations!K$45,Calculations!$C$9:$I$9,Calculations!$C27:$I27))","v":1.1800000000000001E-3},{"$f":"IF(Engines!AF21<>\"\",Engines!AF21,LOOKUP(Calculations!L$45,Calculations!$C$9:$I$9,Calculations!$C27:$I27))","v":1.1800000000000001E-3},null,"Formaldehyde",null,0,0,0,0,0,0,0,0,0,0,0,null,"Formaldehyde",null,0,0,0,0,0,0,0,0,0,0,0]
["n-Hexane",null,{"$f":"IF(Engines!W22<>\"\",Engines!W22,LOOKUP(Calculations!C$45,Calculations!$C$9:$I$9,Calculations!$C28:$I28))","v":0},{"$f":"IF(Engines!X22<>\"\",Engines!X22,LOOKUP(Calculations!D$45,Calculations!$C$9:$I$9,Calculations!$C28:$I28))","v":0},{"$f":"IF(Engines!Y22<>\"\",Engines!Y22,LOOKUP(Calculations!E$45,Calculations!$C$9:$I$9,Calculations!$C28:$I28))","v":0},{"$f":"IF(Engines!Z22<>\"\",Engines!Z22,LOOKUP(Calculations!F$45,Calculations!$C$9:$I$9,Calculations!$C28:$I28))","v":0},{"$f":"IF(Engines!AA22<>\"\",Engines!AA22,LOOKUP(Calculations!G$45,Calculations!$C$9:$I$9,Calculations!$C28:$I28))","v":0},{"$f":"IF(Engines!AB22<>\"\",Engines!AB22,LOOKUP(Calculations!H$45,Calculations!$C$9:$I$9,Calculations!$C28:$I28))","v":0},{"$f":"IF(Engines!AC22<>\"\",Engines!AC22,LOOKUP(Calculations!I$45,Calculations!$C$9:$I$9,Calculations!$C28:$I28))","v":0},{"$f":"IF(Engines!AD22<>\"\",Engines!AD22,LOOKUP(Calculations!J$45,Calculations!$C$9:$I$9,Calculations!$C28:$I28))","v":0},{"$f":"IF(Engines!AE22<>\"\",Engines!AE22,LOOKUP(Calculations!K$45,Calculations!$C$9:$I$9,Calculations!$C28:$I28))","v":0},{"$f":"IF(Engines!AF22<>\"\",Engines!AF22,LOOKUP(Calculations!L$45,Calculations!$C$9:$I$9,Calculations!$C28:$I28))","v":0},null,"n-Hexane",null,0,0,0,0,0,0,0,0,0,0,0,null,"n-Hexane",null,0,0,0,0,0,0,0,0,0,0,0]
["Hydrochloric acid",null,{"$f":"IF(Engines!W23<>\"\",Engines!W23,LOOKUP(Calculations!C$45,Calculations!$C$9:$I$9,Calculations!$C29:$I29))","v":0},{"$f":"IF(Engines!X23<>\"\",Engines!X23,LOOKUP(Calculations!D$45,Calculations!$C$9:$I$9,Calculations!$C29:$I29))","v":0},{"$f":"IF(Engines!Y23<>\"\",Engines!Y23,LOOKUP(Calculations!E$45,Calculations!$C$9:$I$9,Calculations!$C29:$I29))","v":0},{"$f":"IF(Engines!Z23<>\"\",Engines!Z23,LOOKUP(Calculations!F$45,Calculations!$C$9:$I$9,Calculations!$C29:$I29))","v":0},{"$f":"IF(Engines!AA23<>\"\",Engines!AA23,LOOKUP(Calculations!G$45,Calculations!$C$9:$I$9,Calculations!$C29:$I29))","v":0},{"$f":"IF(Engines!AB23<>\"\",Engines!AB23,LOOKUP(Calculations!H$45,Calculations!$C$9:$I$9,Calculations!$C29:$I29))","v":0},{"$f":"IF(Engines!AC23<>\"\",Engines!AC23,LOOKUP(Calculations!I$45,Calculations!$C$9:$I$9,Calculations!$C29:$I29))","v":0},{"$f":"IF(Engines!AD23<>\"\",Engines!AD23,LOOKUP(Calculations!J$45,Calculations!$C$9:$I$9,Calculations!$C29:$I29))","v":0},{"$f":"IF(Engines!AE23<>\"\",Engines!AE23,LOOKUP(Calculations!K$45,Calculations!$C$9:$I$9,Calculations!$C29:$I29))","v":0},{"$f":"IF(Engines!AF23<>\"\",Engines!AF23,LOOKUP(Calculations!L$45,Calculations!$C$9:$I$9,Calculations!$C29:$I29))","v":0},null,"Hydrochloric acid",null,0,0,0,0,0,0,0,0,0,0,0,null,"Hydrochloric acid",null,0,0,0,0,0,0,0,0,0,0,0]
["Lead Compounds",null,{"$f":"IF(Engines!W24<>\"\",Engines!W24,LOOKUP(Calculations!C$45,Calculations!$C$9:$I$9,Calculations!$C30:$I30))","v":0},{"$f":"IF(Engines!X24<>\"\",Engines!X24,LOOKUP(Calculations!D$45,Calculations!$C$9:$I$9,Calculations!$C30:$I30))","v":0},{"$f":"IF(Engines!Y24<>\"\",Engines!Y24,LOOKUP(Calculations!E$45,Calculations!$C$9:$I$9,Calculations!$C30:$I30))","v":0},{"$f":"IF(Engines!Z24<>\"\",Engines!Z24,LOOKUP(Calculations!F$45,Calculations!$C$9:$I$9,Calculations!$C30:$I30))","v":0},{"$f":"IF(Engines!AA24<>\"\",Engines!AA24,LOOKUP(Calculations!G$45,Calculations!$C$9:$I$9,Calculations!$C30:$I30))","v":0},{"$f":"IF(Engines!AB24<>\"\",Engines!AB24,LOOKUP(Calculations!H$45,Calculations!$C$9:$I$9,Calculations!$C30:$I30))","v":0},{"$f":"IF(Engines!AC24<>\"\",Engines!AC24,LOOKUP(Calculations!I$45,Calculations!$C$9:$I$9,Calculations!$C30:$I30))","v":0},{"$f":"IF(Engines!AD24<>\"\",Engines!AD24,LOOKUP(Calculations!J$45,Calculations!$C$9:$I$9,Calculations!$C30:$I30))","v":0},{"$f":"IF(Engines!AE24<>\"\",Engines!AE24,LOOKUP(Calculations!K$45,Calculations!$C$9:$I$9,Calculations!$C30:$I30))","v":0},{"$f":"IF(Engines!AF24<>\"\",Engines!AF24,LOOKUP(Calculations!L$45,Calculations!$C$9:$I$9,Calculations!$C30:$I30))","v":0},null,"Lead Compounds",null,0,0,0,0,0,0,0,0,0,0,0,null,"Lead Compounds",null,0,0,0,0,0,0,0,0,0,0,0]
["Mercury compounds",null,{"$f":"IF(Engines!W25<>\"\",Engines!W25,LOOKUP(Calculations!C$45,Calculations!$C$9:$I$9,Calculations!$C31:$I31))","v":0},{"$f":"IF(Engines!X25<>\"\",Engines!X25,LOOKUP(Calculations!D$45,Calculations!$C$9:$I$9,Calculations!$C31:$I31))","v":0},{"$f":"IF(Engines!Y25<>\"\",Engines!Y25,LOOKUP(Calculations!E$45,Calculations!$C$9:$I$9,Calculations!$C31:$I31))","v":0},{"$f":"IF(Engines!Z25<>\"\",Engines!Z25,LOOKUP(Calculations!F$45,Calculations!$C$9:$I$9,Calculations!$C31:$I31))","v":0},{"$f":"IF(Engines!AA25<>\"\",Engines!AA25,LOOKUP(Calculations!G$45,Calculations!$C$9:$I$9,Calculations!$C31:$I31))","v":0},{"$f":"IF(Engines!AB25<>\"\",Engines!AB25,LOOKUP(Calculations!H$45,Calculations!$C$9:$I$9,Calculations!$C31:$I31))","v":0},{"$f":"IF(Engines!AC25<>\"\",Engines!AC25,LOOKUP(Calculations!I$45,Calculations!$C$9:$I$9,Calculations!$C31:$I31))","v":0},{"$f":"IF(Engines!AD25<>\"\",Engines!AD25,LOOKUP(Calculations!J$45,Calculations!$C$9:$I$9,Calculations!$C31:$I31))","v":0},{"$f":"IF(Engines!AE25<>\"\",Engines!AE25,LOOKUP(Calculations!K$45,Calculations!$C$9:$I$9,Calculations!$C31:$I31))","v":0},{"$f":"IF(Engines!AF25<>\"\",Engines!AF25,LOOKUP(Calculations!L$45,Calculations!$C$9:$I$9,Calculations!$C31:$I31))","v":0},null,"Mercury compounds",null,0,0,0,0,0,0,0,0,0,0,0,null,"Mercury compounds",null,0,0,0,0,0,0,0,0,0,0,0]
["Methanol",null,{"$f":"IF(Engines!W26<>\"\",Engines!W26,LOOKUP(Calculations!C$45,Calculations!$C$9:$I$9,Calculations!$C32:$I32))","v":0},{"$f":"IF(Engines!X26<>\"\",Engines!X26,LOOKUP(Calculations!D$45,Calculations!$C$9:$I$9,Calculations!$C32:$I32))","v":0},{"$f":"IF(Engines!Y26<>\"\",Engines!Y26,LOOKUP(Calculations!E$45,Calculations!$C$9:$I$9,Calculations!$C32:$I32))","v":0},{"$f":"IF(Engines!Z26<>\"\",Engines!Z26,LOOKUP(Calculations!F$45,Calculations!$C$9:$I$9,Calculations!$C32:$I32))","v":0},{"$f":"IF(Engines!AA26<>\"\",Engines!AA26,LOOKUP(Calculations!G$45,Calculations!$C$9:$I$9,Calculations!$C32:$I32))","v":0},{"$f":"IF(Engines!AB26<>\"\",Engines!AB26,LOOKUP(Calculations!H$45,Calculations!$C$9:$I$9,Calculations!$C32:$I32))","v":0},{"$f":"IF(Engines!AC26<>\"\",Engines!AC26,LOOKUP(Calculations!I$45,Calculations!$C$9:$I$9,Calculations!$C32:$I32))","v":0},{"$f":"IF(Engines!AD26<>\"\",Engines!AD26,LOOKUP(Calculations!J$45,Calculations!$C$9:$I$9,Calculations!$C32:$I32))","v":0},{"$f":"IF(Engines!AE26<>\"\",Engines!AE26,LOOKUP(Calculations!K$45,Calculations!$C$9:$I$9,Calculations!$C32:$I32))","v":0},{"$f":"IF(Engines!AF26<>\"\",Engines!AF26,LOOKUP(Calculations!L$45,Calculations!$C$9:$I$9,Calculations!$C32:$I32))","v":0},null,"Methanol",null,0,0,0,0,0,0,0,0,0,0,0,null,"Methanol",null,0,0,0,0,0,0,0,0,0,0,0]
["Methyl hydrazine",null,{"$f":"IF(Engines!W27<>\"\",Engines!W27,LOOKUP(Calculations!C$45,Calculations!$C$9:$I$9,Calculations!$C33:$I33))","v":0},{"$f":"IF(Engines!X27<>\"\",Engines!X27,LOOKUP(Calculations!D$45,Calculations!$C$9:$I$9,Calculations!$C33:$I33))","v":0},{"$f":"IF(Engines!Y27<>\"\",Engines!Y27,LOOKUP(Calculations!E$45,Calculations!$C$9:$I$9,Calculations!$C33:$I33))","v":0},{"$f":"IF(Engines!Z27<>\"\",Engines!Z27,LOOKUP(Calculations!F$45,Calculations!$C$9:$I$9,Calculations!$C33:$I33))","v":0},{"$f":"IF(Engines!AA27<>\"\",Engines!AA27,LOOKUP(Calculations!G$45,Calculations!$C$9:$I$9,Calculations!$C33:$I33))","v":0},{"$f":"IF(Engines!AB27<>\"\",Engines!AB27,LOOKUP(Calculations!H$45,Calculations!$C$9:$I$9,Calculations!$C33:$I33))","v":0},{"$f":"IF(Engines!AC27<>\"\",Engines!AC27,LOOKUP(Calculations!I$45,Calculations!$C$9:$I$9,Calculations!$C33:$I33))","v":0},{"$f":"IF(Engines!AD27<>\"\",Engines!AD27,LOOKUP(Calculations!J$45,Calculations!$C$9:$I$9,Calculations!$C33:$I33))","v":0},{"$f":"IF(Engines!AE27<>\"\",Engines!AE27,LOOKUP(Calculations!K$45,Calculations!$C$9:$I$9,Calculations!$C33:$I33))","v":0},{"$f":"IF(Engines!AF27<>\"\",Engines!AF27,LOOKUP(Calculations!L$45,Calculations!$C$9:$I$9,Calculations!$C33:$I33))","v":0},null,"Methyl hydrazine",null,0,0,0,0,0,0,0,0,0,0,0,null,"Methyl hydrazine",null,0,0,0,0,0,0,0,0,0,0,0]
["Selenium compounds",null,{"$f":"IF(Engines!W28<>\"\",Engines!W28,LOOKUP(Calculations!C$45,Calculations!$C$9:$I$9,Calculations!$C34:$I34))","v":0},{"$f":"IF(Engines!X28<>\"\",Engines!X28,LOOKUP(Calculations!D$45,Calculations!$C$9:$I$9,Calculations!$C34:$I34))","v":0},{"$f":"IF(Engines!Y28<>\"\",Engines!Y28,LOOKUP(Calculations!E$45,Calculations!$C$9:$I$9,Calculations!$C34:$I34))","v":0},{"$f":"IF(Engines!Z28<>\"\",Engines!Z28,LOOKUP(Calculations!F$45,Calculations!$C$9:$I$9,Calculations!$C34:$I34))","v":0},{"$f":"IF(Engines!AA28<>\"\",Engines!AA28,LOOKUP(Calculations!G$45,Calculations!$C$9:$I$9,Calculations!$C34:$I34))","v":0},{"$f":"IF(Engines!AB28<>\"\",Engines!AB28,LOOKUP(Calculations!H$45,Calculations!$C$9:$I$9,Calculations!$C34:$I34))","v":0},{"$f":"IF(Engines!AC28<>\"\",Engines!AC28,LOOKUP(Calculations!I$45,Calculations!$C$9:$I$9,Calculations!$C34:$I34))","v":0},{"$f":"IF(Engines!AD28<>\"\",Engines!AD28,LOOKUP(Calculations!J$45,Calculations!$C$9:$I$9,Calculations!$C34:$I34))","v":0},{"$f":"IF(Engines!AE28<>\"\",Engines!AE28,LOOKUP(Calculations!K$45,Calculations!$C$9:$I$9,Calculations!$C34:$I34))","v":0},{"$f":"IF(Engines!AF28<>\"\",Engines!AF28,LOOKUP(Calculations!L$45,Calculations!$C$9:$I$9,Calculations!$C34:$I34))","v":0},null,"Selenium compounds",null,0,0,0,0,0,0,0,0,0,0,0,null,"Selenium compounds",null,0,0,0,0,0,0,0,0,0,0,0]
["Other HAPs",null,{"$f":"IF(Engines!W29<>\"\",Engines!W29,LOOKUP(Calculations!C$45,Calculations!$C$9:$I$9,Calculations!$C35:$I35))","v":9.0109999999999995E-4},{"$f":"IF(Engines!X29<>\"\",Engines!X29,LOOKUP(Calculations!D$45,Calculations!$C$9:$I$9,Calculations!$C35:$I35))","v":9.0109999999999995E-4},{"$f":"IF(Engines!Y29<>\"\",Engines!Y29,LOOKUP(Calculations!E$45,Calculations!$C$9:$I$9,Calculations!$C35:$I35))","v":9.0109999999999995E-4},{"$f":"IF(Engines!Z29<>\"\",Engines!Z29,LOOKUP(Calculations!F$45,Calculations!$C$9:$I$9,Calculations!$C35:$I35))","v":9.0109999999999995E-4},{"$f":"IF(Engines!AA29<>\"\",Engines!AA29,LOOKUP(Calculations!G$45,Calculations!$C$9:$I$9,Calculations!$C35:$I35))","v":9.0109999999999995E-4},{"$f":"IF(Engines!AB29<>\"\",Engines!AB29,LOOKUP(Calculations!H$45,Calculations!$C$9:$I$9,Calculations!$C35:$I35))","v":9.0109999999999995E-4},{"$f":"IF(Engines!AC29<>\"\",Engines!AC29,LOOKUP(Calculations!I$45,Calculations!$C$9:$I$9,Calculations!$C35:$I35))","v":9.0109999999999995E-4},{"$f":"IF(Engines!AD29<>\"\",Engines!AD29,LOOKUP(Calculations!J$45,Calculations!$C$9:$I$9,Calculations!$C35:$I35))","v":9.0109999999999995E-4},{"$f":"IF(Engines!AE29<>\"\",Engines!AE29,LOOKUP(Calculations!K$45,Calculations!$C$9:$I$9,Calculations!$C35:$I35))","v":9.0109999999999995E-4},{"$f":"IF(Engines!AF29<>\"\",Engines!AF29,LOOKUP(Calculations!L$45,Calculations!$C$9:$I$9,Calculations!$C35:$I35))","v":9.0109999999999995E-4},null,"Other HAPs",null,0,0,0,0,0,0,0,0,0,0,0,null,"Other HAPs",null,0,0,0,0,0,0,0,0,0,0,0]
["Total HAPs",null,{"$f":"IF(Engines!W30<>\"\",Engines!W30,LOOKUP(Calculations!C$45,Calculations!$C$9:$I$9,Calculations!$C36:$I36))","v":3.8736000000000005E-3},{"$f":"IF(Engines!X30<>\"\",Engines!X30,LOOKUP(Calculations!D$45,Calculations!$C$9:$I$9,Calculations!$C36:$I36))","v":3.8736000000000005E-3},{"$f":"IF(Engines!Y30<>\"\",Engines!Y30,LOOKUP(Calculations!E$45,Calculations!$C$9:$I$9,Calculations!$C36:$I36))","v":3.8736000000000005E-3},{"$f":"IF(Engines!Z30<>\"\",Engines!Z30,LOOKUP(Calculations!F$45,Calculations!$C$9:$I$9,Calculations!$C36:$I36))","v":3.8736000000000005E-3},{"$f":"IF(Engines!AA30<>\"\",Engines!AA30,LOOKUP(Calculations!G$45,Calculations!$C$9:$I$9,Calculations!$C36:$I36))","v":3.8736000000000005E-3},{"$f":"IF(Engines!AB30<>\"\",Engines!AB30,LOOKUP(Calculations!H$45,Calculations!$C$9:$I$9,Calculations!$C36:$I36))","v":3.8736000000000005E-3},{"$f":"IF(Engines!AC30<>\"\",Engines!AC30,LOOKUP(Calculations!I$45,Calculations!$C$9:$I$9,Calculations!$C36:$I36))","v":3.8736000000000005E-3},{"$f":"IF(Engines!AD30<>\"\",Engines!AD30,LOOKUP(Calculations!J$45,Calculations!$C$9:$I$9,Calculations!$C36:$I36))","v":3.8736000000000005E-3},{"$f":"IF(Engines!AE30<>\"\",Engines!AE30,LOOKUP(Calculations!K$45,Calculations!$C$9:$I$9,Calculations!$C36:$I36))","v":3.8736000000000005E-3},{"$f":"IF(Engines!AF30<>\"\",Engines!AF30,LOOKUP(Calculations!L$45,Calculations!$C$9:$I$9,Calculations!$C36:$I36))","v":3.8736000000000005E-3},null,"Total HAPs",null,0,0,0,0,0,0,0,0,0,0,0,null,"Total HAPs",null,0,0,0,0,0,0,0,0,0,0,0]
["Green House Gasses",null,null,null,null,null,null,null,null,null,null,null,null,"Green House Gasses",null,null,null,null,null,null,null,null,null,null,null,null,null,"Green House Gasses"]
["  Carbon Dioxide (CO2)",null,{"$f":"IF(Engines!W32<>\"\",Engines!W32,LOOKUP(Calculations!C$45,Calculations!$C$9:$I$9,Calculations!$C38:$I38))","v":73.959999999999994},{"$f":"IF(Engines!X32<>\"\",Engines!X32,LOOKUP(Calculations!D$45,Calculations!$C$9:$I$9,Calculations!$C38:$I38))","v":73.959999999999994},{"$f":"IF(Engines!Y32<>\"\",Engines!Y32,LOOKUP(Calculations!E$45,Calculations!$C$9:$I$9,Calculations!$C38:$I38))","v":73.959999999999994},{"$f":"IF(Engines!Z32<>\"\",Engines!Z32,LOOKUP(Calculations!F$45,Calculations!$C$9:$I$9,Calculations!$C38:$I38))","v":73.959999999999994},{"$f":"IF(Engines!AA32<>\"\",Engines!AA32,LOOKUP(Calculations!G$45,Calculations!$C$9:$I$9,Calculations!$C38:$I38))","v":73.959999999999994},{"$f":"IF(Engines!AB32<>\"\",Engines!AB32,LOOKUP(Calculations!H$45,Calculations!$C$9:$I$9,Calculations!$C38:$I38))","v":73.959999999999994},{"$f":"IF(Engines!AC32<>\"\",Engines!AC32,LOOKUP(Calculations!I$45,Calculations!$C$9:$I$9,Calculations!$C38:$I38))","v":73.959999999999994},{"$f":"IF(Engines!AD32<>\"\",Engines!AD32,LOOKUP(Calculations!J$45,Calculations!$C$9:$I$9,Calculations!$C38:$I38))","v":73.959999999999994},{"$f":"IF(Engines!AE32<>\"\",Engines!AE32,LOOKUP(Calculations!K$45,Calculations!$C$9:$I$9,Calculations!$C38:$I38))","v":73.959999999999994},{"$f":"IF(Engines!AF32<>\"\",Engines!AF32,LOOKUP(Calculations!L$45,Calculations!$C$9:$I$9,Calculations!$C38:$I38))","v":73.959999999999994},null,"  Carbon Dioxide (CO2)",null,{"$f":"C73*$D$6*C$78*2.20462","v":0},0,0,0,0,0,0,0,0,0,0,null,"  Carbon Dioxide (CO2)",null,{"$f":"P73*C$79/2000","v":0},{"$f":"Q73*D$79/2000","v":0},{"$f":"R73*E$79/2000","v":0},{"$f":"S73*F$79/2000","v":0},{"$f":"T73*G$79/2000","v":0},{"$f":"U73*H$79/2000","v":0},{"$f":"V73*I$79/2000","v":0},{"$f":"W73*J$79/2000","v":0},{"$f":"X73*K$79/2000","v":0},{"$f":"Y73*L$79/2000","v":0},{"$f":"SUM(AD73:AM73)","v":0}]
["  Methane (CH4)",null,{"$f":"IF(Engines!W33<>\"\",Engines!W33,LOOKUP(Calculations!C$45,Calculations!$C$9:$I$9,Calculations!$C39:$I39))","v":3.0000000000000001E-3},{"$f":"IF(Engines!X33<>\"\",Engines!X33,LOOKUP(Calculations!D$45,Calculations!$C$9:$I$9,Calculations!$C39:$I39))","v":3.0000000000000001E-3},{"$f":"IF(Engines!Y33<>\"\",Engines!Y33,LOOKUP(Calculations!E$45,Calculations!$C$9:$I$9,Calculations!$C39:$I39))","v":3.0000000000000001E-3},{"$f":"IF(Engines!Z33<>\"\",Engines!Z33,LOOKUP(Calculations!F$45,Calculations!$C$9:$I$9,Calculations!$C39:$I39))","v":3.0000000000000001E-3},{"$f":"IF(Engines!AA33<>\"\",Engines!AA33,LOOKUP(Calculations!G$45,Calculations!$C$9:$I$9,Calculations!$C39:$I39))","v":3.0000000000000001E-3},{"$f":"IF(Engines!AB33<>\"\",Engines!AB33,LOOKUP(Calculations!H$45,Calculations!$C$9:$I$9,Calculations!$C39:$I39))","v":3.0000000000000001E-3},{"$f":"IF(Engines!AC33<>\"\",Engines!AC33,LOOKUP(Calculations!I$45,Calculations!$C$9:$I$9,Calculations!$C39:$I39))","v":3.0000000000000001E-3},{"$f":"IF(Engines!AD33<>\"\",Engines!AD33,LOOKUP(Calculations!J$45,Calculations!$C$9:$I$9,Calculations!$C39:$I39))","v":3.0000000000000001E-3},{"$f":"IF(Engines!AE33<>\"\",Engines!AE33,LOOKUP(Calculations!K$45,Calculations!$C$9:$I$9,Calculations!$C39:$I39))","v":3.0000000000000001E-3},{"$f":"IF(Engines!AF33<>\"\",Engines!AF33,LOOKUP(Calculations!L$45,Calculations!$C$9:$I$9,Calculations!$C39:$I39))","v":3.0000000000000001E-3},null,"  Methane (CH4)",null,0,0,0,0,0,0,0,0,0,0,0,null,"  Methane (CH4)",null,0,0,0,0,0,0,0,0,0,0,0]
["  Nitrous Oxide (N2O)",null,{"$f":"IF(Engines!W34<>\"\",Engines!W34,LOOKUP(Calculations!C$45,Calculations!$C$9:$I$9,Calculations!$C40:$I40))","v":5.9999999999999995E-4},{"$f":"IF(Engines!X34<>\"\",Engines!X34,LOOKUP(Calculations!D$45,Calculations!$C$9:$I$9,Calculations!$C40:$I40))","v":5.9999999999999995E-4},{"$f":"IF(Engines!Y34<>\"\",Engines!Y34,LOOKUP(Calculations!E$45,Calculations!$C$9:$I$9,Calculations!$C40:$I40))","v":5.9999999999999995E-4},{"$f":"IF(Engines!Z34<>\"\",Engines!Z34,LOOKUP(Calculations!F$45,Calculations!$C$9:$I$9,Calculations!$C40:$I40))","v":5.9999999999999995E-4},{"$f":"IF(Engines!AA34<>\"\",Engines!AA34,LOOKUP(Calculations!G$45,Calculations!$C$9:$I$9,Calculations!$C40:$I40))","v":5.9999999999999995E-4},{"$f":"IF(Engines!AB34<>\"\",Engines!AB34,LOOKUP(Calculations!H$45,Calculations!$C$9:$I$9,Calculations!$C40:$I40))","v":5.9999999999999995E-4},{"$f":"IF(Engines!AC34<>\"\",Engines!AC34,LOOKUP(Calculations!I$45,Calculations!$C$9:$I$9,Calculations!$C40:$I40))","v":5.9999999999999995E-4},{"$f":"IF(Engines!AD34<>\"\",Engines!AD34,LOOKUP(Calculations!J$45,Calculations!$C$9:$I$9,Calculations!$C40:$I40))","v":5.9999999999999995E-4},{"$f":"IF(Engines!AE34<>\"\",Engines!AE34,LOOKUP(Calculations!K$45,Calculations!$C$9:$I$9,Calculations!$C40:$I40))","v":5.9999999999999995E-4},{"$f":"IF(Engines!AF34<>\"\",Engines!AF34,LOOKUP(Calculations!L$45,Calculations!$C$9:$I$9,Calculations!$C40:$I40))","v":5.9999999999999995E-4},null,"  Nitrous Oxide (N2O)",null,0,0,0,0,0,0,0,0,0,0,0,null,"  Nitrous Oxide (N2O)",null,0,0,0,0,0,0,0,0,0,0,0]
[]
["Engine Rating (hp)",null,{"$f":"Engines!D16","v":0},{"$f":"Engines!D17","v":0},{"$f":"Engines!D18","v":0},{"$f":"Engines!D19","v":0},{"$f":"Engines!D20","v":0},{"$f":"Engines!D21","v":0},{"$f":"Engines!D22","v":0},{"$f":"Engines!D23","v":0},{"$f":"Engines!D24","v":0},{"$f":"Engines!D25","v":0}]
[{"$f":"Engines!E15","v":"Maximum Fuel Capacity \n(gal/hr)"},null,{"$f":"Engines!E16","v":0},{"$f":"Engines!E17","v":0},{"$f":"Engines!E18","v":0},{"$f":"Engines!E19","v":0},{"$f":"Engines!E20","v":0},{"$f":"Engines!E21","v":0},{"$f":"Engines!E22","v":0},{"$f":"Engines!E23","v":0},{"$f":"Engines!E24","v":0},{"$f":"Engines!E25","v":0}]
["Operating Hours",null,{"$f":"Engines!G16","v":8760},{"$f":"Engines!G17","v":8760},{"$f":"Engines!G18","v":8760},{"$f":"Engines!G19","v":8760},{"$f":"Engines!G20","v":8760},{"$f":"Engines!G21","v":8760},{"$f":"Engines!G22","v":8760},{"$f":"Engines!G23","v":8760},{"$f":"Engines!G24","v":8760},{"$f":"Engines!G25","v":8760}]
[]
[]
[]
[null,null,"1st Spark Ignition Engine","2nd Spark Ignition Engine","3rd Spark Ignition Engine","4th Spark Ignition Engine","5th Spark Ignition Engine","6th Spark Ignition Engine","7th Spark Ignition Engine","8th Spark Ignition Engine","9th Spark Ignition Engine","10th Spark Ignition Engine",null,null,null,"1st Spark Ignition Engine","2nd Spark Ignition Engine","3rd Spark Ignition Engine","4th Spark Ignition Engine","5th Spark Ignition Engine","6th Spark Ignition Engine","7th Spark Ignition Engine","8th Spark Ignition Engine","9th Spark Ignition Engine","10th Spark Ignition Engine","Total",null,null,null,"1st Spark Ignition Engine","2nd Spark Ignition Engine","3rd Spark Ignition Engine","4th Spark Ignition Engine","5th Spark Ignition Engine","6th Spark Ignition Engine","7th Spark Ignition Engine","8th Spark Ignition Engine","9th Spark Ignition Engine","10th Spark Ignition Engine","Total"]
[null,null,{"$f":"IF(Engines!G29=Datasets!$AJ$3,4,IF(Engines!G29=Datasets!$AJ$4,7,IF(Engines!H29=Datasets!$AK$2,3,IF(Engines!H29=Datasets!$AK$4,2,1))))","v":1},{"$f":"IF(Engines!G30=Datasets!$AJ$3,4,IF(Engines!G30=Datasets!$AJ$4,7,IF(Engines!H30=Datasets!$AK$2,3,IF(Engines!H30=Datasets!$AK$4,2,1))))","v":1},{"$f":"IF(Engines!G31=Datasets!$AJ$3,4,IF(Engines!G31=Datasets!$AJ$4,7,IF(Engines!H31=Datasets!$AK$2,3,IF(Engines!H31=Datasets!$AK$4,2,1))))","v":1},{"$f":"IF(Engines!G32=Datasets!$AJ$3,4,IF(Engines!G32=Datasets!$AJ$4,7,IF(Engines!H32=Datasets!$AK$2,3,IF(Engines!H32=Datasets!$AK$4,2,1))))","v":1},{"$f":"IF(Engines!G33=Datasets!$AJ$3,4,IF(Engines!G33=Datasets!$AJ$4,7,IF(Engines!H33=Datasets!$AK$2,3,IF(Engines!H33=Datasets!$AK$4,2,1))))","v":1},{"$f":"IF(Engines!LG34=Datasets!$AJ$3,4,IF(Engines!G34=Datasets!$AJ$4,7,IF(Engines!H34=Datasets!$AK$2,3,IF(Engines!H34=Datasets!$AK$4,2,1))))","v":1},{"$f":"IF(Engines!G35=Datasets!$AJ$3,4,IF(Engines!G35=Datasets!$AJ$4,7,IF(Engines!H35=Datasets!$AK$2,3,IF(Engines!H35=Datasets!$AK$4,2,1))))","v":1},{"$f":"IF(Engines!G36=Datasets!$AJ$3,4,IF(Engines!G36=Datasets!$AJ$4,7,IF(Engines!H36=Datasets!$AK$2,3,IF(Engines!H36=Datasets!$AK$4,2,1))))","v":1},{"$f":"IF(Engines!G37=Datasets!$AJ$3,4,IF(Engines!G37=Datasets!$AJ$4,7,IF(Engines!H37=Datasets!$AK$2,3,IF(Engines!H37=Datasets!$AK$4,2,1))))","v":1},{"$f":"IF(Engines!G38=Datasets!$AJ$3,4,IF(Engines!G38=Datasets!$AJ$4,7,IF(Engines!H38=Datasets!$AK$2,3,IF(Engines!H38=Datasets!$AK$4,2,1))))","v":1},null,null,null,"(lb/hr)",null,null,null,null,null,null,null,null,null,null,null,null,null,"(ton/yr)"]
["PMfilterable",null,{"$f":"IF(Engines!AI5<>\"\",Engines!AI5,LOOKUP(Calculations!C$84,Calculations!$C$9:$I$9,Calculations!$C11:$I11))","v":9.9871000000000005E-3},{"$f":"IF(Engines!AJ5<>\"\",Engines!AJ5,LOOKUP(Calculations!D$84,Calculations!$C$9:$I$9,Calculations!$C11:$I11))","v":9.9871000000000005E-3},{"$f":"IF(Engines!AK5<>\"\",Engines!AK5,LOOKUP(Calculations!E$84,Calculations!$C$9:$I$9,Calculations!$C11:$I11))","v":9.9871000000000005E-3},{"$f":"IF(Engines!AL5<>\"\",Engines!AL5,LOOKUP(Calculations!F$84,Calculations!$C$9:$I$9,Calculations!$C11:$I11))","v":9.9871000000000005E-3},{"$f":"IF(Engines!AM5<>\"\",Engines!AM5,LOOKUP(Calculations!G$84,Calculations!$C$9:$I$9,Calculations!$C11:$I11))","v":9.9871000000000005E-3},{"$f":"IF(Engines!AN5<>\"\",Engines!AN5,LOOKUP(Calculations!H$84,Calculations!$C$9:$I$9,Calculations!$C11:$I11))","v":9.9871000000000005E-3},{"$f":"IF(Engines!AO5<>\"\",Engines!AO5,LOOKUP(Calculations!I$84,Calculations!$C$9:$I$9,Calculations!$C11:$I11))","v":9.9871000000000005E-3},{"$f":"IF(Engines!AP5<>\"\",Engines!AP5,LOOKUP(Calculations!J$84,Calculations!$C$9:$I$9,Calculations!$C11:$I11))","v":9.9871000000000005E-3},{"$f":"IF(Engines!AQ5<>\"\",Engines!AQ5,LOOKUP(Calculations!K$84,Calculations!$C$9:$I$9,Calculations!$C11:$I11))","v":9.9871000000000005E-3},{"$f":"IF(Engines!AR5<>\"\",Engines!AR5,LOOKUP(Calculations!L$84,Calculations!$C$9:$I$9,Calculations!$C11:$I11))","v":9.9871000000000005E-3},null,"PMfilterable",null,{"$f":"C85*C$118","v":0},{"$f":"D85*D$118","v":0},0,0,0,0,0,0,0,0,{"$f":"SUM(P85:Y85)","v":0},null,"PMfilterable",null,{"$f":"P85*C$119/2000","v":0},{"$f":"Q85*D$119/2000","v":0},0,0,0,0,0,0,0,0,{"$f":"SUM(AD85:AM85)","v":0}]
["PM10",null,{"$f":"IF(Engines!AI6<>\"\",Engines!AI6,LOOKUP(Calculations!C$84,Calculations!$C$9:$I$9,Calculations!$C12:$I12))","v":9.9871000000000005E-3},{"$f":"IF(Engines!AJ6<>\"\",Engines!AJ6,LOOKUP(Calculations!D$84,Calculations!$C$9:$I$9,Calculations!$C12:$I12))","v":9.9871000000000005E-3},{"$f":"IF(Engines!AK6<>\"\",Engines!AK6,LOOKUP(Calculations!E$84,Calculations!$C$9:$I$9,Calculations!$C12:$I12))","v":9.9871000000000005E-3},{"$f":"IF(Engines!AL6<>\"\",Engines!AL6,LOOKUP(Calculations!F$84,Calculations!$C$9:$I$9,Calculations!$C12:$I12))","v":9.9871000000000005E-3},{"$f":"IF(Engines!AM6<>\"\",Engines!AM6,LOOKUP(Calculations!G$84,Calculations!$C$9:$I$9,Calculations!$C12:$I12))","v":9.9871000000000005E-3},{"$f":"IF(Engines!AN6<>\"\",Engines!AN6,LOOKUP(Calculations!H$84,Calculations!$C$9:$I$9,Calculations!$C12:$I12))","v":9.9871000000000005E-3},{"$f":"IF(Engines!AO6<>\"\",Engines!AO6,LOOKUP(Calculations!I$84,Calculations!$C$9:$I$9,Calculations!$C12:$I12))","v":9.9871000000000005E-3},{"$f":"IF(Engines!AP6<>\"\",Engines!AP6,LOOKUP(Calculations!J$84,Calculations!$C$9:$I$9,Calculations!$C12:$I12))","v":9.9871000000000005E-3},{"$f":"IF(Engines!AQ6<>\"\",Engines!AQ6,LOOKUP(Calculations!K$84,Calculations!$C$9:$I$9,Calculations!$C12:$I12))","v":9.9871000000000005E-3},{"$f":"IF(Engines!AR6<>\"\",Engines!AR6,LOOKUP(Calculations!L$84,Calculations!$C$9:$I$9,Calculations!$C12:$I12))","v":9.9871000000000005E-3},null,"PM10",null,{"$f":"C86*C$118","v":0},{"$f":"D86*D$118","v":0},{"$f":"E86*E$118","v":0},{"$f":"F86*F$118","v":0},{"$f":"G86*G$118","v":0},{"$f":"H86*H$118","v":0},{"$f":"I86*I$118","v":0},{"$f":"J86*J$118","v":0},{"$f":"K86*K$118","v":0},{"$f":"L86*L$118","v":0},{"$f":"SUM(P86:Y86)","v":0},null,"PM10",null,{"$f":"P86*C$119/2000","v":0},{"$f":"Q86*D$119/2000","v":0},{"$f":"R86*E$119/2000","v":0},{"$f":"S86*F$119/2000","v":0},{"$f":"T86*G$119/2000","v":0},{"$f":"U86*H$119/2000","v":0},{"$f":"V86*I$119/2000","v":0},{"$f":"W86*J$119/2000","v":0},{"$f":"X86*K$119/2000","v":0},{"$f":"Y86*L$119/2000","v":0},{"$f":"SUM(AD86:AM86)","v":0}]
["PM2.5",null,{"$f":"IF(Engines!AI7<>\"\",Engines!AI7,LOOKUP(Calculations!C$84,Calculations!$C$9:$I$9,Calculations!$C13:$I13))","v":9.9871000000000005E-3},{"$f":"IF(Engines!AJ7<>\"\",Engines!AJ7,LOOKUP(Calculations!D$84,Calculations!$C$9:$I$9,Calculations!$C13:$I13))","v":9.9871000000000005E-3},{"$f":"IF(Engines!AK7<>\"\",Engines!AK7,LOOKUP(Calculations!E$84,Calculations!$C$9:$I$9,Calculations!$C13:$I13))","v":9.9871000000000005E-3},{"$f":"IF(Engines!AL7<>\"\",Engines!AL7,LOOKUP(Calculations!F$84,Calculations!$C$9:$I$9,Calculations!$C13:$I13))","v":9.9871000000000005E-3},{"$f":"IF(Engines!AM7<>\"\",Engines!AM7,LOOKUP(Calculations!G$84,Calculations!$C$9:$I$9,Calculations!$C13:$I13))","v":9.9871000000000005E-3},{"$f":"IF(Engines!AN7<>\"\",Engines!AN7,LOOKUP(Calculations!H$84,Calculations!$C$9:$I$9,Calculations!$C13:$I13))","v":9.9871000000000005E-3},{"$f":"IF(Engines!AO7<>\"\",Engines!AO7,LOOKUP(Calculations!I$84,Calculations!$C$9:$I$9,Calculations!$C13:$I13))","v":9.9871000000000005E-3},{"$f":"IF(Engines!AP7<>\"\",Engines!AP7,LOOKUP(Calculations!J$84,Calculations!$C$9:$I$9,Calculations!$C13:$I13))","v":9.9871000000000005E-3},{"$f":"IF(Engines!AQ7<>\"\",Engines!AQ7,LOOKUP(Calculations!K$84,Calculations!$C$9:$I$9,Calculations!$C13:$I13))","v":9.9871000000000005E-3},{"$f":"IF(Engines!AR7<>\"\",Engines!AR7,LOOKUP(Calculations!L$84,Calculations!$C$9:$I$9,Calculations!$C13:$I13))","v":9.9871000000000005E-3},null,"PM2.5",null,0,0,0,0,0,0,0,0,0,0,0,null,"PM2.5",null,0,0,0,0,0,0,0,0,0,0,0]
["SO2",null,{"$f":"IF(Engines!AI8<>\"\",Engines!AI8,LOOKUP(Calculations!C$84,Calculations!$C$9:$I$9,Calculations!$C14:$I14))","v":5.8799999999999998E-4},{"$f":"IF(Engines!AJ8<>\"\",Engines!AJ8,LOOKUP(Calculations!D$84,Calculations!$C$9:$I$9,Calculations!$C14:$I14))","v":5.8799999999999998E-4},{"$f":"IF(Engines!AK8<>\"\",Engines!AK8,LOOKUP(Calculations!E$84,Calculations!$C$9:$I$9,Calculations!$C14:$I14))","v":5.8799999999999998E-4},{"$f":"IF(Engines!AL8<>\"\",Engines!AL8,LOOKUP(Calculations!F$84,Calculations!$C$9:$I$9,Calculations!$C14:$I14))","v":5.8799999999999998E-4},{"$f":"IF(Engines!AM8<>\"\",Engines!AM8,LOOKUP(Calculations!G$84,Calculations!$C$9:$I$9,Calculations!$C14:$I14))","v":5.8799999999999998E-4},{"$f":"IF(Engines!AN8<>\"\",Engines!AN8,LOOKUP(Calculations!H$84,Calculations!$C$9:$I$9,Calculations!$C14:$I14))","v":5.8799999999999998E-4},{"$f":"IF(Engines!AO8<>\"\",Engines!AO8,LOOKUP(Calculations!I$84,Calculations!$C$9:$I$9,Calculations!$C14:$I14))","v":5.8799999999999998E-4},{"$f":"IF(Engines!AP8<>\"\",Engines!AP8,LOOKUP(Calculations!J$84,Calculations!$C$9:$I$9,Calculations!$C14:$I14))","v":5.8799999999999998E-4},{"$f":"IF(Engines!AQ8<>\"\",Engines!AQ8,LOOKUP(Calculations!K$84,Calculations!$C$9:$I$9,Calculations!$C14:$I14))","v":5.8799999999999998E-4},{"$f":"IF(Engines!AR8<>\"\",Engines!AR8,LOOKUP(Calculations!L$84,Calculations!$C$9:$I$9,Calculations!$C14:$I14))","v":5.8799999999999998E-4},null,"SO2",null,0,0,0,0,0,0,0,0,0,0,0,null,"SO2",null,0,0,0,0,0,0,0,0,0,0,0]
["NOx",null,{"$f":"IF(Engines!AI9<>\"\",Engines!AI9,LOOKUP(Calculations!C$84,Calculations!$C$9:$I$9,Calculations!$C15:$I15))","v":4.08},{"$f":"IF(Engines!AJ9<>\"\",Engines!AJ9,LOOKUP(Calculations!D$84,Calculations!$C$9:$I$9,Calculations!$C15:$I15))","v":4.08},{"$f":"IF(Engines!AK9<>\"\",Engines!AK9,LOOKUP(Calculations!E$84,Calculations!$C$9:$I$9,Calculations!$C15:$I15))","v":4.08},{"$f":"IF(Engines!AL9<>\"\",Engines!AL9,LOOKUP(Calculations!F$84,Calculations!$C$9:$I$9,Calculations!$C15:$I15))","v":4.08},{"$f":"IF(Engines!AM9<>\"\",Engines!AM9,LOOKUP(Calculations!G$84,Calculations!$C$9:$I$9,Calculations!$C15:$I15))","v":4.08},{"$f":"IF(Engines!AN9<>\"\",Engines!AN9,LOOKUP(Calculations!H$84,Calculations!$C$9:$I$9,Calculations!$C15:$I15))","v":4.08},{"$f":"IF(Engines!AO9<>\"\",Engines!AO9,LOOKUP(Calculations!I$84,Calculations!$C$9:$I$9,Calculations!$C15:$I15))","v":4.08},{"$f":"IF(Engines!AP9<>\"\",Engines!AP9,LOOKUP(Calculations!J$84,Calculations!$C$9:$I$9,Calculations!$C15:$I15))","v":4.08},{"$f":"IF(Engines!AQ9<>\"\",Engines!AQ9,LOOKUP(Calculations!K$84,Calculations!$C$9:$I$9,Calculations!$C15:$I15))","v":4.08},{"$f":"IF(Engines!AR9<>\"\",Engines!AR9,LOOKUP(Calculations!L$84,Calculations!$C$9:$I$9,Calculations!$C15:$I15))","v":4.08},null,"NOx",null,0,0,0,0,0,0,0,0,0,0,0,null,"NOx",null,0,0,0,0,0,0,0,0,0,0,0]
["CO",null,{"$f":"IF(Engines!AI10<>\"\",Engines!AI10,LOOKUP(Calculations!C$84,Calculations!$C$9:$I$9,Calculations!$C16:$I16))","v":0.55700000000000005},{"$f":"IF(Engines!AJ10<>\"\",Engines!AJ10,LOOKUP(Calculations!D$84,Calculations!$C$9:$I$9,Calculations!$C16:$I16))","v":0.55700000000000005},{"$f":"IF(Engines!AK10<>\"\",Engines!AK10,LOOKUP(Calculations!E$84,Calculations!$C$9:$I$9,Calculations!$C16:$I16))","v":0.55700000000000005},{"$f":"IF(Engines!AL10<>\"\",Engines!AL10,LOOKUP(Calculations!F$84,Calculations!$C$9:$I$9,Calculations!$C16:$I16))","v":0.55700000000000005},{"$f":"IF(Engines!AM10<>\"\",Engines!AM10,LOOKUP(Calculations!G$84,Calculations!$C$9:$I$9,Calculations!$C16:$I16))","v":0.55700000000000005},{"$f":"IF(Engines!AN10<>\"\",Engines!AN10,LOOKUP(Calculations!H$84,Calculations!$C$9:$I$9,Calculations!$C16:$I16))","v":0.55700000000000005},{"$f":"IF(Engines!AO10<>\"\",Engines!AO10,LOOKUP(Calculations!I$84,Calculations!$C$9:$I$9,Calculations!$C16:$I16))","v":0.55700000000000005},{"$f":"IF(Engines!AP10<>\"\",Engines!AP10,LOOKUP(Calculations!J$84,Calculations!$C$9:$I$9,Calculations!$C16:$I16))","v":0.55700000000000005},{"$f":"IF(Engines!AQ10<>\"\",Engines!AQ10,LOOKUP(Calculations!K$84,Calculations!$C$9:$I$9,Calculations!$C16:$I16))","v":0.55700000000000005},{"$f":"IF(Engines!AR10<>\"\",Engines!AR10,LOOKUP(Calculations!L$84,Calculations!$C$9:$I$9,Calculations!$C16:$I16))","v":0.55700000000000005},null,"CO",null,0,0,0,0,0,0,0,0,0,0,0,null,"CO",null,0,0,0,0,0,0,0,0,0,0,0]
["VOC",null,{"$f":"IF(Engines!AI11<>\"\",Engines!AI11,LOOKUP(Calculations!C$84,Calculations!$C$9:$I$9,Calculations!$C17:$I17))","v":0.11799999999999999},{"$f":"IF(Engines!AJ11<>\"\",Engines!AJ11,LOOKUP(Calculations!D$84,Calculations!$C$9:$I$9,Calculations!$C17:$I17))","v":0.11799999999999999},{"$f":"IF(Engines!AK11<>\"\",Engines!AK11,LOOKUP(Calculations!E$84,Calculations!$C$9:$I$9,Calculations!$C17:$I17))","v":0.11799999999999999},{"$f":"IF(Engines!AL11<>\"\",Engines!AL11,LOOKUP(Calculations!F$84,Calculations!$C$9:$I$9,Calculations!$C17:$I17))","v":0.11799999999999999},{"$f":"IF(Engines!AM11<>\"\",Engines!AM11,LOOKUP(Calculations!G$84,Calculations!$C$9:$I$9,Calculations!$C17:$I17))","v":0.11799999999999999},{"$f":"IF(Engines!AN11<>\"\",Engines!AN11,LOOKUP(Calculations!H$84,Calculations!$C$9:$I$9,Calculations!$C17:$I17))","v":0.11799999999999999},{"$f":"IF(Engines!AO11<>\"\",Engines!AO11,LOOKUP(Calculations!I$84,Calculations!$C$9:$I$9,Calculations!$C17:$I17))","v":0.11799999999999999},{"$f":"IF(Engines!AP11<>\"\",Engines!AP11,LOOKUP(Calculations!J$84,Calculations!$C$9:$I$9,Calculations!$C17:$I17))","v":0.11799999999999999},{"$f":"IF(Engines!AQ11<>\"\",Engines!AQ11,LOOKUP(Calculations!K$84,Calculations!$C$9:$I$9,Calculations!$C17:$I17))","v":0.11799999999999999},{"$f":"IF(Engines!AR11<>\"\",Engines!AR11,LOOKUP(Calculations!L$84,Calculations!$C$9:$I$9,Calculations!$C17:$I17))","v":0.11799999999999999},null,"VOC",null,0,0,0,0,0,0,0,0,0,0,0,null,"VOC",null,0,0,0,0,0,0,0,0,0,0,0]
["Individual HAP",null,null,null,null,null,null,null,null,null,null,null,null,"Individual HAP",null,null,null,null,null,null,null,null,null,null,null,null,null,"Individual HAP"]
["Acetaldehyde",null,{"$f":"IF(Engines!AI13<>\"\",Engines!AI13,LOOKUP(Calculations!C$84,Calculations!$C$9:$I$9,Calculations!$C19:$I19))","v":8.3599999999999994E-3},{"$f":"IF(Engines!AJ13<>\"\",Engines!AJ13,LOOKUP(Calculations!D$84,Calculations!$C$9:$I$9,Calculations!$C19:$I19))","v":8.3599999999999994E-3},{"$f":"IF(Engines!AK13<>\"\",Engines!AK13,LOOKUP(Calculations!E$84,Calculations!$C$9:$I$9,Calculations!$C19:$I19))","v":8.3599999999999994E-3},{"$f":"IF(Engines!AL13<>\"\",Engines!AL13,LOOKUP(Calculations!F$84,Calculations!$C$9:$I$9,Calculations!$C19:$I19))","v":8.3599999999999994E-3},{"$f":"IF(Engines!AM13<>\"\",Engines!AM13,LOOKUP(Calculations!G$84,Calculations!$C$9:$I$9,Calculations!$C19:$I19))","v":8.3599999999999994E-3},{"$f":"IF(Engines!AN13<>\"\",Engines!AN13,LOOKUP(Calculations!H$84,Calculations!$C$9:$I$9,Calculations!$C19:$I19))","v":8.3599999999999994E-3},{"$f":"IF(Engines!AO13<>\"\",Engines!AO13,LOOKUP(Calculations!I$84,Calculations!$C$9:$I$9,Calculations!$C19:$I19))","v":8.3599999999999994E-3},{"$f":"IF(Engines!AP13<>\"\",Engines!AP13,LOOKUP(Calculations!J$84,Calculations!$C$9:$I$9,Calculations!$C19:$I19))","v":8.3599999999999994E-3},{"$f":"IF(Engines!AQ13<>\"\",Engines!AQ13,LOOKUP(Calculations!K$84,Calculations!$C$9:$I$9,Calculations!$C19:$I19))","v":8.3599999999999994E-3},{"$f":"IF(Engines!AR13<>\"\",Engines!AR13,LOOKUP(Calculations!L$84,Calculations!$C$9:$I$9,Calculations!$C19:$I19))","v":8.3599999999999994E-3},null,"Acetaldehyde",null,{"$f":"C93*C$118","v":0},{"$f":"D93*D$118","v":0},{"$f":"E93*E$118","v":0},{"$f":"F93*F$118","v":0},{"$f":"G93*G$118","v":0},{"$f":"H93*H$118","v":0},{"$f":"I93*I$118","v":0},{"$f":"J93*J$118","v":0},{"$f":"K93*K$118","v":0},{"$f":"L93*L$118","v":0},{"$f":"SUM(P93:Y93)","v":0},null,"Acetaldehyde",null,{"$f":"P93*C$119/2000","v":0},{"$f":"Q93*D$119/2000","v":0},{"$f":"R93*E$119/2000","v":0},{"$f":"S93*F$119/2000","v":0},{"$f":"T93*G$119/2000","v":0},{"$f":"U93*H$119/2000","v":0},{"$f":"V93*I$119/2000","v":0},{"$f":"W93*J$119/2000","v":0},{"$f":"X93*K$119/2000","v":0},{"$f":"Y93*L$119/2000","v":0},{"$f":"SUM(AD93:AM93)","v":0}]
["Acrolein",null,{"$f":"IF(Engines!AI14<>\"\",Engines!AI14,LOOKUP(Calculations!C$84,Calculations!$C$9:$I$9,Calculations!$C20:$I20))","v":5.1399999999999996E-3},{"$f":"IF(Engines!AJ14<>\"\",Engines!AJ14,LOOKUP(Calculations!D$84,Calculations!$C$9:$I$9,Calculations!$C20:$I20))","v":5.1399999999999996E-3},{"$f":"IF(Engines!AK14<>\"\",Engines!AK14,LOOKUP(Calculations!E$84,Calculations!$C$9:$I$9,Calculations!$C20:$I20))","v":5.1399999999999996E-3},{"$f":"IF(Engines!AL14<>\"\",Engines!AL14,LOOKUP(Calculations!F$84,Calculations!$C$9:$I$9,Calculations!$C20:$I20))","v":5.1399999999999996E-3},{"$f":"IF(Engines!AM14<>\"\",Engines!AM14,LOOKUP(Calculations!G$84,Calculations!$C$9:$I$9,Calculations!$C20:$I20))","v":5.1399999999999996E-3},{"$f":"IF(Engines!AN14<>\"\",Engines!AN14,LOOKUP(Calculations!H$84,Calculations!$C$9:$I$9,Calculations!$C20:$I20))","v":5.1399999999999996E-3},{"$f":"IF(Engines!AO14<>\"\",Engines!AO14,LOOKUP(Calculations!I$84,Calculations!$C$9:$I$9,Calculations!$C20:$I20))","v":5.1399999999999996E-3},{"$f":"IF(Engines!AP14<>\"\",Engines!AP14,LOOKUP(Calculations!J$84,Calculations!$C$9:$I$9,Calculations!$C20:$I20))","v":5.1399999999999996E-3},{"$f":"IF(Engines!AQ14<>\"\",Engines!AQ14,LOOKUP(Calculations!K$84,Calculations!$C$9:$I$9,Calculations!$C20:$I20))","v":5.1399999999999996E-3},{"$f":"IF(Engines!AR14<>\"\",Engines!AR14,LOOKUP(Calculations!L$84,Calculations!$C$9:$I$9,Calculations!$C20:$I20))","v":5.1399999999999996E-3},null,"Acrolein",null,0,0,0,0,0,0,0,0,0,0,0,null,"Acrolein",null,0,0,0,0,0,0,0,0,0,0,0]
["Arsenic compounds",null,{"$f":"IF(Engines!AI15<>\"\",Engines!AI15,LOOKUP(Calculations!C$84,Calculations!$C$9:$I$9,Calculations!$C21:$I21))","v":0},{"$f":"IF(Engines!AJ15<>\"\",Engines!AJ15,LOOKUP(Calculations!D$84,Calculations!$C$9:$I$9,Calculations!$C21:$I21))","v":0},{"$f":"IF(Engines!AK15<>\"\",Engines!AK15,LOOKUP(Calculations!E$84,Calculations!$C$9:$I$9,Calculations!$C21:$I21))","v":0},{"$f":"IF(Engines!AL15<>\"\",Engines!AL15,LOOKUP(Calculations!F$84,Calculations!$C$9:$I$9,Calculations!$C21:$I21))","v":0},{"$f":"IF(Engines!AM15<>\"\",Engines!AM15,LOOKUP(Calculations!G$84,Calculations!$C$9:$I$9,Calculations!$C21:$I21))","v":0},{"$f":"IF(Engines!AN15<>\"\",Engines!AN15,LOOKUP(Calculations!H$84,Calculations!$C$9:$I$9,Calculations!$C21:$I21))","v":0},{"$f":"IF(Engines!AO15<>\"\",Engines!AO15,LOOKUP(Calculations!I$84,Calculations!$C$9:$I$9,Calculations!$C21:$I21))","v":0},{"$f":"IF(Engines!AP15<>\"\",Engines!AP15,LOOKUP(Calculations!J$84,Calculations!$C$9:$I$9,Calculations!$C21:$I21))","v":0},{"$f":"IF(Engines!AQ15<>\"\",Engines!AQ15,LOOKUP(Calculations!K$84,Calculations!$C$9:$I$9,Calculations!$C21:$I21))","v":0},{"$f":"IF(Engines!AR15<>\"\",Engines!AR15,LOOKUP(Calculations!L$84,Calculations!$C$9:$I$9,Calculations!$C21:$I21))","v":0},null,"Arsenic compounds",null,0,0,0,0,0,0,0,0,0,0,0,null,"Arsenic compounds",null,0,0,0,0,0,0,0,0,0,0,0]
["Benzene",null,{"$f":"IF(Engines!AI16<>\"\",Engines!AI16,LOOKUP(Calculations!C$84,Calculations!$C$9:$I$9,Calculations!$C22:$I22))","v":4.4000000000000002E-4},{"$f":"IF(Engines!AJ16<>\"\",Engines!AJ16,LOOKUP(Calculations!D$84,Calculations!$C$9:$I$9,Calculations!$C22:$I22))","v":4.4000000000000002E-4},{"$f":"IF(Engines!AK16<>\"\",Engines!AK16,LOOKUP(Calculations!E$84,Calculations!$C$9:$I$9,Calculations!$C22:$I22))","v":4.4000000000000002E-4},{"$f":"IF(Engines!AL16<>\"\",Engines!AL16,LOOKUP(Calculations!F$84,Calculations!$C$9:$I$9,Calculations!$C22:$I22))","v":4.4000000000000002E-4},{"$f":"IF(Engines!AM16<>\"\",Engines!AM16,LOOKUP(Calculations!G$84,Calculations!$C$9:$I$9,Calculations!$C22:$I22))","v":4.4000000000000002E-4},{"$f":"IF(Engines!AN16<>\"\",Engines!AN16,LOOKUP(Calculations!H$84,Calculations!$C$9:$I$9,Calculations!$C22:$I22))","v":4.4000000000000002E-4},{"$f":"IF(Engines!AO16<>\"\",Engines!AO16,LOOKUP(Calculations!I$84,Calculations!$C$9:$I$9,Calculations!$C22:$I22))","v":4.4000000000000002E-4},{"$f":"IF(Engines!AP16<>\"\",Engines!AP16,LOOKUP(Calculations!J$84,Calculations!$C$9:$I$9,Calculations!$C22:$I22))","v":4.4000000000000002E-4},{"$f":"IF(Engines!AQ16<>\"\",Engines!AQ16,LOOKUP(Calculations!K$84,Calculations!$C$9:$I$9,Calculations!$C22:$I22))","v":4.4000000000000002E-4},{"$f":"IF(Engines!AR16<>\"\",Engines!AR16,LOOKUP(Calculations!L$84,Calculations!$C$9:$I$9,Calculations!$C22:$I22))","v":4.4000000000000002E-4},null,"Benzene",null,0,0,0,0,0,0,0,0,0,0,0,null,"Benzene",null,0,0,0,0,0,0,0,0,0,0,0]
["Benzyl chloride",null,{"$f":"IF(Engines!AI17<>\"\",Engines!AI17,LOOKUP(Calculations!C$84,Calculations!$C$9:$I$9,Calculations!$C23:$I23))","v":0},{"$f":"IF(Engines!AJ17<>\"\",Engines!AJ17,LOOKUP(Calculations!D$84,Calculations!$C$9:$I$9,Calculations!$C23:$I23))","v":0},{"$f":"IF(Engines!AK17<>\"\",Engines!AK17,LOOKUP(Calculations!E$84,Calculations!$C$9:$I$9,Calculations!$C23:$I23))","v":0},{"$f":"IF(Engines!AL17<>\"\",Engines!AL17,LOOKUP(Calculations!F$84,Calculations!$C$9:$I$9,Calculations!$C23:$I23))","v":0},{"$f":"IF(Engines!AM17<>\"\",Engines!AM17,LOOKUP(Calculations!G$84,Calculations!$C$9:$I$9,Calculations!$C23:$I23))","v":0},{"$f":"IF(Engines!AN17<>\"\",Engines!AN17,LOOKUP(Calculations!H$84,Calculations!$C$9:$I$9,Calculations!$C23:$I23))","v":0},{"$f":"IF(Engines!AO17<>\"\",Engines!AO17,LOOKUP(Calculations!I$84,Calculations!$C$9:$I$9,Calculations!$C23:$I23))","v":0},{"$f":"IF(Engines!AP17<>\"\",Engines!AP17,LOOKUP(Calculations!J$84,Calculations!$C$9:$I$9,Calculations!$C23:$I23))","v":0},{"$f":"IF(Engines!AQ17<>\"\",Engines!AQ17,LOOKUP(Calculations!K$84,Calculations!$C$9:$I$9,Calculations!$C23:$I23))","v":0},{"$f":"IF(Engines!AR17<>\"\",Engines!AR17,LOOKUP(Calculations!L$84,Calculations!$C$9:$I$9,Calculations!$C23:$I23))","v":0},null,"Benzyl chloride",null,0,0,0,0,0,0,0,0,0,0,0,null,"Benzyl chloride",null,0,0,0,0,0,0,0,0,0,0,0]
["Beryllium compounds",null,{"$f":"IF(Engines!AI18<>\"\",Engines!AI18,LOOKUP(Calculations!C$84,Calculations!$C$9:$I$9,Calculations!$C24:$I24))","v":0},{"$f":"IF(Engines!AJ18<>\"\",Engines!AJ18,LOOKUP(Calculations!D$84,Calculations!$C$9:$I$9,Calculations!$C24:$I24))","v":0},{"$f":"IF(Engines!AK18<>\"\",Engines!AK18,LOOKUP(Calculations!E$84,Calculations!$C$9:$I$9,Calculations!$C24:$I24))","v":0},{"$f":"IF(Engines!AL18<>\"\",Engines!AL18,LOOKUP(Calculations!F$84,Calculations!$C$9:$I$9,Calculations!$C24:$I24))","v":0},{"$f":"IF(Engines!AM18<>\"\",Engines!AM18,LOOKUP(Calculations!G$84,Calculations!$C$9:$I$9,Calculations!$C24:$I24))","v":0},{"$f":"IF(Engines!AN18<>\"\",Engines!AN18,LOOKUP(Calculations!H$84,Calculations!$C$9:$I$9,Calculations!$C24:$I24))","v":0},{"$f":"IF(Engines!AO18<>\"\",Engines!AO18,LOOKUP(Calculations!I$84,Calculations!$C$9:$I$9,Calculations!$C24:$I24))","v":0},{"$f":"IF(Engines!AP18<>\"\",Engines!AP18,LOOKUP(Calculations!J$84,Calculations!$C$9:$I$9,Calculations!$C24:$I24))","v":0},{"$f":"IF(Engines!AQ18<>\"\",Engines!AQ18,LOOKUP(Calculations!K$84,Calculations!$C$9:$I$9,Calculations!$C24:$I24))","v":0},{"$f":"IF(Engines!AR18<>\"\",Engines!AR18,LOOKUP(Calculations!L$84,Calculations!$C$9:$I$9,Calculations!$C24:$I24))","v":0},null,"Beryllium compounds",null,0,0,0,0,0,0,0,0,0,0,0,null,"Beryllium compounds",null,0,0,0,0,0,0,0,0,0,0,0]
["Cadmium compounds",null,{"$f":"IF(Engines!AI19<>\"\",Engines!AI19,LOOKUP(Calculations!C$84,Calculations!$C$9:$I$9,Calculations!$C25:$I25))","v":0},{"$f":"IF(Engines!AJ19<>\"\",Engines!AJ19,LOOKUP(Calculations!D$84,Calculations!$C$9:$I$9,Calculations!$C25:$I25))","v":0},{"$f":"IF(Engines!AK19<>\"\",Engines!AK19,LOOKUP(Calculations!E$84,Calculations!$C$9:$I$9,Calculations!$C25:$I25))","v":0},{"$f":"IF(Engines!AL19<>\"\",Engines!AL19,LOOKUP(Calculations!F$84,Calculations!$C$9:$I$9,Calculations!$C25:$I25))","v":0},{"$f":"IF(Engines!AM19<>\"\",Engines!AM19,LOOKUP(Calculations!G$84,Calculations!$C$9:$I$9,Calculations!$C25:$I25))","v":0},{"$f":"IF(Engines!AN19<>\"\",Engines!AN19,LOOKUP(Calculations!H$84,Calculations!$C$9:$I$9,Calculations!$C25:$I25))","v":0},{"$f":"IF(Engines!AO19<>\"\",Engines!AO19,LOOKUP(Calculations!I$84,Calculations!$C$9:$I$9,Calculations!$C25:$I25))","v":0},{"$f":"IF(Engines!AP19<>\"\",Engines!AP19,LOOKUP(Calculations!J$84,Calculations!$C$9:$I$9,Calculations!$C25:$I25))","v":0},{"$f":"IF(Engines!AQ19<>\"\",Engines!AQ19,LOOKUP(Calculations!K$84,Calculations!$C$9:$I$9,Calculations!$C25:$I25))","v":0},{"$f":"IF(Engines!AR19<>\"\",Engines!AR19,LOOKUP(Calculations!L$84,Calculations!$C$9:$I$9,Calculations!$C25:$I25))","v":0},null,"Cadmium compounds",null,0,0,0,0,0,0,0,0,0,0,0,null,"Cadmium compounds",null,0,0,0,0,0,0,0,0,0,0,0]
["Cyanide compounds",null,{"$f":"IF(Engines!AI20<>\"\",Engines!AI20,LOOKUP(Calculations!C$84,Calculations!$C$9:$I$9,Calculations!$C26:$I26))","v":0},{"$f":"IF(Engines!AJ20<>\"\",Engines!AJ20,LOOKUP(Calculations!D$84,Calculations!$C$9:$I$9,Calculations!$C26:$I26))","v":0},{"$f":"IF(Engines!AK20<>\"\",Engines!AK20,LOOKUP(Calculations!E$84,Calculations!$C$9:$I$9,Calculations!$C26:$I26))","v":0},{"$f":"IF(Engines!AL20<>\"\",Engines!AL20,LOOKUP(Calculations!F$84,Calculations!$C$9:$I$9,Calculations!$C26:$I26))","v":0},{"$f":"IF(Engines!AM20<>\"\",Engines!AM20,LOOKUP(Calculations!G$84,Calculations!$C$9:$I$9,Calculations!$C26:$I26))","v":0},{"$f":"IF(Engines!AN20<>\"\",Engines!AN20,LOOKUP(Calculations!H$84,Calculations!$C$9:$I$9,Calculations!$C26:$I26))","v":0},{"$f":"IF(Engines!AO20<>\"\",Engines!AO20,LOOKUP(Calculations!I$84,Calculations!$C$9:$I$9,Calculations!$C26:$I26))","v":0},{"$f":"IF(Engines!AP20<>\"\",Engines!AP20,LOOKUP(Calculations!J$84,Calculations!$C$9:$I$9,Calculations!$C26:$I26))","v":0},{"$f":"IF(Engines!AQ20<>\"\",Engines!AQ20,LOOKUP(Calculations!K$84,Calculations!$C$9:$I$9,Calculations!$C26:$I26))","v":0},{"$f":"IF(Engines!AR20<>\"\",Engines!AR20,LOOKUP(Calculations!L$84,Calculations!$C$9:$I$9,Calculations!$C26:$I26))","v":0},null,"Cyanide compounds",null,0,0,0,0,0,0,0,0,0,0,0,null,"Cyanide compounds",null,0,0,0,0,0,0,0,0,0,0,0]
["Formaldehyde",null,{"$f":"IF(Engines!AI21<>\"\",Engines!AI21,LOOKUP(Calculations!C$84,Calculations!$C$9:$I$9,Calculations!$C27:$I27))","v":5.28E-2},{"$f":"IF(Engines!AJ21<>\"\",Engines!AJ21,LOOKUP(Calculations!D$84,Calculations!$C$9:$I$9,Calculations!$C27:$I27))","v":5.28E-2},{"$f":"IF(Engines!AK21<>\"\",Engines!AK21,LOOKUP(Calculations!E$84,Calculations!$C$9:$I$9,Calculations!$C27:$I27))","v":5.28E-2},{"$f":"IF(Engines!AL21<>\"\",Engines!AL21,LOOKUP(Calculations!F$84,Calculations!$C$9:$I$9,Calculations!$C27:$I27))","v":5.28E-2},{"$f":"IF(Engines!AM21<>\"\",Engines!AM21,LOOKUP(Calculations!G$84,Calculations!$C$9:$I$9,Calculations!$C27:$I27))","v":5.28E-2},{"$f":"IF(Engines!AN21<>\"\",Engines!AN21,LOOKUP(Calculations!H$84,Calculations!$C$9:$I$9,Calculations!$C27:$I27))","v":5.28E-2},{"$f":"IF(Engines!AO21<>\"\",Engines!AO21,LOOKUP(Calculations!I$84,Calculations!$C$9:$I$9,Calculations!$C27:$I27))","v":5.28E-2},{"$f":"IF(Engines!AP21<>\"\",Engines!AP21,LOOKUP(Calculations!J$84,Calculations!$C$9:$I$9,Calculations!$C27:$I27))","v":5.28E-2},{"$f":"IF(Engines!AQ21<>\"\",Engines!AQ21,LOOKUP(Calculations!K$84,Calculations!$C$9:$I$9,Calculations!$C27:$I27))","v":5.28E-2},{"$f":"IF(Engines!AR21<>\"\",Engines!AR21,LOOKUP(Calculations!L$84,Calculations!$C$9:$I$9,Calculations!$C27:$I27))","v":5.28E-2},null,"Formaldehyde",null,0,0,0,0,0,0,0,0,0,0,0,null,"Formaldehyde",null,0,0,0,0,0,0,0,0,0,0,0]
["n-Hexane",null,{"$f":"IF(Engines!AI22<>\"\",Engines!AI22,LOOKUP(Calculations!C$84,Calculations!$C$9:$I$9,Calculations!$C28:$I28))","v":1.1100000000000001E-3},{"$f":"IF(Engines!AJ22<>\"\",Engines!AJ22,LOOKUP(Calculations!D$84,Calculations!$C$9:$I$9,Calculations!$C28:$I28))","v":1.1100000000000001E-3},{"$f":"IF(Engines!AK22<>\"\",Engines!AK22,LOOKUP(Calculations!E$84,Calculations!$C$9:$I$9,Calculations!$C28:$I28))","v":1.1100000000000001E-3},{"$f":"IF(Engines!AL22<>\"\",Engines!AL22,LOOKUP(Calculations!F$84,Calculations!$C$9:$I$9,Calculations!$C28:$I28))","v":1.1100000000000001E-3},{"$f":"IF(Engines!AM22<>\"\",Engines!AM22,LOOKUP(Calculations!G$84,Calculations!$C$9:$I$9,Calculations!$C28:$I28))","v":1.1100000000000001E-3},{"$f":"IF(Engines!AN22<>\"\",Engines!AN22,LOOKUP(Calculations!H$84,Calculations!$C$9:$I$9,Calculations!$C28:$I28))","v":1.1100000000000001E-3},{"$f":"IF(Engines!AO22<>\"\",Engines!AO22,LOOKUP(Calculations!I$84,Calculations!$C$9:$I$9,Calculations!$C28:$I28))","v":1.1100000000000001E-3},{"$f":"IF(Engines!AP22<>\"\",Engines!AP22,LOOKUP(Calculations!J$84,Calculations!$C$9:$I$9,Calculations!$C28:$I28))","v":1.1100000000000001E-3},{"$f":"IF(Engines!AQ22<>\"\",Engines!AQ22,LOOKUP(Calculations!K$84,Calculations!$C$9:$I$9,Calculations!$C28:$I28))","v":1.1100000000000001E-3},{"$f":"IF(Engines!AR22<>\"\",Engines!AR22,LOOKUP(Calculations!L$84,Calculations!$C$9:$I$9,Calculations!$C28:$I28))","v":1.1100000000000001E-3},null,"n-Hexane",null,0,0,0,0,0,0,0,0,0,0,0,null,"n-Hexane",null,0,0,0,0,0,0,0,0,0,0,0]
["Hydrochloric acid",null,{"$f":"IF(Engines!AI23<>\"\",Engines!AI23,LOOKUP(Calculations!C$84,Calculations!$C$9:$I$9,Calculations!$C29:$I29))","v":0},{"$f":"IF(Engines!AJ23<>\"\",Engines!AJ23,LOOKUP(Calculations!D$84,Calculations!$C$9:$I$9,Calculations!$C29:$I29))","v":0},{"$f":"IF(Engines!AK23<>\"\",Engines!AK23,LOOKUP(Calculations!E$84,Calculations!$C$9:$I$9,Calculations!$C29:$I29))","v":0},{"$f":"IF(Engines!AL23<>\"\",Engines!AL23,LOOKUP(Calculations!F$84,Calculations!$C$9:$I$9,Calculations!$C29:$I29))","v":0},{"$f":"IF(Engines!AM23<>\"\",Engines!AM23,LOOKUP(Calculations!G$84,Calculations!$C$9:$I$9,Calculations!$C29:$I29))","v":0},{"$f":"IF(Engines!AN23<>\"\",Engines!AN23,LOOKUP(Calculations!H$84,Calculations!$C$9:$I$9,Calculations!$C29:$I29))","v":0},{"$f":"IF(Engines!AO23<>\"\",Engines!AO23,LOOKUP(Calculations!I$84,Calculations!$C$9:$I$9,Calculations!$C29:$I29))","v":0},{"$f":"IF(Engines!AP23<>\"\",Engines!AP23,LOOKUP(Calculations!J$84,Calculations!$C$9:$I$9,Calculations!$C29:$I29))","v":0},{"$f":"IF(Engines!AQ23<>\"\",Engines!AQ23,LOOKUP(Calculations!K$84,Calculations!$C$9:$I$9,Calculations!$C29:$I29))","v":0},{"$f":"IF(Engines!AR23<>\"\",Engines!AR23,LOOKUP(Calculations!L$84,Calculations!$C$9:$I$9,Calculations!$C29:$I29))","v":0},null,"Hydrochloric acid",null,0,0,0,0,0,0,0,0,0,0,0,null,"Hydrochloric acid",null,0,0,0,0,0,0,0,0,0,0,0]
["Lead Compounds",null,{"$f":"IF(Engines!AI24<>\"\",Engines!AI24,LOOKUP(Calculations!C$84,Calculations!$C$9:$I$9,Calculations!$C30:$I30))","v":0},{"$f":"IF(Engines!AJ24<>\"\",Engines!AJ24,LOOKUP(Calculations!D$84,Calculations!$C$9:$I$9,Calculations!$C30:$I30))","v":0},{"$f":"IF(Engines!AK24<>\"\",Engines!AK24,LOOKUP(Calculations!E$84,Calculations!$C$9:$I$9,Calculations!$C30:$I30))","v":0},{"$f":"IF(Engines!AL24<>\"\",Engines!AL24,LOOKUP(Calculations!F$84,Calculations!$C$9:$I$9,Calculations!$C30:$I30))","v":0},{"$f":"IF(Engines!AM24<>\"\",Engines!AM24,LOOKUP(Calculations!G$84,Calculations!$C$9:$I$9,Calculations!$C30:$I30))","v":0},{"$f":"IF(Engines!AN24<>\"\",Engines!AN24,LOOKUP(Calculations!H$84,Calculations!$C$9:$I$9,Calculations!$C30:$I30))","v":0},{"$f":"IF(Engines!AO24<>\"\",Engines!AO24,LOOKUP(Calculations!I$84,Calculations!$C$9:$I$9,Calculations!$C30:$I30))","v":0},{"$f":"IF(Engines!AP24<>\"\",Engines!AP24,LOOKUP(Calculations!J$84,Calculations!$C$9:$I$9,Calculations!$C30:$I30))","v":0},{"$f":"IF(Engines!AQ24<>\"\",Engines!AQ24,LOOKUP(Calculations!K$84,Calculations!$C$9:$I$9,Calculations!$C30:$I30))","v":0},{"$f":"IF(Engines!AR24<>\"\",Engines!AR24,LOOKUP(Calculations!L$84,Calculations!$C$9:$I$9,Calculations!$C30:$I30))","v":0},null,"Lead Compounds",null,0,0,0,0,0,0,0,0,0,0,0,null,"Lead Compounds",null,0,0,0,0,0,0,0,0,0,0,0]
["Mercury compounds",null,{"$f":"IF(Engines!AI25<>\"\",Engines!AI25,LOOKUP(Calculations!C$84,Calculations!$C$9:$I$9,Calculations!$C31:$I31))","v":0},{"$f":"IF(Engines!AJ25<>\"\",Engines!AJ25,LOOKUP(Calculations!D$84,Calculations!$C$9:$I$9,Calculations!$C31:$I31))","v":0},{"$f":"IF(Engines!AK25<>\"\",Engines!AK25,LOOKUP(Calculations!E$84,Calculations!$C$9:$I$9,Calculations!$C31:$I31))","v":0},{"$f":"IF(Engines!AL25<>\"\",Engines!AL25,LOOKUP(Calculations!F$84,Calculations!$C$9:$I$9,Calculations!$C31:$I31))","v":0},{"$f":"IF(Engines!AM25<>\"\",Engines!AM25,LOOKUP(Calculations!G$84,Calculations!$C$9:$I$9,Calculations!$C31:$I31))","v":0},{"$f":"IF(Engines!AN25<>\"\",Engines!AN25,LOOKUP(Calculations!H$84,Calculations!$C$9:$I$9,Calculations!$C31:$I31))","v":0},{"$f":"IF(Engines!AO25<>\"\",Engines!AO25,LOOKUP(Calculations!I$84,Calculations!$C$9:$I$9,Calculations!$C31:$I31))","v":0},{"$f":"IF(Engines!AP25<>\"\",Engines!AP25,LOOKUP(Calculations!J$84,Calculations!$C$9:$I$9,Calculations!$C31:$I31))","v":0},{"$f":"IF(Engines!AQ25<>\"\",Engines!AQ25,LOOKUP(Calculations!K$84,Calculations!$C$9:$I$9,Calculations!$C31:$I31))","v":0},{"$f":"IF(Engines!AR25<>\"\",Engines!AR25,LOOKUP(Calculations!L$84,Calculations!$C$9:$I$9,Calculations!$C31:$I31))","v":0},null,"Mercury compounds",null,0,0,0,0,0,0,0,0,0,0,0,null,"Mercury compounds",null,0,0,0,0,0,0,0,0,0,0,0]
["Methanol",null,{"$f":"IF(Engines!AI26<>\"\",Engines!AI26,LOOKUP(Calculations!C$84,Calculations!$C$9:$I$9,Calculations!$C32:$I32))","v":2.5000000000000001E-3},{"$f":"IF(Engines!AJ26<>\"\",Engines!AJ26,LOOKUP(Calculations!D$84,Calculations!$C$9:$I$9,Calculations!$C32:$I32))","v":2.5000000000000001E-3},{"$f":"IF(Engines!AK26<>\"\",Engines!AK26,LOOKUP(Calculations!E$84,Calculations!$C$9:$I$9,Calculations!$C32:$I32))","v":2.5000000000000001E-3},{"$f":"IF(Engines!AL26<>\"\",Engines!AL26,LOOKUP(Calculations!F$84,Calculations!$C$9:$I$9,Calculations!$C32:$I32))","v":2.5000000000000001E-3},{"$f":"IF(Engines!AM26<>\"\",Engines!AM26,LOOKUP(Calculations!G$84,Calculations!$C$9:$I$9,Calculations!$C32:$I32))","v":2.5000000000000001E-3},{"$f":"IF(Engines!AN26<>\"\",Engines!AN26,LOOKUP(Calculations!H$84,Calculations!$C$9:$I$9,Calculations!$C32:$I32))","v":2.5000000000000001E-3},{"$f":"IF(Engines!AO26<>\"\",Engines!AO26,LOOKUP(Calculations!I$84,Calculations!$C$9:$I$9,Calculations!$C32:$I32))","v":2.5000000000000001E-3},{"$f":"IF(Engines!AP26<>\"\",Engines!AP26,LOOKUP(Calculations!J$84,Calculations!$C$9:$I$9,Calculations!$C32:$I32))","v":2.5000000000000001E-3},{"$f":"IF(Engines!AQ26<>\"\",Engines!AQ26,LOOKUP(Calculations!K$84,Calculations!$C$9:$I$9,Calculations!$C32:$I32))","v":2.5000000000000001E-3},{"$f":"IF(Engines!AR26<>\"\",Engines!AR26,LOOKUP(Calculations!L$84,Calculations!$C$9:$I$9,Calculations!$C32:$I32))","v":2.5000000000000001E-3},null,"Methanol",null,0,0,0,0,0,0,0,0,0,0,0,null,"Methanol",null,0,0,0,0,0,0,0,0,0,0,0]
["Methyl hydrazine",null,{"$f":"IF(Engines!AI27<>\"\",Engines!AI27,LOOKUP(Calculations!C$84,Calculations!$C$9:$I$9,Calculations!$C33:$I33))","v":0},{"$f":"IF(Engines!AJ27<>\"\",Engines!AJ27,LOOKUP(Calculations!D$84,Calculations!$C$9:$I$9,Calculations!$C33:$I33))","v":0},{"$f":"IF(Engines!AK27<>\"\",Engines!AK27,LOOKUP(Calculations!E$84,Calculations!$C$9:$I$9,Calculations!$C33:$I33))","v":0},{"$f":"IF(Engines!AL27<>\"\",Engines!AL27,LOOKUP(Calculations!F$84,Calculations!$C$9:$I$9,Calculations!$C33:$I33))","v":0},{"$f":"IF(Engines!AM27<>\"\",Engines!AM27,LOOKUP(Calculations!G$84,Calculations!$C$9:$I$9,Calculations!$C33:$I33))","v":0},{"$f":"IF(Engines!AN27<>\"\",Engines!AN27,LOOKUP(Calculations!H$84,Calculations!$C$9:$I$9,Calculations!$C33:$I33))","v":0},{"$f":"IF(Engines!AO27<>\"\",Engines!AO27,LOOKUP(Calculations!I$84,Calculations!$C$9:$I$9,Calculations!$C33:$I33))","v":0},{"$f":"IF(Engines!AP27<>\"\",Engines!AP27,LOOKUP(Calculations!J$84,Calculations!$C$9:$I$9,Calculations!$C33:$I33))","v":0},{"$f":"IF(Engines!AQ27<>\"\",Engines!AQ27,LOOKUP(Calculations!K$84,Calculations!$C$9:$I$9,Calculations!$C33:$I33))","v":0},{"$f":"IF(Engines!AR27<>\"\",Engines!AR27,LOOKUP(Calculations!L$84,Calculations!$C$9:$I$9,Calculations!$C33:$I33))","v":0},null,"Methyl hydrazine",null,0,0,0,0,0,0,0,0,0,0,0,null,"Methyl hydrazine",null,0,0,0,0,0,0,0,0,0,0,0]
["Selenium compounds",null,{"$f":"IF(Engines!AI28<>\"\",Engines!AI28,LOOKUP(Calculations!C$84,Calculations!$C$9:$I$9,Calculations!$C34:$I34))","v":0},{"$f":"IF(Engines!AJ28<>\"\",Engines!AJ28,LOOKUP(Calculations!D$84,Calculations!$C$9:$I$9,Calculations!$C34:$I34))","v":0},{"$f":"IF(Engines!AK28<>\"\",Engines!AK28,LOOKUP(Calculations!E$84,Calculations!$C$9:$I$9,Calculations!$C34:$I34))","v":0},{"$f":"IF(Engines!AL28<>\"\",Engines!AL28,LOOKUP(Calculations!F$84,Calculations!$C$9:$I$9,Calculations!$C34:$I34))","v":0},{"$f":"IF(Engines!AM28<>\"\",Engines!AM28,LOOKUP(Calculations!G$84,Calculations!$C$9:$I$9,Calculations!$C34:$I34))","v":0},{"$f":"IF(Engines!AN28<>\"\",Engines!AN28,LOOKUP(Calculations!H$84,Calculations!$C$9:$I$9,Calculations!$C34:$I34))","v":0},{"$f":"IF(Engines!AO28<>\"\",Engines!AO28,LOOKUP(Calculations!I$84,Calculations!$C$9:$I$9,Calculations!$C34:$I34))","v":0},{"$f":"IF(Engines!AP28<>\"\",Engines!AP28,LOOKUP(Calculations!J$84,Calculations!$C$9:$I$9,Calculations!$C34:$I34))","v":0},{"$f":"IF(Engines!AQ28<>\"\",Engines!AQ28,LOOKUP(Calculations!K$84,Calculations!$C$9:$I$9,Calculations!$C34:$I34))","v":0},{"$f":"IF(Engines!AR28<>\"\",Engines!AR28,LOOKUP(Calculations!L$84,Calculations!$C$9:$I$9,Calculations!$C34:$I34))","v":0},null,"Selenium compounds",null,0,0,0,0,0,0,0,0,0,0,0,null,"Selenium compounds",null,0,0,0,0,0,0,0,0,0,0,0]
["Other HAPs",null,{"$f":"IF(Engines!AI29<>\"\",Engines!AI29,LOOKUP(Calculations!C$84,Calculations!$C$9:$I$9,Calculations!$C35:$I35))","v":6.1645600000000012E-3},{"$f":"IF(Engines!AJ29<>\"\",Engines!AJ29,LOOKUP(Calculations!D$84,Calculations!$C$9:$I$9,Calculations!$C35:$I35))","v":6.1645600000000012E-3},{"$f":"IF(Engines!AK29<>\"\",Engines!AK29,LOOKUP(Calculations!E$84,Calculations!$C$9:$I$9,Calculations!$C35:$I35))","v":6.1645600000000012E-3},{"$f":"IF(Engines!AL29<>\"\",Engines!AL29,LOOKUP(Calculations!F$84,Calculations!$C$9:$I$9,Calculations!$C35:$I35))","v":6.1645600000000012E-3},{"$f":"IF(Engines!AM29<>\"\",Engines!AM29,LOOKUP(Calculations!G$84,Calculations!$C$9:$I$9,Calculations!$C35:$I35))","v":6.1645600000000012E-3},{"$f":"IF(Engines!AN29<>\"\",Engines!AN29,LOOKUP(Calculations!H$84,Calculations!$C$9:$I$9,Calculations!$C35:$I35))","v":6.1645600000000012E-3},{"$f":"IF(Engines!AO29<>\"\",Engines!AO29,LOOKUP(Calculations!I$84,Calculations!$C$9:$I$9,Calculations!$C35:$I35))","v":6.1645600000000012E-3},{"$f":"IF(Engines!AP29<>\"\",Engines!AP29,LOOKUP(Calculations!J$84,Calculations!$C$9:$I$9,Calculations!$C35:$I35))","v":6.1645600000000012E-3},{"$f":"IF(Engines!AQ29<>\"\",Engines!AQ29,LOOKUP(Calculations!K$84,Calculations!$C$9:$I$9,Calculations!$C35:$I35))","v":6.1645600000000012E-3},{"$f":"IF(Engines!AR29<>\"\",Engines!AR29,LOOKUP(Calculations!L$84,Calculations!$C$9:$I$9,Calculations!$C35:$I35))","v":6.1645600000000012E-3},null,"Other HAPs",null,0,0,0,0,0,0,0,0,0,0,0,null,"Other HAPs",null,0,0,0,0,0,0,0,0,0,0,0]
["Total HAPs",null,{"$f":"IF(Engines!AI30<>\"\",Engines!AI30,LOOKUP(Calculations!C$84,Calculations!$C$9:$I$9,Calculations!$C36:$I36))","v":7.6514559999999995E-2},{"$f":"IF(Engines!AJ30<>\"\",Engines!AJ30,LOOKUP(Calculations!D$84,Calculations!$C$9:$I$9,Calculations!$C36:$I36))","v":7.6514559999999995E-2},{"$f":"IF(Engines!AK30<>\"\",Engines!AK30,LOOKUP(Calculations!E$84,Calculations!$C$9:$I$9,Calculations!$C36:$I36))","v":7.6514559999999995E-2},{"$f":"IF(Engines!AL30<>\"\",Engines!AL30,LOOKUP(Calculations!F$84,Calculations!$C$9:$I$9,Calculations!$C36:$I36))","v":7.6514559999999995E-2},{"$f":"IF(Engines!AM30<>\"\",Engines!AM30,LOOKUP(Calculations!G$84,Calculations!$C$9:$I$9,Calculations!$C36:$I36))","v":7.6514559999999995E-2},{"$f":"IF(Engines!AN30<>\"\",Engines!AN30,LOOKUP(Calculations!H$84,Calculations!$C$9:$I$9,Calculations!$C36:$I36))","v":7.6514559999999995E-2},{"$f":"IF(Engines!AO30<>\"\",Engines!AO30,LOOKUP(Calculations!I$84,Calculations!$C$9:$I$9,Calculations!$C36:$I36))","v":7.6514559999999995E-2},{"$f":"IF(Engines!AP30<>\"\",Engines!AP30,LOOKUP(Calculations!J$84,Calculations!$C$9:$I$9,Calculations!$C36:$I36))","v":7.6514559999999995E-2},{"$f":"IF(Engines!AQ30<>\"\",Engines!AQ30,LOOKUP(Calculations!K$84,Calculations!$C$9:$I$9,Calculations!$C36:$I36))","v":7.6514559999999995E-2},{"$f":"IF(Engines!AR30<>\"\",Engines!AR30,LOOKUP(Calculations!L$84,Calculations!$C$9:$I$9,Calculations!$C36:$I36))","v":7.6514559999999995E-2},null,"Total HAPs",null,0,0,0,0,0,0,0,0,0,0,0,null,"Total HAPs",null,0,0,0,0,0,0,0,0,0,0,0]
["Green House Gasses",null,null,null,null,null,null,null,null,null,null,null,null,"Green House Gasses",null,null,null,null,null,null,null,null,null,null,null,null,null,"Green House Gasses"]
["  Carbon Dioxide (CO2)",null,{"$f":"IF(Engines!AI32<>\"\",Engines!AI32,LOOKUP(Calculations!C$84,Calculations!$C$9:$I$9,Calculations!$C38:$I38))","v":53.06},{"$f":"IF(Engines!AJ32<>\"\",Engines!AJ32,LOOKUP(Calculations!D$84,Calculations!$C$9:$I$9,Calculations!$C38:$I38))","v":53.06},{"$f":"IF(Engines!AK32<>\"\",Engines!AK32,LOOKUP(Calculations!E$84,Calculations!$C$9:$I$9,Calculations!$C38:$I38))","v":53.06},{"$f":"IF(Engines!AL32<>\"\",Engines!AL32,LOOKUP(Calculations!F$84,Calculations!$C$9:$I$9,Calculations!$C38:$I38))","v":53.06},{"$f":"IF(Engines!AM32<>\"\",Engines!AM32,LOOKUP(Calculations!G$84,Calculations!$C$9:$I$9,Calculations!$C38:$I38))","v":53.06},{"$f":"IF(Engines!AN32<>\"\",Engines!AN32,LOOKUP(Calculations!H$84,Calculations!$C$9:$I$9,Calculations!$C38:$I38))","v":53.06},{"$f":"IF(Engines!AO32<>\"\",Engines!AO32,LOOKUP(Calculations!I$84,Calculations!$C$9:$I$9,Calculations!$C38:$I38))","v":53.06},{"$f":"IF(Engines!AP32<>\"\",Engines!AP32,LOOKUP(Calculations!J$84,Calculations!$C$9:$I$9,Calculations!$C38:$I38))","v":53.06},{"$f":"IF(Engines!AQ32<>\"\",Engines!AQ32,LOOKUP(Calculations!K$84,Calculations!$C$9:$I$9,Calculations!$C38:$I38))","v":53.06},{"$f":"IF(Engines!AR32<>\"\",Engines!AR32,LOOKUP(Calculations!L$84,Calculations!$C$9:$I$9,Calculations!$C38:$I38))","v":53.06},null,"  Carbon Dioxide (CO2)",null,{"$f":"C112*C$118*2.20462","v":0},{"$f":"D112*D$118*2.20462","v":0},0,0,0,0,0,0,0,0,{"$f":"SUM(P112:Y112)","v":0},null,"  Carbon Dioxide (CO2)",null,{"$f":"P112*C$119/2000","v":0},{"$f":"Q112*D$119/2000","v":0},{"$f":"R112*E$119/2000","v":0},{"$f":"S112*F$119/2000","v":0},{"$f":"T112*G$119/2000","v":0},{"$f":"U112*H$119/2000","v":0},{"$f":"V112*I$119/2000","v":0},{"$f":"W112*J$119/2000","v":0},{"$f":"X112*K$119/2000","v":0},{"$f":"Y112*L$119/2000","v":0},{"$f":"SUM(AD112:AM112)","v":0}]
["  Methane (CH4)",null,{"$f":"IF(Engines!AI33<>\"\",Engines!AI33,LOOKUP(Calculations!C$84,Calculations!$C$9:$I$9,Calculations!$C39:$I39))","v":1E-3},{"$f":"IF(Engines!AJ33<>\"\",Engines!AJ33,LOOKUP(Calculations!D$84,Calculations!$C$9:$I$9,Calculations!$C39:$I39))","v":1E-3},{"$f":"IF(Engines!AK33<>\"\",Engines!AK33,LOOKUP(Calculations!E$84,Calculations!$C$9:$I$9,Calculations!$C39:$I39))","v":1E-3},{"$f":"IF(Engines!AL33<>\"\",Engines!AL33,LOOKUP(Calculations!F$84,Calculations!$C$9:$I$9,Calculations!$C39:$I39))","v":1E-3},{"$f":"IF(Engines!AM33<>\"\",Engines!AM33,LOOKUP(Calculations!G$84,Calculations!$C$9:$I$9,Calculations!$C39:$I39))","v":1E-3},{"$f":"IF(Engines!AN33<>\"\",Engines!AN33,LOOKUP(Calculations!H$84,Calculations!$C$9:$I$9,Calculations!$C39:$I39))","v":1E-3},{"$f":"IF(Engines!AO33<>\"\",Engines!AO33,LOOKUP(Calculations!I$84,Calculations!$C$9:$I$9,Calculations!$C39:$I39))","v":1E-3},{"$f":"IF(Engines!AP33<>\"\",Engines!AP33,LOOKUP(Calculations!J$84,Calculations!$C$9:$I$9,Calculations!$C39:$I39))","v":1E-3},{"$f":"IF(Engines!AQ33<>\"\",Engines!AQ33,LOOKUP(Calculations!K$84,Calculations!$C$9:$I$9,Calculations!$C39:$I39))","v":1E-3},{"$f":"IF(Engines!AR33<>\"\",Engines!AR33,LOOKUP(Calculations!L$84,Calculations!$C$9:$I$9,Calculations!$C39:$I39))","v":1E-3},null,"  Methane (CH4)",null,{"$f":"C113*C$118*2.20462","v":0},{"$f":"D113*D$118*2.20462","v":0},{"$f":"E113*E$118*2.20462","v":0},{"$f":"F113*F$118*2.20462","v":0},{"$f":"G113*G$118*2.20462","v":0},{"$f":"H113*H$118*2.20462","v":0},{"$f":"I113*I$118*2.20462","v":0},{"$f":"J113*J$118*2.20462","v":0},{"$f":"K113*K$118*2.20462","v":0},{"$f":"L113*L$118*2.20462","v":0},0,null,"  Methane (CH4)",null,0,0,0,0,0,0,0,0,0,0,0]
["  Nitrous Oxide (N2O)",null,{"$f":"IF(Engines!AI34<>\"\",Engines!AI34,LOOKUP(Calculations!C$84,Calculations!$C$9:$I$9,Calculations!$C40:$I40))","v":1E-4},{"$f":"IF(Engines!AJ34<>\"\",Engines!AJ34,LOOKUP(Calculations!D$84,Calculations!$C$9:$I$9,Calculations!$C40:$I40))","v":1E-4},{"$f":"IF(Engines!AK34<>\"\",Engines!AK34,LOOKUP(Calculations!E$84,Calculations!$C$9:$I$9,Calculations!$C40:$I40))","v":1E-4},{"$f":"IF(Engines!AL34<>\"\",Engines!AL34,LOOKUP(Calculations!F$84,Calculations!$C$9:$I$9,Calculations!$C40:$I40))","v":1E-4},{"$f":"IF(Engines!AM34<>\"\",Engines!AM34,LOOKUP(Calculations!G$84,Calculations!$C$9:$I$9,Calculations!$C40:$I40))","v":1E-4},{"$f":"IF(Engines!AN34<>\"\",Engines!AN34,LOOKUP(Calculations!H$84,Calculations!$C$9:$I$9,Calculations!$C40:$I40))","v":1E-4},{"$f":"IF(Engines!AO34<>\"\",Engines!AO34,LOOKUP(Calculations!I$84,Calculations!$C$9:$I$9,Calculations!$C40:$I40))","v":1E-4},{"$f":"IF(Engines!AP34<>\"\",Engines!AP34,LOOKUP(Calculations!J$84,Calculations!$C$9:$I$9,Calculations!$C40:$I40))","v":1E-4},{"$f":"IF(Engines!AQ34<>\"\",Engines!AQ34,LOOKUP(Calculations!K$84,Calculations!$C$9:$I$9,Calculations!$C40:$I40))","v":1E-4},{"$f":"IF(Engines!AR34<>\"\",Engines!AR34,LOOKUP(Calculations!L$84,Calculations!$C$9:$I$9,Calculations!$C40:$I40))","v":1E-4},null,"  Nitrous Oxide (N2O)",null,{"$f":"C114*C$118*2.20462","v":0},0,0,0,0,0,0,0,0,0,0,null,"  Nitrous Oxide (N2O)",null,0,0,0,0,0,0,0,0,0,0,0]
[]
["Engine Rating (hp)",null,{"$f":"Engines!D29","v":0},{"$f":"Engines!D30","v":0},{"$f":"Engines!D31","v":0},{"$f":"Engines!D32","v":0},{"$f":"Engines!D33","v":0},{"$f":"Engines!D34","v":0},{"$f":"Engines!D35","v":0},{"$f":"Engines!D36","v":0},{"$f":"Engines!D37","v":0},{"$f":"Engines!D38","v":0}]
[{"$f":"Engines!E28","v":"Fuel Use Factor (Btu/hp-hr)"},null,{"$f":"Engines!E29","v":0},{"$f":"Engines!E30","v":0},{"$f":"Engines!E31","v":0},{"$f":"Engines!E32","v":0},{"$f":"Engines!E33","v":0},{"$f":"Engines!E34","v":0},{"$f":"Engines!E35","v":0},{"$f":"Engines!E36","v":0},{"$f":"Engines!E37","v":0},{"$f":"Engines!E38","v":0}]
["Engine Heat Input (MMBtu/hr)",null,{"$f":"C116*C117/1000000","v":0},{"$f":"D116*D117/1000000","v":0},0,0,0,0,0,0,0,0]
["Operating Hours",null,{"$f":"Engines!I29","v":8760},{"$f":"Engines!I30","v":8760},{"$f":"Engines!I31","v":8760},{"$f":"Engines!I32","v":8760},{"$f":"Engines!I33","v":8760},{"$f":"Engines!I34","v":8760},{"$f":"Engines!I35","v":8760},{"$f":"Engines!I36","v":8760},{"$f":"Engines!I37","v":8760},{"$f":"Engines!I38","v":8760}]
[]
[]
[]
[null,null,"1st Compression Engine","2nd Compression Engine","3rd Compression Engine","4th Compression Engine","5th Compression Engine","6th Compression Engine","7th Compression Engine","8th Compression Engine","9th Compression Engine","10th Compression Engine",null,null,null,"1st Compression Engine","2nd Compression Engine","3rd Compression Engine","4th Compression Engine","5th Compression Engine","6th Compression Engine","7th Compression Engine","8th Compression Engine","9th Compression Engine","10th Compression Engine","Total",null,null,null,"1st Compression Engine","2nd Compression Engine","3rd Compression Engine","4th Compression Engine","5th Compression Engine","6th Compression Engine","7th Compression Engine","8th Compression Engine","9th Compression Engine","10th Compression Engine","Total"]
[null,null,{"$f":"IF(Engines!N16<600,5,6)","v":5},{"$f":"IF(Engines!N17<600,5,6)","v":5},{"$f":"IF(Engines!N18<600,5,6)","v":5},{"$f":"IF(Engines!N19<600,5,6)","v":5},{"$f":"IF(Engines!N20<600,5,6)","v":5},{"$f":"IF(Engines!N21<600,5,6)","v":5},{"$f":"IF(Engines!N22<600,5,6)","v":5},{"$f":"IF(Engines!N23<600,5,6)","v":5},{"$f":"IF(Engines!N24<600,5,6)","v":5},{"$f":"IF(Engines!N25<600,5,6)","v":5},null,null,null,"(lb/hr)",null,null,null,null,null,null,null,null,null,null,null,null,null,"(ton/yr)"]
["PMfilterable",null,{"$f":"IF(Engines!W43<>\"\",Engines!W43,LOOKUP(Calculations!C$124,Calculations!$C$9:$I$9,Calculations!$C11:$I11))","v":0.31},{"$f":"IF(Engines!X43<>\"\",Engines!X43,LOOKUP(Calculations!D$124,Calculations!$C$9:$I$9,Calculations!$C11:$I11))","v":0.31},{"$f":"IF(Engines!Y43<>\"\",Engines!Y43,LOOKUP(Calculations!E$124,Calculations!$C$9:$I$9,Calculations!$C11:$I11))","v":0.31},{"$f":"IF(Engines!Z43<>\"\",Engines!Z43,LOOKUP(Calculations!F$124,Calculations!$C$9:$I$9,Calculations!$C11:$I11))","v":0.31},{"$f":"IF(Engines!AA43<>\"\",Engines!AA43,LOOKUP(Calculations!G$124,Calculations!$C$9:$I$9,Calculations!$C11:$I11))","v":0.31},{"$f":"IF(Engines!AB43<>\"\",Engines!AB43,LOOKUP(Calculations!H$124,Calculations!$C$9:$I$9,Calculations!$C11:$I11))","v":0.31},{"$f":"IF(Engines!AC43<>\"\",Engines!AC43,LOOKUP(Calculations!I$124,Calculations!$C$9:$I$9,Calculations!$C11:$I11))","v":0.31},{"$f":"IF(Engines!AD43<>\"\",Engines!AD43,LOOKUP(Calculations!J$124,Calculations!$C$9:$I$9,Calculations!$C11:$I11))","v":0.31},{"$f":"IF(Engines!AE43<>\"\",Engines!AE43,LOOKUP(Calculations!K$124,Calculations!$C$9:$I$9,Calculations!$C11:$I11))","v":0.31},{"$f":"IF(Engines!AF43<>\"\",Engines!AF43,LOOKUP(Calculations!L$124,Calculations!$C$9:$I$9,Calculations!$C11:$I11))","v":0.31},null,"PMfilterable",null,{"$f":"C125*$D$6*C$157","v":0},0,0,0,0,0,0,0,0,0,{"$f":"SUM(P125:Y125)","v":0},null,"PMfilterable",null,{"$f":"P125*C$158/2000","v":0},{"$f":"Q125*D$158/2000","v":0},0,0,0,0,0,0,0,0,{"$f":"SUM(AD125:AM125)","v":0}]
["PM10",null,{"$f":"IF(Engines!W44<>\"\",Engines!W44,LOOKUP(Calculations!C$124,Calculations!$C$9:$I$9,Calculations!$C12:$I12))","v":0.31},{"$f":"IF(Engines!X44<>\"\",Engines!X44,LOOKUP(Calculations!D$124,Calculations!$C$9:$I$9,Calculations!$C12:$I12))","v":0.31},{"$f":"IF(Engines!Y44<>\"\",Engines!Y44,LOOKUP(Calculations!E$124,Calculations!$C$9:$I$9,Calculations!$C12:$I12))","v":0.31},{"$f":"IF(Engines!Z44<>\"\",Engines!Z44,LOOKUP(Calculations!F$124,Calculations!$C$9:$I$9,Calculations!$C12:$I12))","v":0.31},{"$f":"IF(Engines!AA44<>\"\",Engines!AA44,LOOKUP(Calculations!G$124,Calculations!$C$9:$I$9,Calculations!$C12:$I12))","v":0.31},{"$f":"IF(Engines!AB44<>\"\",Engines!AB44,LOOKUP(Calculations!H$124,Calculations!$C$9:$I$9,Calculations!$C12:$I12))","v":0.31},{"$f":"IF(Engines!AC44<>\"\",Engines!AC44,LOOKUP(Calculations!I$124,Calculations!$C$9:$I$9,Calculations!$C12:$I12))","v":0.31},{"$f":"IF(Engines!AD44<>\"\",Engines!AD44,LOOKUP(Calculations!J$124,Calculations!$C$9:$I$9,Calculations!$C12:$I12))","v":0.31},{"$f":"IF(Engines!AE44<>\"\",Engines!AE44,LOOKUP(Calculations!K$124,Calculations!$C$9:$I$9,Calculations!$C12:$I12))","v":0.31},{"$f":"IF(Engines!AF44<>\"\",Engines!AF44,LOOKUP(Calculations!L$124,Calculations!$C$9:$I$9,Calculations!$C12:$I12))","v":0.31},null,"PM10",null,0,0,0,0,0,0,0,0,0,0,{"$f":"SUM(P126:Y126)","v":0},null,"PM10",null,{"$f":"P126*C$158/2000","v":0},{"$f":"Q126*D$158/2000","v":0},{"$f":"R126*E$158/2000","v":0},{"$f":"S126*F$158/2000","v":0},{"$f":"T126*G$158/2000","v":0},{"$f":"U126*H$158/2000","v":0},{"$f":"V126*I$158/2000","v":0},{"$f":"W126*J$158/2000","v":0},{"$f":"X126*K$158/2000","v":0},{"$f":"Y126*L$158/2000","v":0},{"$f":"SUM(AD126:AM126)","v":0}]
["PM2.5",null,{"$f":"IF(Engines!W45<>\"\",Engines!W45,LOOKUP(Calculations!C$124,Calculations!$C$9:$I$9,Calculations!$C13:$I13))","v":0.31},{"$f":"IF(Engines!X45<>\"\",Engines!X45,LOOKUP(Calculations!D$124,Calculations!$C$9:$I$9,Calculations!$C13:$I13))","v":0.31},{"$f":"IF(Engines!Y45<>\"\",Engines!Y45,LOOKUP(Calculations!E$124,Calculations!$C$9:$I$9,Calculations!$C13:$I13))","v":0.31},{"$f":"IF(Engines!Z45<>\"\",Engines!Z45,LOOKUP(Calculations!F$124,Calculations!$C$9:$I$9,Calculations!$C13:$I13))","v":0.31},{"$f":"IF(Engines!AA45<>\"\",Engines!AA45,LOOKUP(Calculations!G$124,Calculations!$C$9:$I$9,Calculations!$C13:$I13))","v":0.31},{"$f":"IF(Engines!AB45<>\"\",Engines!AB45,LOOKUP(Calculations!H$124,Calculations!$C$9:$I$9,Calculations!$C13:$I13))","v":0.31},{"$f":"IF(Engines!AC45<>\"\",Engines!AC45,LOOKUP(Calculations!I$124,Calculations!$C$9:$I$9,Calculations!$C13:$I13))","v":0.31},{"$f":"IF(Engines!AD45<>\"\",Engines!AD45,LOOKUP(Calculations!J$124,Calculations!$C$9:$I$9,Calculations!$C13:$I13))","v":0.31},{"$f":"IF(Engines!AE45<>\"\",Engines!AE45,LOOKUP(Calculations!K$124,Calculations!$C$9:$I$9,Calculations!$C13:$I13))","v":0.31},{"$f":"IF(Engines!AF45<>\"\",Engines!AF45,LOOKUP(Calculations!L$124,Calculations!$C$9:$I$9,Calculations!$C13:$I13))","v":0.31},null,"PM2.5",null,0,0,0,0,0,0,0,0,0,0,0,null,"PM2.5",null,0,0,0,0,0,0,0,0,0,0,0]
["SO2",null,{"$f":"IF(Engines!W46<>\"\",Engines!W46,LOOKUP(Calculations!C$124,Calculations!$C$9:$I$9,Calculations!$C14:$I14))","v":0.28999999999999998},{"$f":"IF(Engines!X46<>\"\",Engines!X46,LOOKUP(Calculations!D$124,Calculations!$C$9:$I$9,Calculations!$C14:$I14))","v":0.28999999999999998},{"$f":"IF(Engines!Y46<>\"\",Engines!Y46,LOOKUP(Calculations!E$124,Calculations!$C$9:$I$9,Calculations!$C14:$I14))","v":0.28999999999999998},{"$f":"IF(Engines!Z46<>\"\",Engines!Z46,LOOKUP(Calculations!F$124,Calculations!$C$9:$I$9,Calculations!$C14:$I14))","v":0.28999999999999998},{"$f":"IF(Engines!AA46<>\"\",Engines!AA46,LOOKUP(Calculations!G$124,Calculations!$C$9:$I$9,Calculations!$C14:$I14))","v":0.28999999999999998},{"$f":"IF(Engines!AB46<>\"\",Engines!AB46,LOOKUP(Calculations!H$124,Calculations!$C$9:$I$9,Calculations!$C14:$I14))","v":0.28999999999999998},{"$f":"IF(Engines!AC46<>\"\",Engines!AC46,LOOKUP(Calculations!I$124,Calculations!$C$9:$I$9,Calculations!$C14:$I14))","v":0.28999999999999998},{"$f":"IF(Engines!AD46<>\"\",Engines!AD46,LOOKUP(Calculations!J$124,Calculations!$C$9:$I$9,Calculations!$C14:$I14))","v":0.28999999999999998},{"$f":"IF(Engines!AE46<>\"\",Engines!AE46,LOOKUP(Calculations!K$124,Calculations!$C$9:$I$9,Calculations!$C14:$I14))","v":0.28999999999999998},{"$f":"IF(Engines!AF46<>\"\",Engines!AF46,LOOKUP(Calculations!L$124,Calculations!$C$9:$I$9,Calculations!$C14:$I14))","v":0.28999999999999998},null,"SO2",null,0,0,0,0,0,0,0,0,0,0,0,null,"SO2",null,0,0,0,0,0,0,0,0,0,0,0]
["NOx",null,{"$f":"IF(Engines!W47<>\"\",Engines!W47,LOOKUP(Calculations!C$124,Calculations!$C$9:$I$9,Calculations!$C15:$I15))","v":4.41},{"$f":"IF(Engines!X47<>\"\",Engines!X47,LOOKUP(Calculations!D$124,Calculations!$C$9:$I$9,Calculations!$C15:$I15))","v":4.41},{"$f":"IF(Engines!Y47<>\"\",Engines!Y47,LOOKUP(Calculations!E$124,Calculations!$C$9:$I$9,Calculations!$C15:$I15))","v":4.41},{"$f":"IF(Engines!Z47<>\"\",Engines!Z47,LOOKUP(Calculations!F$124,Calculations!$C$9:$I$9,Calculations!$C15:$I15))","v":4.41},{"$f":"IF(Engines!AA47<>\"\",Engines!AA47,LOOKUP(Calculations!G$124,Calculations!$C$9:$I$9,Calculations!$C15:$I15))","v":4.41},{"$f":"IF(Engines!AB47<>\"\",Engines!AB47,LOOKUP(Calculations!H$124,Calculations!$C$9:$I$9,Calculations!$C15:$I15))","v":4.41},{"$f":"IF(Engines!AC47<>\"\",Engines!AC47,LOOKUP(Calculations!I$124,Calculations!$C$9:$I$9,Calculations!$C15:$I15))","v":4.41},{"$f":"IF(Engines!AD47<>\"\",Engines!AD47,LOOKUP(Calculations!J$124,Calculations!$C$9:$I$9,Calculations!$C15:$I15))","v":4.41},{"$f":"IF(Engines!AE47<>\"\",Engines!AE47,LOOKUP(Calculations!K$124,Calculations!$C$9:$I$9,Calculations!$C15:$I15))","v":4.41},{"$f":"IF(Engines!AF47<>\"\",Engines!AF47,LOOKUP(Calculations!L$124,Calculations!$C$9:$I$9,Calculations!$C15:$I15))","v":4.41},null,"NOx",null,0,0,0,0,0,0,0,0,0,0,0,null,"NOx",null,0,0,0,0,0,0,0,0,0,0,0]
["CO",null,{"$f":"IF(Engines!W48<>\"\",Engines!W48,LOOKUP(Calculations!C$124,Calculations!$C$9:$I$9,Calculations!$C16:$I16))","v":0.95},{"$f":"IF(Engines!X48<>\"\",Engines!X48,LOOKUP(Calculations!D$124,Calculations!$C$9:$I$9,Calculations!$C16:$I16))","v":0.95},{"$f":"IF(Engines!Y48<>\"\",Engines!Y48,LOOKUP(Calculations!E$124,Calculations!$C$9:$I$9,Calculations!$C16:$I16))","v":0.95},{"$f":"IF(Engines!Z48<>\"\",Engines!Z48,LOOKUP(Calculations!F$124,Calculations!$C$9:$I$9,Calculations!$C16:$I16))","v":0.95},{"$f":"IF(Engines!AA48<>\"\",Engines!AA48,LOOKUP(Calculations!G$124,Calculations!$C$9:$I$9,Calculations!$C16:$I16))","v":0.95},{"$f":"IF(Engines!AB48<>\"\",Engines!AB48,LOOKUP(Calculations!H$124,Calculations!$C$9:$I$9,Calculations!$C16:$I16))","v":0.95},{"$f":"IF(Engines!AC48<>\"\",Engines!AC48,LOOKUP(Calculations!I$124,Calculations!$C$9:$I$9,Calculations!$C16:$I16))","v":0.95},{"$f":"IF(Engines!AD48<>\"\",Engines!AD48,LOOKUP(Calculations!J$124,Calculations!$C$9:$I$9,Calculations!$C16:$I16))","v":0.95},{"$f":"IF(Engines!AE48<>\"\",Engines!AE48,LOOKUP(Calculations!K$124,Calculations!$C$9:$I$9,Calculations!$C16:$I16))","v":0.95},{"$f":"IF(Engines!AF48<>\"\",Engines!AF48,LOOKUP(Calculations!L$124,Calculations!$C$9:$I$9,Calculations!$C16:$I16))","v":0.95},null,"CO",null,0,0,0,0,0,0,0,0,0,0,0,null,"CO",null,0,0,0,0,0,0,0,0,0,0,0]
["VOC",null,{"$f":"IF(Engines!W49<>\"\",Engines!W49,LOOKUP(Calculations!C$124,Calculations!$C$9:$I$9,Calculations!$C17:$I17))","v":0.36},{"$f":"IF(Engines!X49<>\"\",Engines!X49,LOOKUP(Calculations!D$124,Calculations!$C$9:$I$9,Calculations!$C17:$I17))","v":0.36},{"$f":"IF(Engines!Y49<>\"\",Engines!Y49,LOOKUP(Calculations!E$124,Calculations!$C$9:$I$9,Calculations!$C17:$I17))","v":0.36},{"$f":"IF(Engines!Z49<>\"\",Engines!Z49,LOOKUP(Calculations!F$124,Calculations!$C$9:$I$9,Calculations!$C17:$I17))","v":0.36},{"$f":"IF(Engines!AA49<>\"\",Engines!AA49,LOOKUP(Calculations!G$124,Calculations!$C$9:$I$9,Calculations!$C17:$I17))","v":0.36},{"$f":"IF(Engines!AB49<>\"\",Engines!AB49,LOOKUP(Calculations!H$124,Calculations!$C$9:$I$9,Calculations!$C17:$I17))","v":0.36},{"$f":"IF(Engines!AC49<>\"\",Engines!AC49,LOOKUP(Calculations!I$124,Calculations!$C$9:$I$9,Calculations!$C17:$I17))","v":0.36},{"$f":"IF(Engines!AD49<>\"\",Engines!AD49,LOOKUP(Calculations!J$124,Calculations!$C$9:$I$9,Calculations!$C17:$I17))","v":0.36},{"$f":"IF(Engines!AE49<>\"\",Engines!AE49,LOOKUP(Calculations!K$124,Calculations!$C$9:$I$9,Calculations!$C17:$I17))","v":0.36},{"$f":"IF(Engines!AF49<>\"\",Engines!AF49,LOOKUP(Calculations!L$124,Calculations!$C$9:$I$9,Calculations!$C17:$I17))","v":0.36},null,"VOC",null,0,0,0,0,0,0,0,0,0,0,0,null,"VOC",null,0,0,0,0,0,0,0,0,0,0,0]
["Individual HAP",null,null,null,null,null,null,null,null,null,null,null,null,"Individual HAP",null,null,null,null,null,null,null,null,null,null,null,null,null,"Individual HAP"]
["Acetaldehyde",null,{"$f":"IF(Engines!W51<>\"\",Engines!W51,LOOKUP(Calculations!C$124,Calculations!$C$9:$I$9,Calculations!$C19:$I19))","v":7.67E-4},{"$f":"IF(Engines!X51<>\"\",Engines!X51,LOOKUP(Calculations!D$124,Calculations!$C$9:$I$9,Calculations!$C19:$I19))","v":7.67E-4},{"$f":"IF(Engines!Y51<>\"\",Engines!Y51,LOOKUP(Calculations!E$124,Calculations!$C$9:$I$9,Calculations!$C19:$I19))","v":7.67E-4},{"$f":"IF(Engines!Z51<>\"\",Engines!Z51,LOOKUP(Calculations!F$124,Calculations!$C$9:$I$9,Calculations!$C19:$I19))","v":7.67E-4},{"$f":"IF(Engines!AA51<>\"\",Engines!AA51,LOOKUP(Calculations!G$124,Calculations!$C$9:$I$9,Calculations!$C19:$I19))","v":7.67E-4},{"$f":"IF(Engines!AB51<>\"\",Engines!AB51,LOOKUP(Calculations!H$124,Calculations!$C$9:$I$9,Calculations!$C19:$I19))","v":7.67E-4},{"$f":"IF(Engines!AC51<>\"\",Engines!AC51,LOOKUP(Calculations!I$124,Calculations!$C$9:$I$9,Calculations!$C19:$I19))","v":7.67E-4},{"$f":"IF(Engines!AD51<>\"\",Engines!AD51,LOOKUP(Calculations!J$124,Calculations!$C$9:$I$9,Calculations!$C19:$I19))","v":7.67E-4},{"$f":"IF(Engines!AE51<>\"\",Engines!AE51,LOOKUP(Calculations!K$124,Calculations!$C$9:$I$9,Calculations!$C19:$I19))","v":7.67E-4},{"$f":"IF(Engines!AF51<>\"\",Engines!AF51,LOOKUP(Calculations!L$124,Calculations!$C$9:$I$9,Calculations!$C19:$I19))","v":7.67E-4},null,"Acetaldehyde",null,{"$f":"C133*$D$6*C$157","v":0},{"$f":"D133*$D$6*D$157","v":0},{"$f":"E133*$D$6*E$157","v":0},{"$f":"F133*$D$6*F$157","v":0},{"$f":"G133*$D$6*G$157","v":0},{"$f":"H133*$D$6*H$157","v":0},{"$f":"I133*$D$6*I$157","v":0},{"$f":"J133*$D$6*J$157","v":0},{"$f":"K133*$D$6*K$157","v":0},{"$f":"L133*$D$6*L$157","v":0},{"$f":"SUM(P133:Y133)","v":0},null,"Acetaldehyde",null,{"$f":"P133*C$158/2000","v":0},{"$f":"Q133*D$158/2000","v":0},{"$f":"R133*E$158/2000","v":0},{"$f":"S133*F$158/2000","v":0},{"$f":"T133*G$158/2000","v":0},{"$f":"U133*H$158/2000","v":0},{"$f":"V133*I$158/2000","v":0},{"$f":"W133*J$158/2000","v":0},{"$f":"X133*K$158/2000","v":0},{"$f":"Y133*L$158/2000","v":0},{"$f":"SUM(AD133:AM133)","v":0}]
["Acrolein",null,{"$f":"IF(Engines!W52<>\"\",Engines!W52,LOOKUP(Calculations!C$124,Calculations!$C$9:$I$9,Calculations!$C20:$I20))","v":9.2499999999999999E-5},{"$f":"IF(Engines!X52<>\"\",Engines!X52,LOOKUP(Calculations!D$124,Calculations!$C$9:$I$9,Calculations!$C20:$I20))","v":9.2499999999999999E-5},{"$f":"IF(Engines!Y52<>\"\",Engines!Y52,LOOKUP(Calculations!E$124,Calculations!$C$9:$I$9,Calculations!$C20:$I20))","v":9.2499999999999999E-5},{"$f":"IF(Engines!Z52<>\"\",Engines!Z52,LOOKUP(Calculations!F$124,Calculations!$C$9:$I$9,Calculations!$C20:$I20))","v":9.2499999999999999E-5},{"$f":"IF(Engines!AA52<>\"\",Engines!AA52,LOOKUP(Calculations!G$124,Calculations!$C$9:$I$9,Calculations!$C20:$I20))","v":9.2499999999999999E-5},{"$f":"IF(Engines!AB52<>\"\",Engines!AB52,LOOKUP(Calculations!H$124,Calculations!$C$9:$I$9,Calculations!$C20:$I20))","v":9.2499999999999999E-5},{"$f":"IF(Engines!AC52<>\"\",Engines!AC52,LOOKUP(Calculations!I$124,Calculations!$C$9:$I$9,Calculations!$C20:$I20))","v":9.2499999999999999E-5},{"$f":"IF(Engines!AD52<>\"\",Engines!AD52,LOOKUP(Calculations!J$124,Calculations!$C$9:$I$9,Calculations!$C20:$I20))","v":9.2499999999999999E-5},{"$f":"IF(Engines!AE52<>\"\",Engines!AE52,LOOKUP(Calculations!K$124,Calculations!$C$9:$I$9,Calculations!$C20:$I20))","v":9.2499999999999999E-5},{"$f":"IF(Engines!AF52<>\"\",Engines!AF52,LOOKUP(Calculations!L$124,Calculations!$C$9:$I$9,Calculations!$C20:$I20))","v":9.2499999999999999E-5},null,"Acrolein",null,0,0,0,0,0,0,0,0,0,0,0,null,"Acrolein",null,0,0,0,0,0,0,0,0,0,0,0]
["Arsenic compounds",null,{"$f":"IF(Engines!W53<>\"\",Engines!W53,LOOKUP(Calculations!C$124,Calculations!$C$9:$I$9,Calculations!$C21:$I21))","v":0},{"$f":"IF(Engines!X53<>\"\",Engines!X53,LOOKUP(Calculations!D$124,Calculations!$C$9:$I$9,Calculations!$C21:$I21))","v":0},{"$f":"IF(Engines!Y53<>\"\",Engines!Y53,LOOKUP(Calculations!E$124,Calculations!$C$9:$I$9,Calculations!$C21:$I21))","v":0},{"$f":"IF(Engines!Z53<>\"\",Engines!Z53,LOOKUP(Calculations!F$124,Calculations!$C$9:$I$9,Calculations!$C21:$I21))","v":0},{"$f":"IF(Engines!AA53<>\"\",Engines!AA53,LOOKUP(Calculations!G$124,Calculations!$C$9:$I$9,Calculations!$C21:$I21))","v":0},{"$f":"IF(Engines!AB53<>\"\",Engines!AB53,LOOKUP(Calculations!H$124,Calculations!$C$9:$I$9,Calculations!$C21:$I21))","v":0},{"$f":"IF(Engines!AC53<>\"\",Engines!AC53,LOOKUP(Calculations!I$124,Calculations!$C$9:$I$9,Calculations!$C21:$I21))","v":0},{"$f":"IF(Engines!AD53<>\"\",Engines!AD53,LOOKUP(Calculations!J$124,Calculations!$C$9:$I$9,Calculations!$C21:$I21))","v":0},{"$f":"IF(Engines!AE53<>\"\",Engines!AE53,LOOKUP(Calculations!K$124,Calculations!$C$9:$I$9,Calculations!$C21:$I21))","v":0},{"$f":"IF(Engines!AF53<>\"\",Engines!AF53,LOOKUP(Calculations!L$124,Calculations!$C$9:$I$9,Calculations!$C21:$I21))","v":0},null,"Arsenic compounds",null,0,0,0,0,0,0,0,0,0,0,0,null,"Arsenic compounds",null,0,0,0,0,0,0,0,0,0,0,0]
["Benzene",null,{"$f":"IF(Engines!W54<>\"\",Engines!W54,LOOKUP(Calculations!C$124,Calculations!$C$9:$I$9,Calculations!$C22:$I22))","v":9.3300000000000002E-4},{"$f":"IF(Engines!X54<>\"\",Engines!X54,LOOKUP(Calculations!D$124,Calculations!$C$9:$I$9,Calculations!$C22:$I22))","v":9.3300000000000002E-4},{"$f":"IF(Engines!Y54<>\"\",Engines!Y54,LOOKUP(Calculations!E$124,Calculations!$C$9:$I$9,Calculations!$C22:$I22))","v":9.3300000000000002E-4},{"$f":"IF(Engines!Z54<>\"\",Engines!Z54,LOOKUP(Calculations!F$124,Calculations!$C$9:$I$9,Calculations!$C22:$I22))","v":9.3300000000000002E-4},{"$f":"IF(Engines!AA54<>\"\",Engines!AA54,LOOKUP(Calculations!G$124,Calculations!$C$9:$I$9,Calculations!$C22:$I22))","v":9.3300000000000002E-4},{"$f":"IF(Engines!AB54<>\"\",Engines!AB54,LOOKUP(Calculations!H$124,Calculations!$C$9:$I$9,Calculations!$C22:$I22))","v":9.3300000000000002E-4},{"$f":"IF(Engines!AC54<>\"\",Engines!AC54,LOOKUP(Calculations!I$124,Calculations!$C$9:$I$9,Calculations!$C22:$I22))","v":9.3300000000000002E-4},{"$f":"IF(Engines!AD54<>\"\",Engines!AD54,LOOKUP(Calculations!J$124,Calculations!$C$9:$I$9,Calculations!$C22:$I22))","v":9.3300000000000002E-4},{"$f":"IF(Engines!AE54<>\"\",Engines!AE54,LOOKUP(Calculations!K$124,Calculations!$C$9:$I$9,Calculations!$C22:$I22))","v":9.3300000000000002E-4},{"$f":"IF(Engines!AF54<>\"\",Engines!AF54,LOOKUP(Calculations!L$124,Calculations!$C$9:$I$9,Calculations!$C22:$I22))","v":9.3300000000000002E-4},null,"Benzene",null,0,0,0,0,0,0,0,0,0,0,0,null,"Benzene",null,0,0,0,0,0,0,0,0,0,0,0]
["Benzyl chloride",null,{"$f":"IF(Engines!W55<>\"\",Engines!W55,LOOKUP(Calculations!C$124,Calculations!$C$9:$I$9,Calculations!$C23:$I23))","v":0},{"$f":"IF(Engines!X55<>\"\",Engines!X55,LOOKUP(Calculations!D$124,Calculations!$C$9:$I$9,Calculations!$C23:$I23))","v":0},{"$f":"IF(Engines!Y55<>\"\",Engines!Y55,LOOKUP(Calculations!E$124,Calculations!$C$9:$I$9,Calculations!$C23:$I23))","v":0},{"$f":"IF(Engines!Z55<>\"\",Engines!Z55,LOOKUP(Calculations!F$124,Calculations!$C$9:$I$9,Calculations!$C23:$I23))","v":0},{"$f":"IF(Engines!AA55<>\"\",Engines!AA55,LOOKUP(Calculations!G$124,Calculations!$C$9:$I$9,Calculations!$C23:$I23))","v":0},{"$f":"IF(Engines!AB55<>\"\",Engines!AB55,LOOKUP(Calculations!H$124,Calculations!$C$9:$I$9,Calculations!$C23:$I23))","v":0},{"$f":"IF(Engines!AC55<>\"\",Engines!AC55,LOOKUP(Calculations!I$124,Calculations!$C$9:$I$9,Calculations!$C23:$I23))","v":0},{"$f":"IF(Engines!AD55<>\"\",Engines!AD55,LOOKUP(Calculations!J$124,Calculations!$C$9:$I$9,Calculations!$C23:$I23))","v":0},{"$f":"IF(Engines!AE55<>\"\",Engines!AE55,LOOKUP(Calculations!K$124,Calculations!$C$9:$I$9,Calculations!$C23:$I23))","v":0},{"$f":"IF(Engines!AF55<>\"\",Engines!AF55,LOOKUP(Calculations!L$124,Calculations!$C$9:$I$9,Calculations!$C23:$I23))","v":0},null,"Benzyl chloride",null,0,0,0,0,0,0,0,0,0,0,0,null,"Benzyl chloride",null,0,0,0,0,0,0,0,0,0,0,0]
["Beryllium compounds",null,{"$f":"IF(Engines!W56<>\"\",Engines!W56,LOOKUP(Calculations!C$124,Calculations!$C$9:$I$9,Calculations!$C24:$I24))","v":0},{"$f":"IF(Engines!X56<>\"\",Engines!X56,LOOKUP(Calculations!D$124,Calculations!$C$9:$I$9,Calculations!$C24:$I24))","v":0},{"$f":"IF(Engines!Y56<>\"\",Engines!Y56,LOOKUP(Calculations!E$124,Calculations!$C$9:$I$9,Calculations!$C24:$I24))","v":0},{"$f":"IF(Engines!Z56<>\"\",Engines!Z56,LOOKUP(Calculations!F$124,Calculations!$C$9:$I$9,Calculations!$C24:$I24))","v":0},{"$f":"IF(Engines!AA56<>\"\",Engines!AA56,LOOKUP(Calculations!G$124,Calculations!$C$9:$I$9,Calculations!$C24:$I24))","v":0},{"$f":"IF(Engines!AB56<>\"\",Engines!AB56,LOOKUP(Calculations!H$124,Calculations!$C$9:$I$9,Calculations!$C24:$I24))","v":0},{"$f":"IF(Engines!AC56<>\"\",Engines!AC56,LOOKUP(Calculations!I$124,Calculations!$C$9:$I$9,Calculations!$C24:$I24))","v":0},{"$f":"IF(Engines!AD56<>\"\",Engines!AD56,LOOKUP(Calculations!J$124,Calculations!$C$9:$I$9,Calculations!$C24:$I24))","v":0},{"$f":"IF(Engines!AE56<>\"\",Engines!AE56,LOOKUP(Calculations!K$124,Calculations!$C$9:$I$9,Calculations!$C24:$I24))","v":0},{"$f":"IF(Engines!AF56<>\"\",Engines!AF56,LOOKUP(Calculations!L$124,Calculations!$C$9:$I$9,Calculations!$C24:$I24))","v":0},null,"Beryllium compounds",null,0,0,0,0,0,0,0,0,0,0,0,null,"Beryllium compounds",null,0,0,0,0,0,0,0,0,0,0,0]
["Cadmium compounds",null,{"$f":"IF(Engines!W57<>\"\",Engines!W57,LOOKUP(Calculations!C$124,Calculations!$C$9:$I$9,Calculations!$C25:$I25))","v":0},{"$f":"IF(Engines!X57<>\"\",Engines!X57,LOOKUP(Calculations!D$124,Calculations!$C$9:$I$9,Calculations!$C25:$I25))","v":0},{"$f":"IF(Engines!Y57<>\"\",Engines!Y57,LOOKUP(Calculations!E$124,Calculations!$C$9:$I$9,Calculations!$C25:$I25))","v":0},{"$f":"IF(Engines!Z57<>\"\",Engines!Z57,LOOKUP(Calculations!F$124,Calculations!$C$9:$I$9,Calculations!$C25:$I25))","v":0},{"$f":"IF(Engines!AA57<>\"\",Engines!AA57,LOOKUP(Calculations!G$124,Calculations!$C$9:$I$9,Calculations!$C25:$I25))","v":0},{"$f":"IF(Engines!AB57<>\"\",Engines!AB57,LOOKUP(Calculations!H$124,Calculations!$C$9:$I$9,Calculations!$C25:$I25))","v":0},{"$f":"IF(Engines!AC57<>\"\",Engines!AC57,LOOKUP(Calculations!I$124,Calculations!$C$9:$I$9,Calculations!$C25:$I25))","v":0},{"$f":"IF(Engines!AD57<>\"\",Engines!AD57,LOOKUP(Calculations!J$124,Calculations!$C$9:$I$9,Calculations!$C25:$I25))","v":0},{"$f":"IF(Engines!AE57<>\"\",Engines!AE57,LOOKUP(Calculations!K$124,Calculations!$C$9:$I$9,Calculations!$C25:$I25))","v":0},{"$f":"IF(Engines!AF57<>\"\",Engines!AF57,LOOKUP(Calculations!L$124,Calculations!$C$9:$I$9,Calculations!$C25:$I25))","v":0},null,"Cadmium compounds",null,0,0,0,0,0,0,0,0,0,0,0,null,"Cadmium compounds",null,0,0,0,0,0,0,0,0,0,0,0]
["Cyanide compounds",null,{"$f":"IF(Engines!W58<>\"\",Engines!W58,LOOKUP(Calculations!C$124,Calculations!$C$9:$I$9,Calculations!$C26:$I26))","v":0},{"$f":"IF(Engines!X58<>\"\",Engines!X58,LOOKUP(Calculations!D$124,Calculations!$C$9:$I$9,Calculations!$C26:$I26))","v":0},{"$f":"IF(Engines!Y58<>\"\",Engines!Y58,LOOKUP(Calculations!E$124,Calculations!$C$9:$I$9,Calculations!$C26:$I26))","v":0},{"$f":"IF(Engines!Z58<>\"\",Engines!Z58,LOOKUP(Calculations!F$124,Calculations!$C$9:$I$9,Calculations!$C26:$I26))","v":0},{"$f":"IF(Engines!AA58<>\"\",Engines!AA58,LOOKUP(Calculations!G$124,Calculations!$C$9:$I$9,Calculations!$C26:$I26))","v":0},{"$f":"IF(Engines!AB58<>\"\",Engines!AB58,LOOKUP(Calculations!H$124,Calculations!$C$9:$I$9,Calculations!$C26:$I26))","v":0},{"$f":"IF(Engines!AC58<>\"\",Engines!AC58,LOOKUP(Calculations!I$124,Calculations!$C$9:$I$9,Calculations!$C26:$I26))","v":0},{"$f":"IF(Engines!AD58<>\"\",Engines!AD58,LOOKUP(Calculations!J$124,Calculations!$C$9:$I$9,Calculations!$C26:$I26))","v":0},{"$f":"IF(Engines!AE58<>\"\",Engines!AE58,LOOKUP(Calculations!K$124,Calculations!$C$9:$I$9,Calculations!$C26:$I26))","v":0},{"$f":"IF(Engines!AF58<>\"\",Engines!AF58,LOOKUP(Calculations!L$124,Calculations!$C$9:$I$9,Calculations!$C26:$I26))","v":0},null,"Cyanide compounds",null,0,0,0,0,0,0,0,0,0,0,0,null,"Cyanide compounds",null,0,0,0,0,0,0,0,0,0,0,0]
["Formaldehyde",null,{"$f":"IF(Engines!W59<>\"\",Engines!W59,LOOKUP(Calculations!C$124,Calculations!$C$9:$I$9,Calculations!$C27:$I27))","v":1.1800000000000001E-3},{"$f":"IF(Engines!X59<>\"\",Engines!X59,LOOKUP(Calculations!D$124,Calculations!$C$9:$I$9,Calculations!$C27:$I27))","v":1.1800000000000001E-3},{"$f":"IF(Engines!Y59<>\"\",Engines!Y59,LOOKUP(Calculations!E$124,Calculations!$C$9:$I$9,Calculations!$C27:$I27))","v":1.1800000000000001E-3},{"$f":"IF(Engines!Z59<>\"\",Engines!Z59,LOOKUP(Calculations!F$124,Calculations!$C$9:$I$9,Calculations!$C27:$I27))","v":1.1800000000000001E-3},{"$f":"IF(Engines!AA59<>\"\",Engines!AA59,LOOKUP(Calculations!G$124,Calculations!$C$9:$I$9,Calculations!$C27:$I27))","v":1.1800000000000001E-3},{"$f":"IF(Engines!AB59<>\"\",Engines!AB59,LOOKUP(Calculations!H$124,Calculations!$C$9:$I$9,Calculations!$C27:$I27))","v":1.1800000000000001E-3},{"$f":"IF(Engines!AC59<>\"\",Engines!AC59,LOOKUP(Calculations!I$124,Calculations!$C$9:$I$9,Calculations!$C27:$I27))","v":1.1800000000000001E-3},{"$f":"IF(Engines!AD59<>\"\",Engines!AD59,LOOKUP(Calculations!J$124,Calculations!$C$9:$I$9,Calculations!$C27:$I27))","v":1.1800000000000001E-3},{"$f":"IF(Engines!AE59<>\"\",Engines!AE59,LOOKUP(Calculations!K$124,Calculations!$C$9:$I$9,Calculations!$C27:$I27))","v":1.1800000000000001E-3},{"$f":"IF(Engines!AF59<>\"\",Engines!AF59,LOOKUP(Calculations!L$124,Calculations!$C$9:$I$9,Calculations!$C27:$I27))","v":1.1800000000000001E-3},null,"Formaldehyde",null,0,0,0,0,0,0,0,0,0,0,0,null,"Formaldehyde",null,0,0,0,0,0,0,0,0,0,0,0]
["n-Hexane",null,{"$f":"IF(Engines!W60<>\"\",Engines!W60,LOOKUP(Calculations!C$124,Calculations!$C$9:$I$9,Calculations!$C28:$I28))","v":0},{"$f":"IF(Engines!X60<>\"\",Engines!X60,LOOKUP(Calculations!D$124,Calculations!$C$9:$I$9,Calculations!$C28:$I28))","v":0},{"$f":"IF(Engines!Y60<>\"\",Engines!Y60,LOOKUP(Calculations!E$124,Calculations!$C$9:$I$9,Calculations!$C28:$I28))","v":0},{"$f":"IF(Engines!Z60<>\"\",Engines!Z60,LOOKUP(Calculations!F$124,Calculations!$C$9:$I$9,Calculations!$C28:$I28))","v":0},{"$f":"IF(Engines!AA60<>\"\",Engines!AA60,LOOKUP(Calculations!G$124,Calculations!$C$9:$I$9,Calculations!$C28:$I28))","v":0},{"$f":"IF(Engines!AB60<>\"\",Engines!AB60,LOOKUP(Calculations!H$124,Calculations!$C$9:$I$9,Calculations!$C28:$I28))","v":0},{"$f":"IF(Engines!AC60<>\"\",Engines!AC60,LOOKUP(Calculations!I$124,Calculations!$C$9:$I$9,Calculations!$C28:$I28))","v":0},{"$f":"IF(Engines!AD60<>\"\",Engines!AD60,LOOKUP(Calculations!J$124,Calculations!$C$9:$I$9,Calculations!$C28:$I28))","v":0},{"$f":"IF(Engines!AE60<>\"\",Engines!AE60,LOOKUP(Calculations!K$124,Calculations!$C$9:$I$9,Calculations!$C28:$I28))","v":0},{"$f":"IF(Engines!AF60<>\"\",Engines!AF60,LOOKUP(Calculations!L$124,Calculations!$C$9:$I$9,Calculations!$C28:$I28))","v":0},null,"n-Hexane",null,0,0,0,0,0,0,0,0,0,0,0,null,"n-Hexane",null,0,0,0,0,0,0,0,0,0,0,0]
["Hydrochloric acid",null,{"$f":"IF(Engines!W61<>\"\",Engines!W61,LOOKUP(Calculations!C$124,Calculations!$C$9:$I$9,Calculations!$C29:$I29))","v":0},{"$f":"IF(Engines!X61<>\"\",Engines!X61,LOOKUP(Calculations!D$124,Calculations!$C$9:$I$9,Calculations!$C29:$I29))","v":0},{"$f":"IF(Engines!Y61<>\"\",Engines!Y61,LOOKUP(Calculations!E$124,Calculations!$C$9:$I$9,Calculations!$C29:$I29))","v":0},{"$f":"IF(Engines!Z61<>\"\",Engines!Z61,LOOKUP(Calculations!F$124,Calculations!$C$9:$I$9,Calculations!$C29:$I29))","v":0},{"$f":"IF(Engines!AA61<>\"\",Engines!AA61,LOOKUP(Calculations!G$124,Calculations!$C$9:$I$9,Calculations!$C29:$I29))","v":0},{"$f":"IF(Engines!AB61<>\"\",Engines!AB61,LOOKUP(Calculations!H$124,Calculations!$C$9:$I$9,Calculations!$C29:$I29))","v":0},{"$f":"IF(Engines!AC61<>\"\",Engines!AC61,LOOKUP(Calculations!I$124,Calculations!$C$9:$I$9,Calculations!$C29:$I29))","v":0},{"$f":"IF(Engines!AD61<>\"\",Engines!AD61,LOOKUP(Calculations!J$124,Calculations!$C$9:$I$9,Calculations!$C29:$I29))","v":0},{"$f":"IF(Engines!AE61<>\"\",Engines!AE61,LOOKUP(Calculations!K$124,Calculations!$C$9:$I$9,Calculations!$C29:$I29))","v":0},{"$f":"IF(Engines!AF61<>\"\",Engines!AF61,LOOKUP(Calculations!L$124,Calculations!$C$9:$I$9,Calculations!$C29:$I29))","v":0},null,"Hydrochloric acid",null,0,0,0,0,0,0,0,0,0,0,0,null,"Hydrochloric acid",null,0,0,0,0,0,0,0,0,0,0,0]
["Lead Compounds",null,{"$f":"IF(Engines!W62<>\"\",Engines!W62,LOOKUP(Calculations!C$124,Calculations!$C$9:$I$9,Calculations!$C30:$I30))","v":0},{"$f":"IF(Engines!X62<>\"\",Engines!X62,LOOKUP(Calculations!D$124,Calculations!$C$9:$I$9,Calculations!$C30:$I30))","v":0},{"$f":"IF(Engines!Y62<>\"\",Engines!Y62,LOOKUP(Calculations!E$124,Calculations!$C$9:$I$9,Calculations!$C30:$I30))","v":0},{"$f":"IF(Engines!Z62<>\"\",Engines!Z62,LOOKUP(Calculations!F$124,Calculations!$C$9:$I$9,Calculations!$C30:$I30))","v":0},{"$f":"IF(Engines!AA62<>\"\",Engines!AA62,LOOKUP(Calculations!G$124,Calculations!$C$9:$I$9,Calculations!$C30:$I30))","v":0},{"$f":"IF(Engines!AB62<>\"\",Engines!AB62,LOOKUP(Calculations!H$124,Calculations!$C$9:$I$9,Calculations!$C30:$I30))","v":0},{"$f":"IF(Engines!AC62<>\"\",Engines!AC62,LOOKUP(Calculations!I$124,Calculations!$C$9:$I$9,Calculations!$C30:$I30))","v":0},{"$f":"IF(Engines!AD62<>\"\",Engines!AD62,LOOKUP(Calculations!J$124,Calculations!$C$9:$I$9,Calculations!$C30:$I30))","v":0},{"$f":"IF(Engines!AE62<>\"\",Engines!AE62,LOOKUP(Calculations!K$124,Calculations!$C$9:$I$9,Calculations!$C30:$I30))","v":0},{"$f":"IF(Engines!AF62<>\"\",Engines!AF62,LOOKUP(Calculations!L$124,Calculations!$C$9:$I$9,Calculations!$C30:$I30))","v":0},null,"Lead Compounds",null,0,0,0,0,0,0,0,0,0,0,0,null,"Lead Compounds",null,0,0,0,0,0,0,0,0,0,0,0]
["Mercury compounds",null,{"$f":"IF(Engines!W63<>\"\",Engines!W63,LOOKUP(Calculations!C$124,Calculations!$C$9:$I$9,Calculations!$C31:$I31))","v":0},{"$f":"IF(Engines!X63<>\"\",Engines!X63,LOOKUP(Calculations!D$124,Calculations!$C$9:$I$9,Calculations!$C31:$I31))","v":0},{"$f":"IF(Engines!Y63<>\"\",Engines!Y63,LOOKUP(Calculations!E$124,Calculations!$C$9:$I$9,Calculations!$C31:$I31))","v":0},{"$f":"IF(Engines!Z63<>\"\",Engines!Z63,LOOKUP(Calculations!F$124,Calculations!$C$9:$I$9,Calculations!$C31:$I31))","v":0},{"$f":"IF(Engines!AA63<>\"\",Engines!AA63,LOOKUP(Calculations!G$124,Calculations!$C$9:$I$9,Calculations!$C31:$I31))","v":0},{"$f":"IF(Engines!AB63<>\"\",Engines!AB63,LOOKUP(Calculations!H$124,Calculations!$C$9:$I$9,Calculations!$C31:$I31))","v":0},{"$f":"IF(Engines!AC63<>\"\",Engines!AC63,LOOKUP(Calculations!I$124,Calculations!$C$9:$I$9,Calculations!$C31:$I31))","v":0},{"$f":"IF(Engines!AD63<>\"\",Engines!AD63,LOOKUP(Calculations!J$124,Calculations!$C$9:$I$9,Calculations!$C31:$I31))","v":0},{"$f":"IF(Engines!AE63<>\"\",Engines!AE63,LOOKUP(Calculations!K$124,Calculations!$C$9:$I$9,Calculations!$C31:$I31))","v":0},{"$f":"IF(Engines!AF63<>\"\",Engines!AF63,LOOKUP(Calculations!L$124,Calculations!$C$9:$I$9,Calculations!$C31:$I31))","v":0},null,"Mercury compounds",null,0,0,0,0,0,0,0,0,0,0,0,null,"Mercury compounds",null,0,0,0,0,0,0,0,0,0,0,0]
["Methanol",null,{"$f":"IF(Engines!W64<>\"\",Engines!W64,LOOKUP(Calculations!C$124,Calculations!$C$9:$I$9,Calculations!$C32:$I32))","v":0},{"$f":"IF(Engines!X64<>\"\",Engines!X64,LOOKUP(Calculations!D$124,Calculations!$C$9:$I$9,Calculations!$C32:$I32))","v":0},{"$f":"IF(Engines!Y64<>\"\",Engines!Y64,LOOKUP(Calculations!E$124,Calculations!$C$9:$I$9,Calculations!$C32:$I32))","v":0},{"$f":"IF(Engines!Z64<>\"\",Engines!Z64,LOOKUP(Calculations!F$124,Calculations!$C$9:$I$9,Calculations!$C32:$I32))","v":0},{"$f":"IF(Engines!AA64<>\"\",Engines!AA64,LOOKUP(Calculations!G$124,Calculations!$C$9:$I$9,Calculations!$C32:$I32))","v":0},{"$f":"IF(Engines!AB64<>\"\",Engines!AB64,LOOKUP(Calculations!H$124,Calculations!$C$9:$I$9,Calculations!$C32:$I32))","v":0},{"$f":"IF(Engines!AC64<>\"\",Engines!AC64,LOOKUP(Calculations!I$124,Calculations!$C$9:$I$9,Calculations!$C32:$I32))","v":0},{"$f":"IF(Engines!AD64<>\"\",Engines!AD64,LOOKUP(Calculations!J$124,Calculations!$C$9:$I$9,Calculations!$C32:$I32))","v":0},{"$f":"IF(Engines!AE64<>\"\",Engines!AE64,LOOKUP(Calculations!K$124,Calculations!$C$9:$I$9,Calculations!$C32:$I32))","v":0},{"$f":"IF(Engines!AF64<>\"\",Engines!AF64,LOOKUP(Calculations!L$124,Calculations!$C$9:$I$9,Calculations!$C32:$I32))","v":0},null,"Methanol",null,0,0,0,0,0,0,0,0,0,0,0,null,"Methanol",null,0,0,0,0,0,0,0,0,0,0,0]
["Methyl hydrazine",null,{"$f":"IF(Engines!W65<>\"\",Engines!W65,LOOKUP(Calculations!C$124,Calculations!$C$9:$I$9,Calculations!$C33:$I33))","v":0},{"$f":"IF(Engines!X65<>\"\",Engines!X65,LOOKUP(Calculations!D$124,Calculations!$C$9:$I$9,Calculations!$C33:$I33))","v":0},{"$f":"IF(Engines!Y65<>\"\",Engines!Y65,LOOKUP(Calculations!E$124,Calculations!$C$9:$I$9,Calculations!$C33:$I33))","v":0},{"$f":"IF(Engines!Z65<>\"\",Engines!Z65,LOOKUP(Calculations!F$124,Calculations!$C$9:$I$9,Calculations!$C33:$I33))","v":0},{"$f":"IF(Engines!AA65<>\"\",Engines!AA65,LOOKUP(Calculations!G$124,Calculations!$C$9:$I$9,Calculations!$C33:$I33))","v":0},{"$f":"IF(Engines!AB65<>\"\",Engines!AB65,LOOKUP(Calculations!H$124,Calculations!$C$9:$I$9,Calculations!$C33:$I33))","v":0},{"$f":"IF(Engines!AC65<>\"\",Engines!AC65,LOOKUP(Calculations!I$124,Calculations!$C$9:$I$9,Calculations!$C33:$I33))","v":0},{"$f":"IF(Engines!AD65<>\"\",Engines!AD65,LOOKUP(Calculations!J$124,Calculations!$C$9:$I$9,Calculations!$C33:$I33))","v":0},{"$f":"IF(Engines!AE65<>\"\",Engines!AE65,LOOKUP(Calculations!K$124,Calculations!$C$9:$I$9,Calculations!$C33:$I33))","v":0},{"$f":"IF(Engines!AF65<>\"\",Engines!AF65,LOOKUP(Calculations!L$124,Calculations!$C$9:$I$9,Calculations!$C33:$I33))","v":0},null,"Methyl hydrazine",null,0,0,0,0,0,0,0,0,0,0,0,null,"Methyl hydrazine",null,0,0,0,0,0,0,0,0,0,0,0]
["Selenium compounds",null,{"$f":"IF(Engines!W66<>\"\",Engines!W66,LOOKUP(Calculations!C$124,Calculations!$C$9:$I$9,Calculations!$C34:$I34))","v":0},{"$f":"IF(Engines!X66<>\"\",Engines!X66,LOOKUP(Calculations!D$124,Calculations!$C$9:$I$9,Calculations!$C34:$I34))","v":0},{"$f":"IF(Engines!Y66<>\"\",Engines!Y66,LOOKUP(Calculations!E$124,Calculations!$C$9:$I$9,Calculations!$C34:$I34))","v":0},{"$f":"IF(Engines!Z66<>\"\",Engines!Z66,LOOKUP(Calculations!F$124,Calculations!$C$9:$I$9,Calculations!$C34:$I34))","v":0},{"$f":"IF(Engines!AA66<>\"\",Engines!AA66,LOOKUP(Calculations!G$124,Calculations!$C$9:$I$9,Calculations!$C34:$I34))","v":0},{"$f":"IF(Engines!AB66<>\"\",Engines!AB66,LOOKUP(Calculations!H$124,Calculations!$C$9:$I$9,Calculations!$C34:$I34))","v":0},{"$f":"IF(Engines!AC66<>\"\",Engines!AC66,LOOKUP(Calculations!I$124,Calculations!$C$9:$I$9,Calculations!$C34:$I34))","v":0},{"$f":"IF(Engines!AD66<>\"\",Engines!AD66,LOOKUP(Calculations!J$124,Calculations!$C$9:$I$9,Calculations!$C34:$I34))","v":0},{"$f":"IF(Engines!AE66<>\"\",Engines!AE66,LOOKUP(Calculations!K$124,Calculations!$C$9:$I$9,Calculations!$C34:$I34))","v":0},{"$f":"IF(Engines!AF66<>\"\",Engines!AF66,LOOKUP(Calculations!L$124,Calculations!$C$9:$I$9,Calculations!$C34:$I34))","v":0},null,"Selenium compounds",null,0,0,0,0,0,0,0,0,0,0,0,null,"Selenium compounds",null,0,0,0,0,0,0,0,0,0,0,0]
["Other HAPs",null,{"$f":"IF(Engines!W67<>\"\",Engines!W67,LOOKUP(Calculations!C$124,Calculations!$C$9:$I$9,Calculations!$C35:$I35))","v":9.0109999999999995E-4},{"$f":"IF(Engines!X67<>\"\",Engines!X67,LOOKUP(Calculations!D$124,Calculations!$C$9:$I$9,Calculations!$C35:$I35))","v":9.0109999999999995E-4},{"$f":"IF(Engines!Y67<>\"\",Engines!Y67,LOOKUP(Calculations!E$124,Calculations!$C$9:$I$9,Calculations!$C35:$I35))","v":9.0109999999999995E-4},{"$f":"IF(Engines!Z67<>\"\",Engines!Z67,LOOKUP(Calculations!F$124,Calculations!$C$9:$I$9,Calculations!$C35:$I35))","v":9.0109999999999995E-4},{"$f":"IF(Engines!AA67<>\"\",Engines!AA67,LOOKUP(Calculations!G$124,Calculations!$C$9:$I$9,Calculations!$C35:$I35))","v":9.0109999999999995E-4},{"$f":"IF(Engines!AB67<>\"\",Engines!AB67,LOOKUP(Calculations!H$124,Calculations!$C$9:$I$9,Calculations!$C35:$I35))","v":9.0109999999999995E-4},{"$f":"IF(Engines!AC67<>\"\",Engines!AC67,LOOKUP(Calculations!I$124,Calculations!$C$9:$I$9,Calculations!$C35:$I35))","v":9.0109999999999995E-4},{"$f":"IF(Engines!AD67<>\"\",Engines!AD67,LOOKUP(Calculations!J$124,Calculations!$C$9:$I$9,Calculations!$C35:$I35))","v":9.0109999999999995E-4},{"$f":"IF(Engines!AE67<>\"\",Engines!AE67,LOOKUP(Calculations!K$124,Calculations!$C$9:$I$9,Calculations!$C35:$I35))","v":9.0109999999999995E-4},{"$f":"IF(Engines!AF67<>\"\",Engines!AF67,LOOKUP(Calculations!L$124,Calculations!$C$9:$I$9,Calculations!$C35:$I35))","v":9.0109999999999995E-4},null,"Other HAPs",null,0,0,0,0,0,0,0,0,0,0,0,null,"Other HAPs",null,0,0,0,0,0,0,0,0,0,0,0]
["Total HAPs",null,{"$f":"IF(Engines!W68<>\"\",Engines!W68,LOOKUP(Calculations!C$124,Calculations!$C$9:$I$9,Calculations!$C36:$I36))","v":3.8736000000000005E-3},{"$f":"IF(Engines!X68<>\"\",Engines!X68,LOOKUP(Calculations!D$124,Calculations!$C$9:$I$9,Calculations!$C36:$I36))","v":3.8736000000000005E-3},{"$f":"IF(Engines!Y68<>\"\",Engines!Y68,LOOKUP(Calculations!E$124,Calculations!$C$9:$I$9,Calculations!$C36:$I36))","v":3.8736000000000005E-3},{"$f":"IF(Engines!Z68<>\"\",Engines!Z68,LOOKUP(Calculations!F$124,Calculations!$C$9:$I$9,Calculations!$C36:$I36))","v":3.8736000000000005E-3},{"$f":"IF(Engines!AA68<>\"\",Engines!AA68,LOOKUP(Calculations!G$124,Calculations!$C$9:$I$9,Calculations!$C36:$I36))","v":3.8736000000000005E-3},{"$f":"IF(Engines!AB68<>\"\",Engines!AB68,LOOKUP(Calculations!H$124,Calculations!$C$9:$I$9,Calculations!$C36:$I36))","v":3.8736000000000005E-3},{"$f":"IF(Engines!AC68<>\"\",Engines!AC68,LOOKUP(Calculations!I$124,Calculations!$C$9:$I$9,Calculations!$C36:$I36))","v":3.8736000000000005E-3},{"$f":"IF(Engines!AD68<>\"\",Engines!AD68,LOOKUP(Calculations!J$124,Calculations!$C$9:$I$9,Calculations!$C36:$I36))","v":3.8736000000000005E-3},{"$f":"IF(Engines!AE68<>\"\",Engines!AE68,LOOKUP(Calculations!K$124,Calculations!$C$9:$I$9,Calculations!$C36:$I36))","v":3.8736000000000005E-3},{"$f":"IF(Engines!AF68<>\"\",Engines!AF68,LOOKUP(Calculations!L$124,Calculations!$C$9:$I$9,Calculations!$C36:$I36))","v":3.8736000000000005E-3},null,"Total HAPs",null,0,0,0,0,0,0,0,0,0,0,0,null,"Total HAPs",null,0,0,0,0,0,0,0,0,0,0,0]
["Green House Gasses",null,null,null,null,null,null,null,null,null,null,null,null,"Green House Gasses",null,null,null,null,null,null,null,null,null,null,null,null,null,"Green House Gasses"]
["  Carbon Dioxide (CO2)",null,{"$f":"IF(Engines!W70<>\"\",Engines!W70,LOOKUP(Calculations!C$124,Calculations!$C$9:$I$9,Calculations!$C38:$I38))","v":73.959999999999994},{"$f":"IF(Engines!X70<>\"\",Engines!X70,LOOKUP(Calculations!D$124,Calculations!$C$9:$I$9,Calculations!$C38:$I38))","v":73.959999999999994},{"$f":"IF(Engines!Y70<>\"\",Engines!Y70,LOOKUP(Calculations!E$124,Calculations!$C$9:$I$9,Calculations!$C38:$I38))","v":73.959999999999994},{"$f":"IF(Engines!Z70<>\"\",Engines!Z70,LOOKUP(Calculations!F$124,Calculations!$C$9:$I$9,Calculations!$C38:$I38))","v":73.959999999999994},{"$f":"IF(Engines!AA70<>\"\",Engines!AA70,LOOKUP(Calculations!G$124,Calculations!$C$9:$I$9,Calculations!$C38:$I38))","v":73.959999999999994},{"$f":"IF(Engines!AB70<>\"\",Engines!AB70,LOOKUP(Calculations!H$124,Calculations!$C$9:$I$9,Calculations!$C38:$I38))","v":73.959999999999994},{"$f":"IF(Engines!AC70<>\"\",Engines!AC70,LOOKUP(Calculations!I$124,Calculations!$C$9:$I$9,Calculations!$C38:$I38))","v":73.959999999999994},{"$f":"IF(Engines!AD70<>\"\",Engines!AD70,LOOKUP(Calculations!J$124,Calculations!$C$9:$I$9,Calculations!$C38:$I38))","v":73.959999999999994},{"$f":"IF(Engines!AE70<>\"\",Engines!AE70,LOOKUP(Calculations!K$124,Calculations!$C$9:$I$9,Calculations!$C38:$I38))","v":73.959999999999994},{"$f":"IF(Engines!AF70<>\"\",Engines!AF70,LOOKUP(Calculations!L$124,Calculations!$C$9:$I$9,Calculations!$C38:$I38))","v":73.959999999999994},null,"  Carbon Dioxide (CO2)",null,{"$f":"C152*$D$6*C$157*2.20462","v":0},0,0,0,0,0,0,0,0,0,{"$f":"SUM(P152:Y152)","v":0},null,"  Carbon Dioxide (CO2)",null,{"$f":"P152*C$158/2000","v":0},{"$f":"Q152*D$158/2000","v":0},{"$f":"R152*E$158/2000","v":0},{"$f":"S152*F$158/2000","v":0},{"$f":"T152*G$158/2000","v":0},{"$f":"U152*H$158/2000","v":0},{"$f":"V152*I$158/2000","v":0},{"$f":"W152*J$158/2000","v":0},{"$f":"X152*K$158/2000","v":0},{"$f":"Y152*L$158/2000","v":0},{"$f":"SUM(AD152:AM152)","v":0}]
["  Methane (CH4)",null,{"$f":"IF(Engines!W71<>\"\",Engines!W71,LOOKUP(Calculations!C$124,Calculations!$C$9:$I$9,Calculations!$C39:$I39))","v":3.0000000000000001E-3},{"$f":"IF(Engines!X71<>\"\",Engines!X71,LOOKUP(Calculations!D$124,Calculations!$C$9:$I$9,Calculations!$C39:$I39))","v":3.0000000000000001E-3},{"$f":"IF(Engines!Y71<>\"\",Engines!Y71,LOOKUP(Calculations!E$124,Calculations!$C$9:$I$9,Calculations!$C39:$I39))","v":3.0000000000000001E-3},{"$f":"IF(Engines!Z71<>\"\",Engines!Z71,LOOKUP(Calculations!F$124,Calculations!$C$9:$I$9,Calculations!$C39:$I39))","v":3.0000000000000001E-3},{"$f":"IF(Engines!AA71<>\"\",Engines!AA71,LOOKUP(Calculations!G$124,Calculations!$C$9:$I$9,Calculations!$C39:$I39))","v":3.0000000000000001E-3},{"$f":"IF(Engines!AB71<>\"\",Engines!AB71,LOOKUP(Calculations!H$124,Calculations!$C$9:$I$9,Calculations!$C39:$I39))","v":3.0000000000000001E-3},{"$f":"IF(Engines!AC71<>\"\",Engines!AC71,LOOKUP(Calculations!I$124,Calculations!$C$9:$I$9,Calculations!$C39:$I39))","v":3.0000000000000001E-3},{"$f":"IF(Engines!AD71<>\"\",Engines!AD71,LOOKUP(Calculations!J$124,Calculations!$C$9:$I$9,Calculations!$C39:$I39))","v":3.0000000000000001E-3},{"$f":"IF(Engines!AE71<>\"\",Engines!AE71,LOOKUP(Calculations!K$124,Calculations!$C$9:$I$9,Calculations!$C39:$I39))","v":3.0000000000000001E-3},{"$f":"IF(Engines!AF71<>\"\",Engines!AF71,LOOKUP(Calculations!L$124,Calculations!$C$9:$I$9,Calculations!$C39:$I39))","v":3.0000000000000001E-3},null,"  Methane (CH4)",null,0,0,0,0,0,0,0,0,0,0,0,null,"  Methane (CH4)",null,{"$f":"P153*C$158/2000","v":0},0,0,0,0,0,0,0,0,0,0]
["  Nitrous Oxide (N2O)",null,{"$f":"IF(Engines!W72<>\"\",Engines!W72,LOOKUP(Calculations!C$124,Calculations!$C$9:$I$9,Calculations!$C40:$I40))","v":5.9999999999999995E-4},{"$f":"IF(Engines!X72<>\"\",Engines!X72,LOOKUP(Calculations!D$124,Calculations!$C$9:$I$9,Calculations!$C40:$I40))","v":5.9999999999999995E-4},{"$f":"IF(Engines!Y72<>\"\",Engines!Y72,LOOKUP(Calculations!E$124,Calculations!$C$9:$I$9,Calculations!$C40:$I40))","v":5.9999999999999995E-4},{"$f":"IF(Engines!Z72<>\"\",Engines!Z72,LOOKUP(Calculations!F$124,Calculations!$C$9:$I$9,Calculations!$C40:$I40))","v":5.9999999999999995E-4},{"$f":"IF(Engines!AA72<>\"\",Engines!AA72,LOOKUP(Calculations!G$124,Calculations!$C$9:$I$9,Calculations!$C40:$I40))","v":5.9999999999999995E-4},{"$f":"IF(Engines!AB72<>\"\",Engines!AB72,LOOKUP(Calculations!H$124,Calculations!$C$9:$I$9,Calculations!$C40:$I40))","v":5.9999999999999995E-4},{"$f":"IF(Engines!AC72<>\"\",Engines!AC72,LOOKUP(Calculations!I$124,Calculations!$C$9:$I$9,Calculations!$C40:$I40))","v":5.9999999999999995E-4},{"$f":"IF(Engines!AD72<>\"\",Engines!AD72,LOOKUP(Calculations!J$124,Calculations!$C$9:$I$9,Calculations!$C40:$I40))","v":5.9999999999999995E-4},{"$f":"IF(Engines!AE72<>\"\",Engines!AE72,LOOKUP(Calculations!K$124,Calculations!$C$9:$I$9,Calculations!$C40:$I40))","v":5.9999999999999995E-4},{"$f":"IF(Engines!AF72<>\"\",Engines!AF72,LOOKUP(Calculations!L$124,Calculations!$C$9:$I$9,Calculations!$C40:$I40))","v":5.9999999999999995E-4},null,"  Nitrous Oxide (N2O)",null,0,0,0,0,0,0,0,0,0,0,0,null,"  Nitrous Oxide (N2O)",null,0,0,0,0,0,0,0,0,0,0,0]
[]
["Engine Rating (hp)",null,{"$f":"Engines!N16","v":0},{"$f":"Engines!N17","v":0},{"$f":"Engines!N18","v":0},{"$f":"Engines!N19","v":0},{"$f":"Engines!N20","v":0},{"$f":"Engines!N21","v":0},{"$f":"Engines!N22","v":0},{"$f":"Engines!N23","v":0},{"$f":"Engines!N24","v":0},{"$f":"Engines!N25","v":0}]
[{"$f":"Engines!O15","v":"Maximum Fuel Capacity \n(gal/hr)"},null,{"$f":"Engines!O16","v":0},{"$f":"Engines!O17","v":0},{"$f":"Engines!O18","v":0},{"$f":"Engines!O19","v":0},{"$f":"Engines!O20","v":0},{"$f":"Engines!O21","v":0},{"$f":"Engines!O22","v":0},{"$f":"Engines!O23","v":0},{"$f":"Engines!O24","v":0},{"$f":"Engines!O25","v":0}]
["Operating Hours",null,{"$f":"Engines!Q16","v":8760},{"$f":"Engines!Q17","v":8760},{"$f":"Engines!Q18","v":8760},{"$f":"Engines!Q19","v":8760},{"$f":"Engines!Q20","v":8760},{"$f":"Engines!Q21","v":8760},{"$f":"Engines!Q22","v":8760},{"$f":"Engines!Q23","v":8760},{"$f":"Engines!Q24","v":8760},{"$f":"Engines!Q25","v":8760}]
[]
[]
[]
[null,null,"1st Spark Ignition Engine","2nd Spark Ignition Engine","3rd Spark Ignition Engine","4th Spark Ignition Engine","5th Spark Ignition Engine","6th Spark Ignition Engine","7th Spark Ignition Engine","8th Spark Ignition Engine","9th Spark Ignition Engine","10th Spark Ignition Engine",null,null,null,"1st Spark Ignition Engine","2nd Spark Ignition Engine","3rd Spark Ignition Engine","4th Spark Ignition Engine","5th Spark Ignition Engine","6th Spark Ignition Engine","7th Spark Ignition Engine","8th Spark Ignition Engine","9th Spark Ignition Engine","10th Spark Ignition Engine","Total",null,null,null,"1st Spark Ignition Engine","2nd Spark Ignition Engine","3rd Spark Ignition Engine","4th Spark Ignition Engine","5th Spark Ignition Engine","6th Spark Ignition Engine","7th Spark Ignition Engine","8th Spark Ignition Engine","9th Spark Ignition Engine","10th Spark Ignition Engine","Total"]
[null,null,{"$f":"IF(Engines!Q29=Datasets!$AJ$3,4,IF(Engines!Q29=Datasets!$AJ$4,7,IF(Engines!R29=Datasets!$AK$2,3,IF(Engines!R29=Datasets!$AK$4,2,1))))","v":1},{"$f":"IF(Engines!Q30=Datasets!$AJ$3,4,IF(Engines!Q30=Datasets!$AJ$4,7,IF(Engines!R30=Datasets!$AK$2,3,IF(Engines!R30=Datasets!$AK$4,2,1))))","v":1},{"$f":"IF(Engines!Q31=Datasets!$AJ$3,4,IF(Engines!Q31=Datasets!$AJ$4,7,IF(Engines!R31=Datasets!$AK$2,3,IF(Engines!R31=Datasets!$AK$4,2,1))))","v":1},{"$f":"IF(Engines!Q32=Datasets!$AJ$3,4,IF(Engines!Q32=Datasets!$AJ$4,7,IF(Engines!R32=Datasets!$AK$2,3,IF(Engines!R32=Datasets!$AK$4,2,1))))","v":1},{"$f":"IF(Engines!Q33=Datasets!$AJ$3,4,IF(Engines!Q33=Datasets!$AJ$4,7,IF(Engines!R33=Datasets!$AK$2,3,IF(Engines!R33=Datasets!$AK$4,2,1))))","v":1},{"$f":"IF(Engines!Q34=Datasets!$AJ$3,4,IF(Engines!Q34=Datasets!$AJ$4,7,IF(Engines!R34=Datasets!$AK$2,3,IF(Engines!R34=Datasets!$AK$4,2,1))))","v":1},{"$f":"IF(Engines!Q35=Datasets!$AJ$3,4,IF(Engines!Q35=Datasets!$AJ$4,7,IF(Engines!R35=Datasets!$AK$2,3,IF(Engines!R35=Datasets!$AK$4,2,1))))","v":1},{"$f":"IF(Engines!Q36=Datasets!$AJ$3,4,IF(Engines!Q36=Datasets!$AJ$4,7,IF(Engines!R36=Datasets!$AK$2,3,IF(Engines!R36=Datasets!$AK$4,2,1))))","v":1},{"$f":"IF(Engines!Q37=Datasets!$AJ$3,4,IF(Engines!Q37=Datasets!$AJ$4,7,IF(Engines!R37=Datasets!$AK$2,3,IF(Engines!R37=Datasets!$AK$4,2,1))))","v":1},{"$f":"IF(Engines!Q38=Datasets!$AJ$3,4,IF(Engines!Q38=Datasets!$AJ$4,7,IF(Engines!R38=Datasets!$AK$2,3,IF(Engines!R38=Datasets!$AK$4,2,1))))","v":1},null,null,null,"(lb/hr)",null,null,null,null,null,null,null,null,null,null,null,null,null,"(ton/yr)"]
["PMfilterable",null,{"$f":"IF(Engines!AI43<>\"\",Engines!AI43,LOOKUP(Calculations!C$163,Calculations!$C$9:$I$9,Calculations!$C11:$I11))","v":9.9871000000000005E-3},{"$f":"IF(Engines!AJ43<>\"\",Engines!AJ43,LOOKUP(Calculations!D$163,Calculations!$C$9:$I$9,Calculations!$C11:$I11))","v":9.9871000000000005E-3},{"$f":"IF(Engines!AK43<>\"\",Engines!AK43,LOOKUP(Calculations!E$163,Calculations!$C$9:$I$9,Calculations!$C11:$I11))","v":9.9871000000000005E-3},{"$f":"IF(Engines!AL43<>\"\",Engines!AL43,LOOKUP(Calculations!F$163,Calculations!$C$9:$I$9,Calculations!$C11:$I11))","v":9.9871000000000005E-3},{"$f":"IF(Engines!AM43<>\"\",Engines!AM43,LOOKUP(Calculations!G$163,Calculations!$C$9:$I$9,Calculations!$C11:$I11))","v":9.9871000000000005E-3},{"$f":"IF(Engines!AN43<>\"\",Engines!AN43,LOOKUP(Calculations!H$163,Calculations!$C$9:$I$9,Calculations!$C11:$I11))","v":9.9871000000000005E-3},{"$f":"IF(Engines!AO43<>\"\",Engines!AO43,LOOKUP(Calculations!I$163,Calculations!$C$9:$I$9,Calculations!$C11:$I11))","v":9.9871000000000005E-3},{"$f":"IF(Engines!AP43<>\"\",Engines!AP43,LOOKUP(Calculations!J$163,Calculations!$C$9:$I$9,Calculations!$C11:$I11))","v":9.9871000000000005E-3},{"$f":"IF(Engines!AQ43<>\"\",Engines!AQ43,LOOKUP(Calculations!K$163,Calculations!$C$9:$I$9,Calculations!$C11:$I11))","v":9.9871000000000005E-3},{"$f":"IF(Engines!AR43<>\"\",Engines!AR43,LOOKUP(Calculations!L$163,Calculations!$C$9:$I$9,Calculations!$C11:$I11))","v":9.9871000000000005E-3},null,"PMfilterable",null,{"$f":"C164*C$197","v":0},{"$f":"D164*D$197","v":0},0,0,0,0,0,0,0,0,{"$f":"SUM(P164:Y164)","v":0},null,"PMfilterable",null,{"$f":"P164*C$198/2000","v":0},{"$f":"Q164*D$198/2000","v":0},0,0,0,0,0,0,0,0,{"$f":"SUM(AD164:AM164)","v":0}]
["PM10",null,{"$f":"IF(Engines!AI44<>\"\",Engines!AI44,LOOKUP(Calculations!C$163,Calculations!$C$9:$I$9,Calculations!$C12:$I12))","v":9.9871000000000005E-3},{"$f":"IF(Engines!AJ44<>\"\",Engines!AJ44,LOOKUP(Calculations!D$163,Calculations!$C$9:$I$9,Calculations!$C12:$I12))","v":9.9871000000000005E-3},{"$f":"IF(Engines!AK44<>\"\",Engines!AK44,LOOKUP(Calculations!E$163,Calculations!$C$9:$I$9,Calculations!$C12:$I12))","v":9.9871000000000005E-3},{"$f":"IF(Engines!AL44<>\"\",Engines!AL44,LOOKUP(Calculations!F$163,Calculations!$C$9:$I$9,Calculations!$C12:$I12))","v":9.9871000000000005E-3},{"$f":"IF(Engines!AM44<>\"\",Engines!AM44,LOOKUP(Calculations!G$163,Calculations!$C$9:$I$9,Calculations!$C12:$I12))","v":9.9871000000000005E-3},{"$f":"IF(Engines!AN44<>\"\",Engines!AN44,LOOKUP(Calculations!H$163,Calculations!$C$9:$I$9,Calculations!$C12:$I12))","v":9.9871000000000005E-3},{"$f":"IF(Engines!AO44<>\"\",Engines!AO44,LOOKUP(Calculations!I$163,Calculations!$C$9:$I$9,Calculations!$C12:$I12))","v":9.9871000000000005E-3},{"$f":"IF(Engines!AP44<>\"\",Engines!AP44,LOOKUP(Calculations!J$163,Calculations!$C$9:$I$9,Calculations!$C12:$I12))","v":9.9871000000000005E-3},{"$f":"IF(Engines!AQ44<>\"\",Engines!AQ44,LOOKUP(Calculations!K$163,Calculations!$C$9:$I$9,Calculations!$C12:$I12))","v":9.9871000000000005E-3},{"$f":"IF(Engines!AR44<>\"\",Engines!AR44,LOOKUP(Calculations!L$163,Calculations!$C$9:$I$9,Calculations!$C12:$I12))","v":9.9871000000000005E-3},null,"PM10",null,{"$f":"C165*C$197","v":0},{"$f":"D165*D$197","v":0},{"$f":"E165*E$197","v":0},{"$f":"F165*F$197","v":0},{"$f":"G165*G$197","v":0},{"$f":"H165*H$197","v":0},{"$f":"I165*I$197","v":0},{"$f":"J165*J$197","v":0},{"$f":"K165*K$197","v":0},{"$f":"L165*L$197","v":0},{"$f":"SUM(P165:Y165)","v":0},null,"PM10",null,{"$f":"P165*C$198/2000","v":0},{"$f":"Q165*D$198/2000","v":0},{"$f":"R165*E$198/2000","v":0},{"$f":"S165*F$198/2000","v":0},{"$f":"T165*G$198/2000","v":0},{"$f":"U165*H$198/2000","v":0},{"$f":"V165*I$198/2000","v":0},{"$f":"W165*J$198/2000","v":0},{"$f":"X165*K$198/2000","v":0},{"$f":"Y165*L$198/2000","v":0},{"$f":"SUM(AD165:AM165)","v":0}]
["PM2.5",null,{"$f":"IF(Engines!AI45<>\"\",Engines!AI45,LOOKUP(Calculations!C$163,Calculations!$C$9:$I$9,Calculations!$C13:$I13))","v":9.9871000000000005E-3},{"$f":"IF(Engines!AJ45<>\"\",Engines!AJ45,LOOKUP(Calculations!D$163,Calculations!$C$9:$I$9,Calculations!$C13:$I13))","v":9.9871000000000005E-3},{"$f":"IF(Engines!AK45<>\"\",Engines!AK45,LOOKUP(Calculations!E$163,Calculations!$C$9:$I$9,Calculations!$C13:$I13))","v":9.9871000000000005E-3},{"$f":"IF(Engines!AL45<>\"\",Engines!AL45,LOOKUP(Calculations!F$163,Calculations!$C$9:$I$9,Calculations!$C13:$I13))","v":9.9871000000000005E-3},{"$f":"IF(Engines!AM45<>\"\",Engines!AM45,LOOKUP(Calculations!G$163,Calculations!$C$9:$I$9,Calculations!$C13:$I13))","v":9.9871000000000005E-3},{"$f":"IF(Engines!AN45<>\"\",Engines!AN45,LOOKUP(Calculations!H$163,Calculations!$C$9:$I$9,Calculations!$C13:$I13))","v":9.9871000000000005E-3},{"$f":"IF(Engines!AO45<>\"\",Engines!AO45,LOOKUP(Calculations!I$163,Calculations!$C$9:$I$9,Calculations!$C13:$I13))","v":9.9871000000000005E-3},{"$f":"IF(Engines!AP45<>\"\",Engines!AP45,LOOKUP(Calculations!J$163,Calculations!$C$9:$I$9,Calculations!$C13:$I13))","v":9.9871000000000005E-3},{"$f":"IF(Engines!AQ45<>\"\",Engines!AQ45,LOOKUP(Calculations!K$163,Calculations!$C$9:$I$9,Calculations!$C13:$I13))","v":9.9871000000000005E-3},{"$f":"IF(Engines!AR45<>\"\",Engines!AR45,LOOKUP(Calculations!L$163,Calculations!$C$9:$I$9,Calculations!$C13:$I13))","v":9.9871000000000005E-3},null,"PM2.5",null,0,0,0,0,0,0,0,0,0,0,0,null,"PM2.5",null,0,0,0,0,0,0,0,0,0,0,0]
["SO2",null,{"$f":"IF(Engines!AI46<>\"\",Engines!AI46,LOOKUP(Calculations!C$163,Calculations!$C$9:$I$9,Calculations!$C14:$I14))","v":5.8799999999999998E-4},{"$f":"IF(Engines!AJ46<>\"\",Engines!AJ46,LOOKUP(Calculations!D$163,Calculations!$C$9:$I$9,Calculations!$C14:$I14))","v":5.8799999999999998E-4},{"$f":"IF(Engines!AK46<>\"\",Engines!AK46,LOOKUP(Calculations!E$163,Calculations!$C$9:$I$9,Calculations!$C14:$I14))","v":5.8799999999999998E-4},{"$f":"IF(Engines!AL46<>\"\",Engines!AL46,LOOKUP(Calculations!F$163,Calculations!$C$9:$I$9,Calculations!$C14:$I14))","v":5.8799999999999998E-4},{"$f":"IF(Engines!AM46<>\"\",Engines!AM46,LOOKUP(Calculations!G$163,Calculations!$C$9:$I$9,Calculations!$C14:$I14))","v":5.8799999999999998E-4},{"$f":"IF(Engines!AN46<>\"\",Engines!AN46,LOOKUP(Calculations!H$163,Calculations!$C$9:$I$9,Calculations!$C14:$I14))","v":5.8799999999999998E-4},{"$f":"IF(Engines!AO46<>\"\",Engines!AO46,LOOKUP(Calculations!I$163,Calculations!$C$9:$I$9,Calculations!$C14:$I14))","v":5.8799999999999998E-4},{"$f":"IF(Engines!AP46<>\"\",Engines!AP46,LOOKUP(Calculations!J$163,Calculations!$C$9:$I$9,Calculations!$C14:$I14))","v":5.8799999999999998E-4},{"$f":"IF(Engines!AQ46<>\"\",Engines!AQ46,LOOKUP(Calculations!K$163,Calculations!$C$9:$I$9,Calculations!$C14:$I14))","v":5.8799999999999998E-4},{"$f":"IF(Engines!AR46<>\"\",Engines!AR46,LOOKUP(Calculations!L$163,Calculations!$C$9:$I$9,Calculations!$C14:$I14))","v":5.8799999999999998E-4},null,"SO2",null,0,0,0,0,0,0,0,0,0,0,0,null,"SO2",null,0,0,0,0,0,0,0,0,0,0,0]
["NOx",null,{"$f":"IF(Engines!AI47<>\"\",Engines!AI47,LOOKUP(Calculations!C$163,Calculations!$C$9:$I$9,Calculations!$C15:$I15))","v":4.08},{"$f":"IF(Engines!AJ47<>\"\",Engines!AJ47,LOOKUP(Calculations!D$163,Calculations!$C$9:$I$9,Calculations!$C15:$I15))","v":4.08},{"$f":"IF(Engines!AK47<>\"\",Engines!AK47,LOOKUP(Calculations!E$163,Calculations!$C$9:$I$9,Calculations!$C15:$I15))","v":4.08},{"$f":"IF(Engines!AL47<>\"\",Engines!AL47,LOOKUP(Calculations!F$163,Calculations!$C$9:$I$9,Calculations!$C15:$I15))","v":4.08},{"$f":"IF(Engines!AM47<>\"\",Engines!AM47,LOOKUP(Calculations!G$163,Calculations!$C$9:$I$9,Calculations!$C15:$I15))","v":4.08},{"$f":"IF(Engines!AN47<>\"\",Engines!AN47,LOOKUP(Calculations!H$163,Calculations!$C$9:$I$9,Calculations!$C15:$I15))","v":4.08},{"$f":"IF(Engines!AO47<>\"\",Engines!AO47,LOOKUP(Calculations!I$163,Calculations!$C$9:$I$9,Calculations!$C15:$I15))","v":4.08},{"$f":"IF(Engines!AP47<>\"\",Engines!AP47,LOOKUP(Calculations!J$163,Calculations!$C$9:$I$9,Calculations!$C15:$I15))","v":4.08},{"$f":"IF(Engines!AQ47<>\"\",Engines!AQ47,LOOKUP(Calculations!K$163,Calculations!$C$9:$I$9,Calculations!$C15:$I15))","v":4.08},{"$f":"IF(Engines!AR47<>\"\",Engines!AR47,LOOKUP(Calculations!L$163,Calculations!$C$9:$I$9,Calculations!$C15:$I15))","v":4.08},null,"NOx",null,0,0,0,0,0,0,0,0,0,0,0,null,"NOx",null,0,0,0,0,0,0,0,0,0,0,0]
["CO",null,{"$f":"IF(Engines!AI48<>\"\",Engines!AI48,LOOKUP(Calculations!C$163,Calculations!$C$9:$I$9,Calculations!$C16:$I16))","v":0.55700000000000005},{"$f":"IF(Engines!AJ48<>\"\",Engines!AJ48,LOOKUP(Calculations!D$163,Calculations!$C$9:$I$9,Calculations!$C16:$I16))","v":0.55700000000000005},{"$f":"IF(Engines!AK48<>\"\",Engines!AK48,LOOKUP(Calculations!E$163,Calculations!$C$9:$I$9,Calculations!$C16:$I16))","v":0.55700000000000005},{"$f":"IF(Engines!AL48<>\"\",Engines!AL48,LOOKUP(Calculations!F$163,Calculations!$C$9:$I$9,Calculations!$C16:$I16))","v":0.55700000000000005},{"$f":"IF(Engines!AM48<>\"\",Engines!AM48,LOOKUP(Calculations!G$163,Calculations!$C$9:$I$9,Calculations!$C16:$I16))","v":0.55700000000000005},{"$f":"IF(Engines!AN48<>\"\",Engines!AN48,LOOKUP(Calculations!H$163,Calculations!$C$9:$I$9,Calculations!$C16:$I16))","v":0.55700000000000005},{"$f":"IF(Engines!AO48<>\"\",Engines!AO48,LOOKUP(Calculations!I$163,Calculations!$C$9:$I$9,Calculations!$C16:$I16))","v":0.55700000000000005},{"$f":"IF(Engines!AP48<>\"\",Engines!AP48,LOOKUP(Calculations!J$163,Calculations!$C$9:$I$9,Calculations!$C16:$I16))","v":0.55700000000000005},{"$f":"IF(Engines!AQ48<>\"\",Engines!AQ48,LOOKUP(Calculations!K$163,Calculations!$C$9:$I$9,Calculations!$C16:$I16))","v":0.55700000000000005},{"$f":"IF(Engines!AR48<>\"\",Engines!AR48,LOOKUP(Calculations!L$163,Calculations!$C$9:$I$9,Calculations!$C16:$I16))","v":0.55700000000000005},null,"CO",null,0,0,0,0,0,0,0,0,0,0,0,null,"CO",null,0,0,0,0,0,0,0,0,0,0,0]
["VOC",null,{"$f":"IF(Engines!AI49<>\"\",Engines!AI49,LOOKUP(Calculations!C$163,Calculations!$C$9:$I$9,Calculations!$C17:$I17))","v":0.11799999999999999},{"$f":"IF(Engines!AJ49<>\"\",Engines!AJ49,LOOKUP(Calculations!D$163,Calculations!$C$9:$I$9,Calculations!$C17:$I17))","v":0.11799999999999999},{"$f":"IF(Engines!AK49<>\"\",Engines!AK49,LOOKUP(Calculations!E$163,Calculations!$C$9:$I$9,Calculations!$C17:$I17))","v":0.11799999999999999},{"$f":"IF(Engines!AL49<>\"\",Engines!AL49,LOOKUP(Calculations!F$163,Calculations!$C$9:$I$9,Calculations!$C17:$I17))","v":0.11799999999999999},{"$f":"IF(Engines!AM49<>\"\",Engines!AM49,LOOKUP(Calculations!G$163,Calculations!$C$9:$I$9,Calculations!$C17:$I17))","v":0.11799999999999999},{"$f":"IF(Engines!AN49<>\"\",Engines!AN49,LOOKUP(Calculations!H$163,Calculations!$C$9:$I$9,Calculations!$C17:$I17))","v":0.11799999999999999},{"$f":"IF(Engines!AO49<>\"\",Engines!AO49,LOOKUP(Calculations!I$163,Calculations!$C$9:$I$9,Calculations!$C17:$I17))","v":0.11799999999999999},{"$f":"IF(Engines!AP49<>\"\",Engines!AP49,LOOKUP(Calculations!J$163,Calculations!$C$9:$I$9,Calculations!$C17:$I17))","v":0.11799999999999999},{"$f":"IF(Engines!AQ49<>\"\",Engines!AQ49,LOOKUP(Calculations!K$163,Calculations!$C$9:$I$9,Calculations!$C17:$I17))","v":0.11799999999999999},{"$f":"IF(Engines!AR49<>\"\",Engines!AR49,LOOKUP(Calculations!L$163,Calculations!$C$9:$I$9,Calculations!$C17:$I17))","v":0.11799999999999999},null,"VOC",null,0,0,0,0,0,0,0,0,0,0,0,null,"VOC",null,0,0,0,0,0,0,0,0,0,0,0]
["Individual HAP",null,null,null,null,null,null,null,null,null,null,null,null,"Individual HAP",null,null,null,null,null,null,null,null,null,null,null,null,null,"Individual HAP"]
["Acetaldehyde",null,{"$f":"IF(Engines!AI51<>\"\",Engines!AI51,LOOKUP(Calculations!C$163,Calculations!$C$9:$I$9,Calculations!$C19:$I19))","v":8.3599999999999994E-3},{"$f":"IF(Engines!AJ51<>\"\",Engines!AJ51,LOOKUP(Calculations!D$163,Calculations!$C$9:$I$9,Calculations!$C19:$I19))","v":8.3599999999999994E-3},{"$f":"IF(Engines!AK51<>\"\",Engines!AK51,LOOKUP(Calculations!E$163,Calculations!$C$9:$I$9,Calculations!$C19:$I19))","v":8.3599999999999994E-3},{"$f":"IF(Engines!AL51<>\"\",Engines!AL51,LOOKUP(Calculations!F$163,Calculations!$C$9:$I$9,Calculations!$C19:$I19))","v":8.3599999999999994E-3},{"$f":"IF(Engines!AM51<>\"\",Engines!AM51,LOOKUP(Calculations!G$163,Calculations!$C$9:$I$9,Calculations!$C19:$I19))","v":8.3599999999999994E-3},{"$f":"IF(Engines!AN51<>\"\",Engines!AN51,LOOKUP(Calculations!H$163,Calculations!$C$9:$I$9,Calculations!$C19:$I19))","v":8.3599999999999994E-3},{"$f":"IF(Engines!AO51<>\"\",Engines!AO51,LOOKUP(Calculations!I$163,Calculations!$C$9:$I$9,Calculations!$C19:$I19))","v":8.3599999999999994E-3},{"$f":"IF(Engines!AP51<>\"\",Engines!AP51,LOOKUP(Calculations!J$163,Calculations!$C$9:$I$9,Calculations!$C19:$I19))","v":8.3599999999999994E-3},{"$f":"IF(Engines!AQ51<>\"\",Engines!AQ51,LOOKUP(Calculations!K$163,Calculations!$C$9:$I$9,Calculations!$C19:$I19))","v":8.3599999999999994E-3},{"$f":"IF(Engines!AR51<>\"\",Engines!AR51,LOOKUP(Calculations!L$163,Calculations!$C$9:$I$9,Calculations!$C19:$I19))","v":8.3599999999999994E-3},null,"Acetaldehyde",null,{"$f":"C172*C$197","v":0},{"$f":"D172*D$197","v":0},{"$f":"E172*E$197","v":0},{"$f":"F172*F$197","v":0},{"$f":"G172*G$197","v":0},{"$f":"H172*H$197","v":0},{"$f":"I172*I$197","v":0},{"$f":"J172*J$197","v":0},{"$f":"K172*K$197","v":0},{"$f":"L172*L$197","v":0},{"$f":"SUM(P172:Y172)","v":0},null,"Acetaldehyde",null,{"$f":"P172*C$198/2000","v":0},{"$f":"Q172*D$198/2000","v":0},{"$f":"R172*E$198/2000","v":0},{"$f":"S172*F$198/2000","v":0},{"$f":"T172*G$198/2000","v":0},{"$f":"U172*H$198/2000","v":0},{"$f":"V172*I$198/2000","v":0},{"$f":"W172*J$198/2000","v":0},{"$f":"X172*K$198/2000","v":0},{"$f":"Y172*L$198/2000","v":0},{"$f":"SUM(AD172:AM172)","v":0}]
["Acrolein",null,{"$f":"IF(Engines!AI52<>\"\",Engines!AI52,LOOKUP(Calculations!C$163,Calculations!$C$9:$I$9,Calculations!$C20:$I20))","v":5.1399999999999996E-3},{"$f":"IF(Engines!AJ52<>\"\",Engines!AJ52,LOOKUP(Calculations!D$163,Calculations!$C$9:$I$9,Calculations!$C20:$I20))","v":5.1399999999999996E-3},{"$f":"IF(Engines!AK52<>\"\",Engines!AK52,LOOKUP(Calculations!E$163,Calculations!$C$9:$I$9,Calculations!$C20:$I20))","v":5.1399999999999996E-3},{"$f":"IF(Engines!AL52<>\"\",Engines!AL52,LOOKUP(Calculations!F$163,Calculations!$C$9:$I$9,Calculations!$C20:$I20))","v":5.1399999999999996E-3},{"$f":"IF(Engines!AM52<>\"\",Engines!AM52,LOOKUP(Calculations!G$163,Calculations!$C$9:$I$9,Calculations!$C20:$I20))","v":5.1399999999999996E-3},{"$f":"IF(Engines!AN52<>\"\",Engines!AN52,LOOKUP(Calculations!H$163,Calculations!$C$9:$I$9,Calculations!$C20:$I20))","v":5.1399999999999996E-3},{"$f":"IF(Engines!AO52<>\"\",Engines!AO52,LOOKUP(Calculations!I$163,Calculations!$C$9:$I$9,Calculations!$C20:$I20))","v":5.1399999999999996E-3},{"$f":"IF(Engines!AP52<>\"\",Engines!AP52,LOOKUP(Calculations!J$163,Calculations!$C$9:$I$9,Calculations!$C20:$I20))","v":5.1399999999999996E-3},{"$f":"IF(Engines!AQ52<>\"\",Engines!AQ52,LOOKUP(Calculations!K$163,Calculations!$C$9:$I$9,Calculations!$C20:$I20))","v":5.1399999999999996E-3},{"$f":"IF(Engines!AR52<>\"\",Engines!AR52,LOOKUP(Calculations!L$163,Calculations!$C$9:$I$9,Calculations!$C20:$I20))","v":5.1399999999999996E-3},null,"Acrolein",null,0,0,0,0,0,0,0,0,0,0,0,null,"Acrolein",null,0,0,0,0,0,0,0,0,0,0,0]
["Arsenic compounds",null,{"$f":"IF(Engines!AI53<>\"\",Engines!AI53,LOOKUP(Calculations!C$163,Calculations!$C$9:$I$9,Calculations!$C21:$I21))","v":0},{"$f":"IF(Engines!AJ53<>\"\",Engines!AJ53,LOOKUP(Calculations!D$163,Calculations!$C$9:$I$9,Calculations!$C21:$I21))","v":0},{"$f":"IF(Engines!AK53<>\"\",Engines!AK53,LOOKUP(Calculations!E$163,Calculations!$C$9:$I$9,Calculations!$C21:$I21))","v":0},{"$f":"IF(Engines!AL53<>\"\",Engines!AL53,LOOKUP(Calculations!F$163,Calculations!$C$9:$I$9,Calculations!$C21:$I21))","v":0},{"$f":"IF(Engines!AM53<>\"\",Engines!AM53,LOOKUP(Calculations!G$163,Calculations!$C$9:$I$9,Calculations!$C21:$I21))","v":0},{"$f":"IF(Engines!AN53<>\"\",Engines!AN53,LOOKUP(Calculations!H$163,Calculations!$C$9:$I$9,Calculations!$C21:$I21))","v":0},{"$f":"IF(Engines!AO53<>\"\",Engines!AO53,LOOKUP(Calculations!I$163,Calculations!$C$9:$I$9,Calculations!$C21:$I21))","v":0},{"$f":"IF(Engines!AP53<>\"\",Engines!AP53,LOOKUP(Calculations!J$163,Calculations!$C$9:$I$9,Calculations!$C21:$I21))","v":0},{"$f":"IF(Engines!AQ53<>\"\",Engines!AQ53,LOOKUP(Calculations!K$163,Calculations!$C$9:$I$9,Calculations!$C21:$I21))","v":0},{"$f":"IF(Engines!AR53<>\"\",Engines!AR53,LOOKUP(Calculations!L$163,Calculations!$C$9:$I$9,Calculations!$C21:$I21))","v":0},null,"Arsenic compounds",null,0,0,0,0,0,0,0,0,0,0,0,null,"Arsenic compounds",null,0,0,0,0,0,0,0,0,0,0,0]
["Benzene",null,{"$f":"IF(Engines!AI54<>\"\",Engines!AI54,LOOKUP(Calculations!C$163,Calculations!$C$9:$I$9,Calculations!$C22:$I22))","v":4.4000000000000002E-4},{"$f":"IF(Engines!AJ54<>\"\",Engines!AJ54,LOOKUP(Calculations!D$163,Calculations!$C$9:$I$9,Calculations!$C22:$I22))","v":4.4000000000000002E-4},{"$f":"IF(Engines!AK54<>\"\",Engines!AK54,LOOKUP(Calculations!E$163,Calculations!$C$9:$I$9,Calculations!$C22:$I22))","v":4.4000000000000002E-4},{"$f":"IF(Engines!AL54<>\"\",Engines!AL54,LOOKUP(Calculations!F$163,Calculations!$C$9:$I$9,Calculations!$C22:$I22))","v":4.4000000000000002E-4},{"$f":"IF(Engines!AM54<>\"\",Engines!AM54,LOOKUP(Calculations!G$163,Calculations!$C$9:$I$9,Calculations!$C22:$I22))","v":4.4000000000000002E-4},{"$f":"IF(Engines!AN54<>\"\",Engines!AN54,LOOKUP(Calculations!H$163,Calculations!$C$9:$I$9,Calculations!$C22:$I22))","v":4.4000000000000002E-4},{"$f":"IF(Engines!AO54<>\"\",Engines!AO54,LOOKUP(Calculations!I$163,Calculations!$C$9:$I$9,Calculations!$C22:$I22))","v":4.4000000000000002E-4},{"$f":"IF(Engines!AP54<>\"\",Engines!AP54,LOOKUP(Calculations!J$163,Calculations!$C$9:$I$9,Calculations!$C22:$I22))","v":4.4000000000000002E-4},{"$f":"IF(Engines!AQ54<>\"\",Engines!AQ54,LOOKUP(Calculations!K$163,Calculations!$C$9:$I$9,Calculations!$C22:$I22))","v":4.4000000000000002E-4},{"$f":"IF(Engines!AR54<>\"\",Engines!AR54,LOOKUP(Calculations!L$163,Calculations!$C$9:$I$9,Calculations!$C22:$I22))","v":4.4000000000000002E-4},null,"Benzene",null,0,0,0,0,0,0,0,0,0,0,0,null,"Benzene",null,0,0,0,0,0,0,0,0,0,0,0]
["Benzyl chloride",null,{"$f":"IF(Engines!AI55<>\"\",Engines!AI55,LOOKUP(Calculations!C$163,Calculations!$C$9:$I$9,Calculations!$C23:$I23))","v":0},{"$f":"IF(Engines!AJ55<>\"\",Engines!AJ55,LOOKUP(Calculations!D$163,Calculations!$C$9:$I$9,Calculations!$C23:$I23))","v":0},{"$f":"IF(Engines!AK55<>\"\",Engines!AK55,LOOKUP(Calculations!E$163,Calculations!$C$9:$I$9,Calculations!$C23:$I23))","v":0},{"$f":"IF(Engines!AL55<>\"\",Engines!AL55,LOOKUP(Calculations!F$163,Calculations!$C$9:$I$9,Calculations!$C23:$I23))","v":0},{"$f":"IF(Engines!AM55<>\"\",Engines!AM55,LOOKUP(Calculations!G$163,Calculations!$C$9:$I$9,Calculations!$C23:$I23))","v":0},{"$f":"IF(Engines!AN55<>\"\",Engines!AN55,LOOKUP(Calculations!H$163,Calculations!$C$9:$I$9,Calculations!$C23:$I23))","v":0},{"$f":"IF(Engines!AO55<>\"\",Engines!AO55,LOOKUP(Calculations!I$163,Calculations!$C$9:$I$9,Calculations!$C23:$I23))","v":0},{"$f":"IF(Engines!AP55<>\"\",Engines!AP55,LOOKUP(Calculations!J$163,Calculations!$C$9:$I$9,Calculations!$C23:$I23))","v":0},{"$f":"IF(Engines!AQ55<>\"\",Engines!AQ55,LOOKUP(Calculations!K$163,Calculations!$C$9:$I$9,Calculations!$C23:$I23))","v":0},{"$f":"IF(Engines!AR55<>\"\",Engines!AR55,LOOKUP(Calculations!L$163,Calculations!$C$9:$I$9,Calculations!$C23:$I23))","v":0},null,"Benzyl chloride",null,0,0,0,0,0,0,0,0,0,0,0,null,"Benzyl chloride",null,0,0,0,0,0,0,0,0,0,0,0]
["Beryllium compounds",null,{"$f":"IF(Engines!AI56<>\"\",Engines!AI56,LOOKUP(Calculations!C$163,Calculations!$C$9:$I$9,Calculations!$C24:$I24))","v":0},{"$f":"IF(Engines!AJ56<>\"\",Engines!AJ56,LOOKUP(Calculations!D$163,Calculations!$C$9:$I$9,Calculations!$C24:$I24))","v":0},{"$f":"IF(Engines!AK56<>\"\",Engines!AK56,LOOKUP(Calculations!E$163,Calculations!$C$9:$I$9,Calculations!$C24:$I24))","v":0},{"$f":"IF(Engines!AL56<>\"\",Engines!AL56,LOOKUP(Calculations!F$163,Calculations!$C$9:$I$9,Calculations!$C24:$I24))","v":0},{"$f":"IF(Engines!AM56<>\"\",Engines!AM56,LOOKUP(Calculations!G$163,Calculations!$C$9:$I$9,Calculations!$C24:$I24))","v":0},{"$f":"IF(Engines!AN56<>\"\",Engines!AN56,LOOKUP(Calculations!H$163,Calculations!$C$9:$I$9,Calculations!$C24:$I24))","v":0},{"$f":"IF(Engines!AO56<>\"\",Engines!AO56,LOOKUP(Calculations!I$163,Calculations!$C$9:$I$9,Calculations!$C24:$I24))","v":0},{"$f":"IF(Engines!AP56<>\"\",Engines!AP56,LOOKUP(Calculations!J$163,Calculations!$C$9:$I$9,Calculations!$C24:$I24))","v":0},{"$f":"IF(Engines!AQ56<>\"\",Engines!AQ56,LOOKUP(Calculations!K$163,Calculations!$C$9:$I$9,Calculations!$C24:$I24))","v":0},{"$f":"IF(Engines!AR56<>\"\",Engines!AR56,LOOKUP(Calculations!L$163,Calculations!$C$9:$I$9,Calculations!$C24:$I24))","v":0},null,"Beryllium compounds",null,0,0,0,0,0,0,0,0,0,0,0,null,"Beryllium compounds",null,0,0,0,0,0,0,0,0,0,0,0]
["Cadmium compounds",null,{"$f":"IF(Engines!AI57<>\"\",Engines!AI57,LOOKUP(Calculations!C$163,Calculations!$C$9:$I$9,Calculations!$C25:$I25))","v":0},{"$f":"IF(Engines!AJ57<>\"\",Engines!AJ57,LOOKUP(Calculations!D$163,Calculations!$C$9:$I$9,Calculations!$C25:$I25))","v":0},{"$f":"IF(Engines!AK57<>\"\",Engines!AK57,LOOKUP(Calculations!E$163,Calculations!$C$9:$I$9,Calculations!$C25:$I25))","v":0},{"$f":"IF(Engines!AL57<>\"\",Engines!AL57,LOOKUP(Calculations!F$163,Calculations!$C$9:$I$9,Calculations!$C25:$I25))","v":0},{"$f":"IF(Engines!AM57<>\"\",Engines!AM57,LOOKUP(Calculations!G$163,Calculations!$C$9:$I$9,Calculations!$C25:$I25))","v":0},{"$f":"IF(Engines!AN57<>\"\",Engines!AN57,LOOKUP(Calculations!H$163,Calculations!$C$9:$I$9,Calculations!$C25:$I25))","v":0},{"$f":"IF(Engines!AO57<>\"\",Engines!AO57,LOOKUP(Calculations!I$163,Calculations!$C$9:$I$9,Calculations!$C25:$I25))","v":0},{"$f":"IF(Engines!AP57<>\"\",Engines!AP57,LOOKUP(Calculations!J$163,Calculations!$C$9:$I$9,Calculations!$C25:$I25))","v":0},{"$f":"IF(Engines!AQ57<>\"\",Engines!AQ57,LOOKUP(Calculations!K$163,Calculations!$C$9:$I$9,Calculations!$C25:$I25))","v":0},{"$f":"IF(Engines!AR57<>\"\",Engines!AR57,LOOKUP(Calculations!L$163,Calculations!$C$9:$I$9,Calculations!$C25:$I25))","v":0},null,"Cadmium compounds",null,0,0,0,0,0,0,0,0,0,0,0,null,"Cadmium compounds",null,0,0,0,0,0,0,0,0,0,0,0]
["Cyanide compounds",null,{"$f":"IF(Engines!AI58<>\"\",Engines!AI58,LOOKUP(Calculations!C$163,Calculations!$C$9:$I$9,Calculations!$C26:$I26))","v":0},{"$f":"IF(Engines!AJ58<>\"\",Engines!AJ58,LOOKUP(Calculations!D$163,Calculations!$C$9:$I$9,Calculations!$C26:$I26))","v":0},{"$f":"IF(Engines!AK58<>\"\",Engines!AK58,LOOKUP(Calculations!E$163,Calculations!$C$9:$I$9,Calculations!$C26:$I26))","v":0},{"$f":"IF(Engines!AL58<>\"\",Engines!AL58,LOOKUP(Calculations!F$163,Calculations!$C$9:$I$9,Calculations!$C26:$I26))","v":0},{"$f":"IF(Engines!AM58<>\"\",Engines!AM58,LOOKUP(Calculations!G$163,Calculations!$C$9:$I$9,Calculations!$C26:$I26))","v":0},{"$f":"IF(Engines!AN58<>\"\",Engines!AN58,LOOKUP(Calculations!H$163,Calculations!$C$9:$I$9,Calculations!$C26:$I26))","v":0},{"$f":"IF(Engines!AO58<>\"\",Engines!AO58,LOOKUP(Calculations!I$163,Calculations!$C$9:$I$9,Calculations!$C26:$I26))","v":0},{"$f":"IF(Engines!AP58<>\"\",Engines!AP58,LOOKUP(Calculations!J$163,Calculations!$C$9:$I$9,Calculations!$C26:$I26))","v":0},{"$f":"IF(Engines!AQ58<>\"\",Engines!AQ58,LOOKUP(Calculations!K$163,Calculations!$C$9:$I$9,Calculations!$C26:$I26))","v":0},{"$f":"IF(Engines!AR58<>\"\",Engines!AR58,LOOKUP(Calculations!L$163,Calculations!$C$9:$I$9,Calculations!$C26:$I26))","v":0},null,"Cyanide compounds",null,0,0,0,0,0,0,0,0,0,0,0,null,"Cyanide compounds",null,0,0,0,0,0,0,0,0,0,0,0]
["Formaldehyde",null,{"$f":"IF(Engines!AI59<>\"\",Engines!AI59,LOOKUP(Calculations!C$163,Calculations!$C$9:$I$9,Calculations!$C27:$I27))","v":5.28E-2},{"$f":"IF(Engines!AJ59<>\"\",Engines!AJ59,LOOKUP(Calculations!D$163,Calculations!$C$9:$I$9,Calculations!$C27:$I27))","v":5.28E-2},{"$f":"IF(Engines!AK59<>\"\",Engines!AK59,LOOKUP(Calculations!E$163,Calculations!$C$9:$I$9,Calculations!$C27:$I27))","v":5.28E-2},{"$f":"IF(Engines!AL59<>\"\",Engines!AL59,LOOKUP(Calculations!F$163,Calculations!$C$9:$I$9,Calculations!$C27:$I27))","v":5.28E-2},{"$f":"IF(Engines!AM59<>\"\",Engines!AM59,LOOKUP(Calculations!G$163,Calculations!$C$9:$I$9,Calculations!$C27:$I27))","v":5.28E-2},{"$f":"IF(Engines!AN59<>\"\",Engines!AN59,LOOKUP(Calculations!H$163,Calculations!$C$9:$I$9,Calculations!$C27:$I27))","v":5.28E-2},{"$f":"IF(Engines!AO59<>\"\",Engines!AO59,LOOKUP(Calculations!I$163,Calculations!$C$9:$I$9,Calculations!$C27:$I27))","v":5.28E-2},{"$f":"IF(Engines!AP59<>\"\",Engines!AP59,LOOKUP(Calculations!J$163,Calculations!$C$9:$I$9,Calculations!$C27:$I27))","v":5.28E-2},{"$f":"IF(Engines!AQ59<>\"\",Engines!AQ59,LOOKUP(Calculations!K$163,Calculations!$C$9:$I$9,Calculations!$C27:$I27))","v":5.28E-2},{"$f":"IF(Engines!AR59<>\"\",Engines!AR59,LOOKUP(Calculations!L$163,Calculations!$C$9:$I$9,Calculations!$C27:$I27))","v":5.28E-2},null,"Formaldehyde",null,0,0,0,0,0,0,0,0,0,0,0,null,"Formaldehyde",null,0,0,0,0,0,0,0,0,0,0,0]
["n-Hexane",null,{"$f":"IF(Engines!AI60<>\"\",Engines!AI60,LOOKUP(Calculations!C$163,Calculations!$C$9:$I$9,Calculations!$C28:$I28))","v":1.1100000000000001E-3},{"$f":"IF(Engines!AJ60<>\"\",Engines!AJ60,LOOKUP(Calculations!D$163,Calculations!$C$9:$I$9,Calculations!$C28:$I28))","v":1.1100000000000001E-3},{"$f":"IF(Engines!AK60<>\"\",Engines!AK60,LOOKUP(Calculations!E$163,Calculations!$C$9:$I$9,Calculations!$C28:$I28))","v":1.1100000000000001E-3},{"$f":"IF(Engines!AL60<>\"\",Engines!AL60,LOOKUP(Calculations!F$163,Calculations!$C$9:$I$9,Calculations!$C28:$I28))","v":1.1100000000000001E-3},{"$f":"IF(Engines!AM60<>\"\",Engines!AM60,LOOKUP(Calculations!G$163,Calculations!$C$9:$I$9,Calculations!$C28:$I28))","v":1.1100000000000001E-3},{"$f":"IF(Engines!AN60<>\"\",Engines!AN60,LOOKUP(Calculations!H$163,Calculations!$C$9:$I$9,Calculations!$C28:$I28))","v":1.1100000000000001E-3},{"$f":"IF(Engines!AO60<>\"\",Engines!AO60,LOOKUP(Calculations!I$163,Calculations!$C$9:$I$9,Calculations!$C28:$I28))","v":1.1100000000000001E-3},{"$f":"IF(Engines!AP60<>\"\",Engines!AP60,LOOKUP(Calculations!J$163,Calculations!$C$9:$I$9,Calculations!$C28:$I28))","v":1.1100000000000001E-3},{"$f":"IF(Engines!AQ60<>\"\",Engines!AQ60,LOOKUP(Calculations!K$163,Calculations!$C$9:$I$9,Calculations!$C28:$I28))","v":1.1100000000000001E-3},{"$f":"IF(Engines!AR60<>\"\",Engines!AR60,LOOKUP(Calculations!L$163,Calculations!$C$9:$I$9,Calculations!$C28:$I28))","v":1.1100000000000001E-3},null,"n-Hexane",null,0,0,0,0,0,0,0,0,0,0,0,null,"n-Hexane",null,0,0,0,0,0,0,0,0,0,0,0]
["Hydrochloric acid",null,{"$f":"IF(Engines!AI61<>\"\",Engines!AI61,LOOKUP(Calculations!C$163,Calculations!$C$9:$I$9,Calculations!$C29:$I29))","v":0},{"$f":"IF(Engines!AJ61<>\"\",Engines!AJ61,LOOKUP(Calculations!D$163,Calculations!$C$9:$I$9,Calculations!$C29:$I29))","v":0},{"$f":"IF(Engines!AK61<>\"\",Engines!AK61,LOOKUP(Calculations!E$163,Calculations!$C$9:$I$9,Calculations!$C29:$I29))","v":0},{"$f":"IF(Engines!AL61<>\"\",Engines!AL61,LOOKUP(Calculations!F$163,Calculations!$C$9:$I$9,Calculations!$C29:$I29))","v":0},{"$f":"IF(Engines!AM61<>\"\",Engines!AM61,LOOKUP(Calculations!G$163,Calculations!$C$9:$I$9,Calculations!$C29:$I29))","v":0},{"$f":"IF(Engines!AN61<>\"\",Engines!AN61,LOOKUP(Calculations!H$163,Calculations!$C$9:$I$9,Calculations!$C29:$I29))","v":0},{"$f":"IF(Engines!AO61<>\"\",Engines!AO61,LOOKUP(Calculations!I$163,Calculations!$C$9:$I$9,Calculations!$C29:$I29))","v":0},{"$f":"IF(Engines!AP61<>\"\",Engines!AP61,LOOKUP(Calculations!J$163,Calculations!$C$9:$I$9,Calculations!$C29:$I29))","v":0},{"$f":"IF(Engines!AQ61<>\"\",Engines!AQ61,LOOKUP(Calculations!K$163,Calculations!$C$9:$I$9,Calculations!$C29:$I29))","v":0},{"$f":"IF(Engines!AR61<>\"\",Engines!AR61,LOOKUP(Calculations!L$163,Calculations!$C$9:$I$9,Calculations!$C29:$I29))","v":0},null,"Hydrochloric acid",null,0,0,0,0,0,0,0,0,0,0,0,null,"Hydrochloric acid",null,0,0,0,0,0,0,0,0,0,0,0]
["Lead Compounds",null,{"$f":"IF(Engines!AI62<>\"\",Engines!AI62,LOOKUP(Calculations!C$163,Calculations!$C$9:$I$9,Calculations!$C30:$I30))","v":0},{"$f":"IF(Engines!AJ62<>\"\",Engines!AJ62,LOOKUP(Calculations!D$163,Calculations!$C$9:$I$9,Calculations!$C30:$I30))","v":0},{"$f":"IF(Engines!AK62<>\"\",Engines!AK62,LOOKUP(Calculations!E$163,Calculations!$C$9:$I$9,Calculations!$C30:$I30))","v":0},{"$f":"IF(Engines!AL62<>\"\",Engines!AL62,LOOKUP(Calculations!F$163,Calculations!$C$9:$I$9,Calculations!$C30:$I30))","v":0},{"$f":"IF(Engines!AM62<>\"\",Engines!AM62,LOOKUP(Calculations!G$163,Calculations!$C$9:$I$9,Calculations!$C30:$I30))","v":0},{"$f":"IF(Engines!AN62<>\"\",Engines!AN62,LOOKUP(Calculations!H$163,Calculations!$C$9:$I$9,Calculations!$C30:$I30))","v":0},{"$f":"IF(Engines!AO62<>\"\",Engines!AO62,LOOKUP(Calculations!I$163,Calculations!$C$9:$I$9,Calculations!$C30:$I30))","v":0},{"$f":"IF(Engines!AP62<>\"\",Engines!AP62,LOOKUP(Calculations!J$163,Calculations!$C$9:$I$9,Calculations!$C30:$I30))","v":0},{"$f":"IF(Engines!AQ62<>\"\",Engines!AQ62,LOOKUP(Calculations!K$163,Calculations!$C$9:$I$9,Calculations!$C30:$I30))","v":0},{"$f":"IF(Engines!AR62<>\"\",Engines!AR62,LOOKUP(Calculations!L$163,Calculations!$C$9:$I$9,Calculations!$C30:$I30))","v":0},null,"Lead Compounds",null,0,0,0,0,0,0,0,0,0,0,0,null,"Lead Compounds",null,0,0,0,0,0,0,0,0,0,0,0]
["Mercury compounds",null,{"$f":"IF(Engines!AI63<>\"\",Engines!AI63,LOOKUP(Calculations!C$163,Calculations!$C$9:$I$9,Calculations!$C31:$I31))","v":0},{"$f":"IF(Engines!AJ63<>\"\",Engines!AJ63,LOOKUP(Calculations!D$163,Calculations!$C$9:$I$9,Calculations!$C31:$I31))","v":0},{"$f":"IF(Engines!AK63<>\"\",Engines!AK63,LOOKUP(Calculations!E$163,Calculations!$C$9:$I$9,Calculations!$C31:$I31))","v":0},{"$f":"IF(Engines!AL63<>\"\",Engines!AL63,LOOKUP(Calculations!F$163,Calculations!$C$9:$I$9,Calculations!$C31:$I31))","v":0},{"$f":"IF(Engines!AM63<>\"\",Engines!AM63,LOOKUP(Calculations!G$163,Calculations!$C$9:$I$9,Calculations!$C31:$I31))","v":0},{"$f":"IF(Engines!AN63<>\"\",Engines!AN63,LOOKUP(Calculations!H$163,Calculations!$C$9:$I$9,Calculations!$C31:$I31))","v":0},{"$f":"IF(Engines!AO63<>\"\",Engines!AO63,LOOKUP(Calculations!I$163,Calculations!$C$9:$I$9,Calculations!$C31:$I31))","v":0},{"$f":"IF(Engines!AP63<>\"\",Engines!AP63,LOOKUP(Calculations!J$163,Calculations!$C$9:$I$9,Calculations!$C31:$I31))","v":0},{"$f":"IF(Engines!AQ63<>\"\",Engines!AQ63,LOOKUP(Calculations!K$163,Calculations!$C$9:$I$9,Calculations!$C31:$I31))","v":0},{"$f":"IF(Engines!AR63<>\"\",Engines!AR63,LOOKUP(Calculations!L$163,Calculations!$C$9:$I$9,Calculations!$C31:$I31))","v":0},null,"Mercury compounds",null,0,0,0,0,0,0,0,0,0,0,0,null,"Mercury compounds",null,0,0,0,0,0,0,0,0,0,0,0]
["Methanol",null,{"$f":"IF(Engines!AI64<>\"\",Engines!AI64,LOOKUP(Calculations!C$163,Calculations!$C$9:$I$9,Calculations!$C32:$I32))","v":2.5000000000000001E-3},{"$f":"IF(Engines!AJ64<>\"\",Engines!AJ64,LOOKUP(Calculations!D$163,Calculations!$C$9:$I$9,Calculations!$C32:$I32))","v":2.5000000000000001E-3},{"$f":"IF(Engines!AK64<>\"\",Engines!AK64,LOOKUP(Calculations!E$163,Calculations!$C$9:$I$9,Calculations!$C32:$I32))","v":2.5000000000000001E-3},{"$f":"IF(Engines!AL64<>\"\",Engines!AL64,LOOKUP(Calculations!F$163,Calculations!$C$9:$I$9,Calculations!$C32:$I32))","v":2.5000000000000001E-3},{"$f":"IF(Engines!AM64<>\"\",Engines!AM64,LOOKUP(Calculations!G$163,Calculations!$C$9:$I$9,Calculations!$C32:$I32))","v":2.5000000000000001E-3},{"$f":"IF(Engines!AN64<>\"\",Engines!AN64,LOOKUP(Calculations!H$163,Calculations!$C$9:$I$9,Calculations!$C32:$I32))","v":2.5000000000000001E-3},{"$f":"IF(Engines!AO64<>\"\",Engines!AO64,LOOKUP(Calculations!I$163,Calculations!$C$9:$I$9,Calculations!$C32:$I32))","v":2.5000000000000001E-3},{"$f":"IF(Engines!AP64<>\"\",Engines!AP64,LOOKUP(Calculations!J$163,Calculations!$C$9:$I$9,Calculations!$C32:$I32))","v":2.5000000000000001E-3},{"$f":"IF(Engines!AQ64<>\"\",Engines!AQ64,LOOKUP(Calculations!K$163,Calculations!$C$9:$I$9,Calculations!$C32:$I32))","v":2.5000000000000001E-3},{"$f":"IF(Engines!AR64<>\"\",Engines!AR64,LOOKUP(Calculations!L$163,Calculations!$C$9:$I$9,Calculations!$C32:$I32))","v":2.5000000000000001E-3},null,"Methanol",null,0,0,0,0,0,0,0,0,0,0,0,null,"Methanol",null,0,0,0,0,0,0,0,0,0,0,0]
["Methyl hydrazine",null,{"$f":"IF(Engines!AI65<>\"\",Engines!AI65,LOOKUP(Calculations!C$163,Calculations!$C$9:$I$9,Calculations!$C33:$I33))","v":0},{"$f":"IF(Engines!AJ65<>\"\",Engines!AJ65,LOOKUP(Calculations!D$163,Calculations!$C$9:$I$9,Calculations!$C33:$I33))","v":0},{"$f":"IF(Engines!AK65<>\"\",Engines!AK65,LOOKUP(Calculations!E$163,Calculations!$C$9:$I$9,Calculations!$C33:$I33))","v":0},{"$f":"IF(Engines!AL65<>\"\",Engines!AL65,LOOKUP(Calculations!F$163,Calculations!$C$9:$I$9,Calculations!$C33:$I33))","v":0},{"$f":"IF(Engines!AM65<>\"\",Engines!AM65,LOOKUP(Calculations!G$163,Calculations!$C$9:$I$9,Calculations!$C33:$I33))","v":0},{"$f":"IF(Engines!AN65<>\"\",Engines!AN65,LOOKUP(Calculations!H$163,Calculations!$C$9:$I$9,Calculations!$C33:$I33))","v":0},{"$f":"IF(Engines!AO65<>\"\",Engines!AO65,LOOKUP(Calculations!I$163,Calculations!$C$9:$I$9,Calculations!$C33:$I33))","v":0},{"$f":"IF(Engines!AP65<>\"\",Engines!AP65,LOOKUP(Calculations!J$163,Calculations!$C$9:$I$9,Calculations!$C33:$I33))","v":0},{"$f":"IF(Engines!AQ65<>\"\",Engines!AQ65,LOOKUP(Calculations!K$163,Calculations!$C$9:$I$9,Calculations!$C33:$I33))","v":0},{"$f":"IF(Engines!AR65<>\"\",Engines!AR65,LOOKUP(Calculations!L$163,Calculations!$C$9:$I$9,Calculations!$C33:$I33))","v":0},null,"Methyl hydrazine",null,0,0,0,0,0,0,0,0,0,0,0,null,"Methyl hydrazine",null,0,0,0,0,0,0,0,0,0,0,0]
["Selenium compounds",null,{"$f":"IF(Engines!AI66<>\"\",Engines!AI66,LOOKUP(Calculations!C$163,Calculations!$C$9:$I$9,Calculations!$C34:$I34))","v":0},{"$f":"IF(Engines!AJ66<>\"\",Engines!AJ66,LOOKUP(Calculations!D$163,Calculations!$C$9:$I$9,Calculations!$C34:$I34))","v":0},{"$f":"IF(Engines!AK66<>\"\",Engines!AK66,LOOKUP(Calculations!E$163,Calculations!$C$9:$I$9,Calculations!$C34:$I34))","v":0},{"$f":"IF(Engines!AL66<>\"\",Engines!AL66,LOOKUP(Calculations!F$163,Calculations!$C$9:$I$9,Calculations!$C34:$I34))","v":0},{"$f":"IF(Engines!AM66<>\"\",Engines!AM66,LOOKUP(Calculations!G$163,Calculations!$C$9:$I$9,Calculations!$C34:$I34))","v":0},{"$f":"IF(Engines!AN66<>\"\",Engines!AN66,LOOKUP(Calculations!H$163,Calculations!$C$9:$I$9,Calculations!$C34:$I34))","v":0},{"$f":"IF(Engines!AO66<>\"\",Engines!AO66,LOOKUP(Calculations!I$163,Calculations!$C$9:$I$9,Calculations!$C34:$I34))","v":0},{"$f":"IF(Engines!AP66<>\"\",Engines!AP66,LOOKUP(Calculations!J$163,Calculations!$C$9:$I$9,Calculations!$C34:$I34))","v":0},{"$f":"IF(Engines!AQ66<>\"\",Engines!AQ66,LOOKUP(Calculations!K$163,Calculations!$C$9:$I$9,Calculations!$C34:$I34))","v":0},{"$f":"IF(Engines!AR66<>\"\",Engines!AR66,LOOKUP(Calculations!L$163,Calculations!$C$9:$I$9,Calculations!$C34:$I34))","v":0},null,"Selenium compounds",null,0,0,0,0,0,0,0,0,0,0,0,null,"Selenium compounds",null,0,0,0,0,0,0,0,0,0,0,0]
["Other HAPs",null,{"$f":"IF(Engines!AI67<>\"\",Engines!AI67,LOOKUP(Calculations!C$163,Calculations!$C$9:$I$9,Calculations!$C35:$I35))","v":6.1645600000000012E-3},{"$f":"IF(Engines!AJ67<>\"\",Engines!AJ67,LOOKUP(Calculations!D$163,Calculations!$C$9:$I$9,Calculations!$C35:$I35))","v":6.1645600000000012E-3},{"$f":"IF(Engines!AK67<>\"\",Engines!AK67,LOOKUP(Calculations!E$163,Calculations!$C$9:$I$9,Calculations!$C35:$I35))","v":6.1645600000000012E-3},{"$f":"IF(Engines!AL67<>\"\",Engines!AL67,LOOKUP(Calculations!F$163,Calculations!$C$9:$I$9,Calculations!$C35:$I35))","v":6.1645600000000012E-3},{"$f":"IF(Engines!AM67<>\"\",Engines!AM67,LOOKUP(Calculations!G$163,Calculations!$C$9:$I$9,Calculations!$C35:$I35))","v":6.1645600000000012E-3},{"$f":"IF(Engines!AN67<>\"\",Engines!AN67,LOOKUP(Calculations!H$163,Calculations!$C$9:$I$9,Calculations!$C35:$I35))","v":6.1645600000000012E-3},{"$f":"IF(Engines!AO67<>\"\",Engines!AO67,LOOKUP(Calculations!I$163,Calculations!$C$9:$I$9,Calculations!$C35:$I35))","v":6.1645600000000012E-3},{"$f":"IF(Engines!AP67<>\"\",Engines!AP67,LOOKUP(Calculations!J$163,Calculations!$C$9:$I$9,Calculations!$C35:$I35))","v":6.1645600000000012E-3},{"$f":"IF(Engines!AQ67<>\"\",Engines!AQ67,LOOKUP(Calculations!K$163,Calculations!$C$9:$I$9,Calculations!$C35:$I35))","v":6.1645600000000012E-3},{"$f":"IF(Engines!AR67<>\"\",Engines!AR67,LOOKUP(Calculations!L$163,Calculations!$C$9:$I$9,Calculations!$C35:$I35))","v":6.1645600000000012E-3},null,"Other HAPs",null,0,0,0,0,0,0,0,0,0,0,0,null,"Other HAPs",null,0,0,0,0,0,0,0,0,0,0,0]
["Total HAPs",null,{"$f":"IF(Engines!AI68<>\"\",Engines!AI68,LOOKUP(Calculations!C$163,Calculations!$C$9:$I$9,Calculations!$C36:$I36))","v":7.6514559999999995E-2},{"$f":"IF(Engines!AJ68<>\"\",Engines!AJ68,LOOKUP(Calculations!D$163,Calculations!$C$9:$I$9,Calculations!$C36:$I36))","v":7.6514559999999995E-2},{"$f":"IF(Engines!AK68<>\"\",Engines!AK68,LOOKUP(Calculations!E$163,Calculations!$C$9:$I$9,Calculations!$C36:$I36))","v":7.6514559999999995E-2},{"$f":"IF(Engines!AL68<>\"\",Engines!AL68,LOOKUP(Calculations!F$163,Calculations!$C$9:$I$9,Calculations!$C36:$I36))","v":7.6514559999999995E-2},{"$f":"IF(Engines!AM68<>\"\",Engines!AM68,LOOKUP(Calculations!G$163,Calculations!$C$9:$I$9,Calculations!$C36:$I36))","v":7.6514559999999995E-2},{"$f":"IF(Engines!AN68<>\"\",Engines!AN68,LOOKUP(Calculations!H$163,Calculations!$C$9:$I$9,Calculations!$C36:$I36))","v":7.6514559999999995E-2},{"$f":"IF(Engines!AO68<>\"\",Engines!AO68,LOOKUP(Calculations!I$163,Calculations!$C$9:$I$9,Calculations!$C36:$I36))","v":7.6514559999999995E-2},{"$f":"IF(Engines!AP68<>\"\",Engines!AP68,LOOKUP(Calculations!J$163,Calculations!$C$9:$I$9,Calculations!$C36:$I36))","v":7.6514559999999995E-2},{"$f":"IF(Engines!AQ68<>\"\",Engines!AQ68,LOOKUP(Calculations!K$163,Calculations!$C$9:$I$9,Calculations!$C36:$I36))","v":7.6514559999999995E-2},{"$f":"IF(Engines!AR68<>\"\",Engines!AR68,LOOKUP(Calculations!L$163,Calculations!$C$9:$I$9,Calculations!$C36:$I36))","v":7.6514559999999995E-2},null,"Total HAPs",null,0,0,0,0,0,0,0,0,0,0,0,null,"Total HAPs",null,0,0,0,0,0,0,0,0,0,0,0]
["Green House Gasses",null,null,null,null,null,null,null,null,null,null,null,null,"Green House Gasses",null,null,null,null,null,null,null,null,null,null,null,null,null,"Green House Gasses"]
["  Carbon Dioxide (CO2)",null,{"$f":"IF(Engines!AI70<>\"\",Engines!AI70,LOOKUP(Calculations!C$163,Calculations!$C$9:$I$9,Calculations!$C38:$I38))","v":53.06},{"$f":"IF(Engines!AJ70<>\"\",Engines!AJ70,LOOKUP(Calculations!D$163,Calculations!$C$9:$I$9,Calculations!$C38:$I38))","v":53.06},{"$f":"IF(Engines!AK70<>\"\",Engines!AK70,LOOKUP(Calculations!E$163,Calculations!$C$9:$I$9,Calculations!$C38:$I38))","v":53.06},{"$f":"IF(Engines!AL70<>\"\",Engines!AL70,LOOKUP(Calculations!F$163,Calculations!$C$9:$I$9,Calculations!$C38:$I38))","v":53.06},{"$f":"IF(Engines!AM70<>\"\",Engines!AM70,LOOKUP(Calculations!G$163,Calculations!$C$9:$I$9,Calculations!$C38:$I38))","v":53.06},{"$f":"IF(Engines!AN70<>\"\",Engines!AN70,LOOKUP(Calculations!H$163,Calculations!$C$9:$I$9,Calculations!$C38:$I38))","v":53.06},{"$f":"IF(Engines!AO70<>\"\",Engines!AO70,LOOKUP(Calculations!I$163,Calculations!$C$9:$I$9,Calculations!$C38:$I38))","v":53.06},{"$f":"IF(Engines!AP70<>\"\",Engines!AP70,LOOKUP(Calculations!J$163,Calculations!$C$9:$I$9,Calculations!$C38:$I38))","v":53.06},{"$f":"IF(Engines!AQ70<>\"\",Engines!AQ70,LOOKUP(Calculations!K$163,Calculations!$C$9:$I$9,Calculations!$C38:$I38))","v":53.06},{"$f":"IF(Engines!AR70<>\"\",Engines!AR70,LOOKUP(Calculations!L$163,Calculations!$C$9:$I$9,Calculations!$C38:$I38))","v":53.06},null,"  Carbon Dioxide (CO2)",null,{"$f":"C191*C$197*2.20462","v":0},{"$f":"D191*D$197*2.20462","v":0},0,0,0,0,0,0,0,0,{"$f":"SUM(P191:Y191)","v":0},null,"  Carbon Dioxide (CO2)",null,{"$f":"P191*C$198/2000","v":0},{"$f":"Q191*D$198/2000","v":0},{"$f":"R191*E$198/2000","v":0},{"$f":"S191*F$198/2000","v":0},{"$f":"T191*G$198/2000","v":0},{"$f":"U191*H$198/2000","v":0},{"$f":"V191*I$198/2000","v":0},{"$f":"W191*J$198/2000","v":0},{"$f":"X191*K$198/2000","v":0},{"$f":"Y191*L$198/2000","v":0},{"$f":"SUM(AD191:AM191)","v":0}]
["  Methane (CH4)",null,{"$f":"IF(Engines!AI71<>\"\",Engines!AI71,LOOKUP(Calculations!C$163,Calculations!$C$9:$I$9,Calculations!$C39:$I39))","v":1E-3},{"$f":"IF(Engines!AJ71<>\"\",Engines!AJ71,LOOKUP(Calculations!D$163,Calculations!$C$9:$I$9,Calculations!$C39:$I39))","v":1E-3},{"$f":"IF(Engines!AK71<>\"\",Engines!AK71,LOOKUP(Calculations!E$163,Calculations!$C$9:$I$9,Calculations!$C39:$I39))","v":1E-3},{"$f":"IF(Engines!AL71<>\"\",Engines!AL71,LOOKUP(Calculations!F$163,Calculations!$C$9:$I$9,Calculations!$C39:$I39))","v":1E-3},{"$f":"IF(Engines!AM71<>\"\",Engines!AM71,LOOKUP(Calculations!G$163,Calculations!$C$9:$I$9,Calculations!$C39:$I39))","v":1E-3},{"$f":"IF(Engines!AN71<>\"\",Engines!AN71,LOOKUP(Calculations!H$163,Calculations!$C$9:$I$9,Calculations!$C39:$I39))","v":1E-3},{"$f":"IF(Engines!AO71<>\"\",Engines!AO71,LOOKUP(Calculations!I$163,Calculations!$C$9:$I$9,Calculations!$C39:$I39))","v":1E-3},{"$f":"IF(Engines!AP71<>\"\",Engines!AP71,LOOKUP(Calculations!J$163,Calculations!$C$9:$I$9,Calculations!$C39:$I39))","v":1E-3},{"$f":"IF(Engines!AQ71<>\"\",Engines!AQ71,LOOKUP(Calculations!K$163,Calculations!$C$9:$I$9,Calculations!$C39:$I39))","v":1E-3},{"$f":"IF(Engines!AR71<>\"\",Engines!AR71,LOOKUP(Calculations!L$163,Calculations!$C$9:$I$9,Calculations!$C39:$I39))","v":1E-3},null,"  Methane (CH4)",null,{"$f":"C192*C$197*2.20462","v":0},{"$f":"D192*D$197*2.20462","v":0},{"$f":"E192*E$197*2.20462","v":0},{"$f":"F192*F$197*2.20462","v":0},{"$f":"G192*G$197*2.20462","v":0},{"$f":"H192*H$197*2.20462","v":0},{"$f":"I192*I$197*2.20462","v":0},{"$f":"J192*J$197*2.20462","v":0},{"$f":"K192*K$197*2.20462","v":0},{"$f":"L192*L$197*2.20462","v":0},0,null,"  Methane (CH4)",null,0,0,0,0,0,0,0,0,0,0,0]
["  Nitrous Oxide (N2O)",null,{"$f":"IF(Engines!AI72<>\"\",Engines!AI72,LOOKUP(Calculations!C$163,Calculations!$C$9:$I$9,Calculations!$C40:$I40))","v":1E-4},{"$f":"IF(Engines!AJ72<>\"\",Engines!AJ72,LOOKUP(Calculations!D$163,Calculations!$C$9:$I$9,Calculations!$C40:$I40))","v":1E-4},{"$f":"IF(Engines!AK72<>\"\",Engines!AK72,LOOKUP(Calculations!E$163,Calculations!$C$9:$I$9,Calculations!$C40:$I40))","v":1E-4},{"$f":"IF(Engines!AL72<>\"\",Engines!AL72,LOOKUP(Calculations!F$163,Calculations!$C$9:$I$9,Calculations!$C40:$I40))","v":1E-4},{"$f":"IF(Engines!AM72<>\"\",Engines!AM72,LOOKUP(Calculations!G$163,Calculations!$C$9:$I$9,Calculations!$C40:$I40))","v":1E-4},{"$f":"IF(Engines!AN72<>\"\",Engines!AN72,LOOKUP(Calculations!H$163,Calculations!$C$9:$I$9,Calculations!$C40:$I40))","v":1E-4},{"$f":"IF(Engines!AO72<>\"\",Engines!AO72,LOOKUP(Calculations!I$163,Calculations!$C$9:$I$9,Calculations!$C40:$I40))","v":1E-4},{"$f":"IF(Engines!AP72<>\"\",Engines!AP72,LOOKUP(Calculations!J$163,Calculations!$C$9:$I$9,Calculations!$C40:$I40))","v":1E-4},{"$f":"IF(Engines!AQ72<>\"\",Engines!AQ72,LOOKUP(Calculations!K$163,Calculations!$C$9:$I$9,Calculations!$C40:$I40))","v":1E-4},{"$f":"IF(Engines!AR72<>\"\",Engines!AR72,LOOKUP(Calculations!L$163,Calculations!$C$9:$I$9,Calculations!$C40:$I40))","v":1E-4},null,"  Nitrous Oxide (N2O)",null,0,0,0,0,0,0,0,0,0,0,0,null,"  Nitrous Oxide (N2O)",null,0,0,0,0,0,0,0,0,0,0,0]
[]
["Engine Rating (hp)",null,{"$f":"Engines!N29","v":0},{"$f":"Engines!N30","v":0},{"$f":"Engines!N31","v":0},{"$f":"Engines!N32","v":0},{"$f":"Engines!N33","v":0},{"$f":"Engines!N34","v":0},{"$f":"Engines!N35","v":0},{"$f":"Engines!N36","v":0},{"$f":"Engines!N37","v":0},{"$f":"Engines!N38","v":0}]
[{"$f":"Engines!O28","v":"Fuel Use Factor (Btu/hp-hr)"},null,{"$f":"Engines!O29","v":0},{"$f":"Engines!O30","v":0},{"$f":"Engines!O31","v":0},{"$f":"Engines!O32","v":0},{"$f":"Engines!O33","v":0},{"$f":"Engines!O34","v":0},{"$f":"Engines!O35","v":0},{"$f":"Engines!O36","v":0},{"$f":"Engines!O37","v":0},{"$f":"Engines!O38","v":0}]
["Engine Heat Input (MMBtu/hr)",null,{"$f":"C195*C196/1000000","v":0},{"$f":"D195*D196/1000000","v":0},{"$f":"E195*E196/1000000","v":0},{"$f":"F195*F196/1000000","v":0},{"$f":"G195*G196/1000000","v":0},{"$f":"H195*H196/1000000","v":0},{"$f":"I195*I196/1000000","v":0},{"$f":"J195*J196/1000000","v":0},{"$f":"K195*K196/1000000","v":0},{"$f":"L195*L196/1000000","v":0}]
["Operating Hours",null,{"$f":"Engines!S29","v":8760},{"$f":"Engines!S30","v":8760},{"$f":"Engines!S31","v":8760},{"$f":"Engines!S32","v":8760},{"$f":"Engines!S33","v":8760},{"$f":"Engines!S34","v":8760},{"$f":"Engines!S35","v":8760},{"$f":"Engines!S36","v":8760},{"$f":"Engines!S37","v":8760},{"$f":"Engines!S38","v":8760}]
[]
[]
[]
[null,"Compression Engine",null,"Spark Ignition Engine",null,"Total",null,null,"Compression Engine",null,"Spark Ignition Engine",null,"Total"]
[null,"lb/hr","ton/yr","lb/hr","ton/yr","lb/hr","ton/yr",null,"lb/hr","ton/yr","lb/hr","ton/yr","lb/hr","ton/yr"]
["  PMfilterable",{"$f":"Z46","v":0},{"$f":"AN46","v":0},{"$f":"Z85","v":0},{"$f":"AN85","v":0},{"$f":"B204+D204","v":0},{"$f":"C204+E204","v":0},null,{"$f":"Z125","v":0},{"$f":"AN125","v":0},{"$f":"Z164","v":0},{"$f":"AN164","v":0},{"$f":"I204+K204","v":0},{"$f":"J204+L204","v":0}]
["  PM10",{"$f":"Z47","v":0},{"$f":"AN47","v":0},0,{"$f":"AN86","v":0},{"$f":"B205+D205","v":0},{"$f":"C205+E205","v":0},null,0,{"$f":"AN126","v":0},{"$f":"Z165","v":0},{"$f":"AN165","v":0},{"$f":"I205+K205","v":0},{"$f":"J205+L205","v":0}]
["  PM2.5",0,0,0,0,0,0,null,0,0,0,0,0,0]
["  SO2",0,0,0,0,0,0,null,0,0,0,0,0,0]
["  NOx",0,0,0,0,0,0,null,0,0,0,0,0,0]
["  CO",0,0,0,0,0,0,null,0,0,0,0,0,0]
["  VOC",0,0,0,0,0,0,null,0,0,0,0,0,0]
["  Hydrogen Sulfide "]
["  Sulfuric Acid"]
["  Fluorides "]
["Individual HAP"]
["  Acetaldehyde",{"$f":"Z54","v":0},{"$f":"AN54","v":0},{"$f":"Z93","v":0},{"$f":"AN93","v":0},0,0,null,{"$f":"Z133","v":0},{"$f":"AN133","v":0},{"$f":"Z172","v":0},{"$f":"AN172","v":0},{"$f":"I215+K215","v":0},{"$f":"J215+L215","v":0}]
["  Acrolein",0,{"$f":"AN55","v":0},0,{"$f":"AN94","v":0},0,0,null,{"$f":"Z134","v":0},{"$f":"AN134","v":0},{"$f":"Z173","v":0},{"$f":"AN173","v":0},0,0]
["  Arsenic compounds",0,0,0,0,0,0,null,0,0,0,0,0,0]
["  Benzene",0,0,0,0,0,0,null,0,0,0,0,0,0]
["  Benzyl chloride",0,0,0,0,0,0,null,0,0,0,0,0,0]
["  Beryllium compounds",0,0,0,0,0,0,null,0,0,0,0,0,0]
["  Cadmium compounds",0,0,0,0,0,0,null,0,0,0,0,0,0]
["  Cyanide compounds",0,0,0,0,0,0,null,0,0,0,0,0,0]
["  Formaldehyde",0,0,0,0,0,0,null,0,0,0,0,0,0]
["  Hexane",0,0,0,0,0,0,null,0,0,0,0,0,0]
["  Hydrochloric acid",0,0,0,0,0,0,null,0,0,0,0,0,0]
["  Lead Compounds",0,0,0,0,0,0,null,0,0,0,0,0,0]
["  Mercury compounds",0,0,0,0,0,0,null,0,0,0,0,0,0]
["  Methanol",0,0,0,0,0,0,null,0,0,0,0,0,0]
["  Methyl hydrazine",0,0,0,0,0,0,null,0,0,0,0,0,0]
["  Selenium compounds",0,0,0,0,0,0,null,0,0,0,0,0,0]
["Other HAPs",0,0,0,0,0,0,null,0,0,0,0,0,0]
["TOTAL HAP",0,0,0,0,0,0,null,0,0,0,0,0,0]
["Greenhouse Gases (GHG) (Mass Basis)"]
["  Carbon Dioxide ",{"$f":"Z73","v":0},0,{"$f":"Z112","v":0},0,0,0,null,0,0,{"$f":"Z191","v":0},{"$f":"AN191","v":0},{"$f":"I234+K234","v":0},{"$f":"J234+L234","v":0}]
["  Methane",{"$f":"Z74","v":0},0,{"$f":"Z113","v":0},0,0,0,null,0,0,0,0,0,0]
["  Nitrous Oxide",{"$f":"Z75","v":0},0,{"$f":"Z114","v":0},0,0,0,null,0,0,0,0,0,0]
["Total GHGs ",{"$f":"SUM(B234:B236)","v":0},{"$f":"SUM(C234:C236)","v":0},{"$f":"SUM(D234:D236)","v":0},0,0,0,null,{"$f":"SUM(I234:I236)","v":0},{"$f":"SUM(J234:J236)","v":0},{"$f":"SUM(K234:K236)","v":0},{"$f":"SUM(L234:L236)","v":0},0,0]
["Greenhouse Gases (GHG) (CO2 Equivalent Basis)"]
["  Carbon Dioxide ",{"$f":"B234","v":0},{"$f":"C234","v":0},{"$f":"D234","v":0},0,0,0,null,{"$f":"I234","v":0},{"$f":"J234","v":0},{"$f":"K234","v":0},{"$f":"L234","v":0},{"$f":"I239+K239","v":0},{"$f":"J239+L239","v":0}]
["  Methane",{"$f":"B235*25","v":0},{"$f":"C235*25","v":0},{"$f":"D235*25","v":0},{"$f":"E235*25","v":0},0,0,null,{"$f":"I235*25","v":0},{"$f":"J235*25","v":0},{"$f":"K235*25","v":0},{"$f":"L235*25","v":0},0,0]
["  Nitrous Oxide",{"$f":"B236*298","v":0},{"$f":"C236*298","v":0},{"$f":"D236*298","v":0},0,0,0,null,{"$f":"I236*298","v":0},{"$f":"J236*298","v":0},{"$f":"K236*298","v":0},{"$f":"L236*298","v":0},0,0]
["Total GHGs ",{"$f":"SUM(B239:B241)","v":0},{"$f":"SUM(C239:C241)","v":0},{"$f":"SUM(D239:D241)","v":0},0,0,0,null,{"$f":"SUM(I239:I241)","v":0},{"$f":"SUM(J239:J241)","v":0},{"$f":"SUM(K239:K241)","v":0},{"$f":"SUM(L239:L241)","v":0},0,0]
[]
[]
[]
[]
[]
[]
[]
[]
[]
[]
[]
[]
[]
[]
[]
[]
[]
[]
[]
[]
[]
[]
[]
[]
[]
[]
[]
[]
[]
[]
[]
[]
[]
[]
[]
[]
[]
[]
[]
[]
[]
[]
[]
[]
[]
[]
[]
[]
[]
[]
[]
[]
[]
[]
[]
[]
[]
[]
[]
[]
[]
[]
[]
[]
[]
[]
[]
[]
[]
[]
[]
[]
[]
[]
[]
[]
[]
[]
[]
[]
[]
[]
[]
[]
[]
[]
[]
[]
[]
[]
[]
[]
[]
[]
[]
[]
[]
[]
[]
[]
[]
[]
[]
[]
[]
[]
[]
[]
[]
[]
[]
[]
[]
[]
[]
[]
[]
[null,{"$f":"Z202","v":0},{"$f":"AG202","v":0}]
[null,0,0]
[null,0,0]
[null,0,0]
[null,0,0]
[null,0,0]
[null,0,0]
[]
[]
[]
[]
[null,{"$f":"Z210","v":0},{"$f":"AG210","v":0}]
[null,0,0]
[null,0,0]
[null,0,0]
[null,0,0]
[null,0,0]
[null,0,0]
[null,0,0]
[null,0,0]
[null,0,0]
[null,0,0]
[null,0,0]
[null,0,0]
[null,0,0]
[null,0,0]
[null,0,0]
[null,0,0]
[null,0,0]
[]
[null,{"$f":"Z229","v":0},{"$f":"AG229","v":0}]
[null,0,0]
[null,0,0]
[null,{"$f":"SUM(B390:B392)","v":0},0]
[]
[null,{"$f":"B390","v":0},0]
[null,{"$f":"B391*25","v":0},0]
[null,{"$f":"B392*298","v":0},0]
[null,{"$f":"SUM(B395:B397)","v":0},0]
[null,{"$f":"Z241","v":0},{"$f":"AG241","v":0}]
[null,0,0]
[null,0,0]
[null,0,0]
[null,0,0]
[null,0,0]
[null,0,0]
[]
[]
[]
[]
[null,{"$f":"Z249","v":0},{"$f":"AG249","v":0}]
[null,0,0]
[null,0,0]
[null,0,0]
[null,0,0]
[null,0,0]
[null,0,0]
[null,0,0]
[null,0,0]
[null,0,0]
[null,0,0]
[null,0,0]
[null,0,0]
[null,0,0]
[null,0,0]
[null,0,0]
[null,0,0]
[null,0,0]
[]
[null,{"$f":"Z268","v":0},{"$f":"AG268","v":0}]
[null,0,0]
[null,0,0]
[null,{"$f":"SUM(B429:B431)","v":0},0]
[]
[null,{"$f":"B429","v":0},0]

{"sheet":"Datasets","index":3,"n_rows":22,"n_cols":44,"rows_kept":22,"cut":false,"hidden":true,"merged":[]}
["Unit Type","% Straight to Hopper","Control type","Yes/NO","Choice","Permit Type","Construction Permit","Raw Material","Enclosure","Material Transfer","Pile Control","Dryer Type","Fermentation Control","Type of solids","Enclosure","Type of Loadout","Loading Type","Tank Content","Tank Orientation","Tank Location","Type of Tank","Type of Primary Seal","Shell Condition","Number of columns","Default Control Equipment","Controlled Units","Boiler Types","NSPS","Fermenter/beerwell","Fermentation Type","Control Type","Control Type","Storage Control type","Ave. Truck Capacity","Input Road Type","Fuel Type","Engine Configuration","Type of Secondary Seal","Internal Shell Conditions","External Shell Color","External Shell Condition","Deck Type","Deck Fitting Category","Results Summary"]
["Truck","0:100","None/Uncontrolled","YES","X","Construction Permit","New Construction","Corn","Enclosed","Front-End Loader","Covered","column dryer","Vent Scrubber","DDGS","Enclosed","Truck","None","Ethanol","Vertical","Above Ground","Fixed Roof","Mechanical Shoe","Light Rust","Self Support",0.95,"Dump Pits","Uncontrolled","Pre-NSPS","Fermenter","Batch Fermentation","None/Uncontrolled","None/Uncontrolled","None/Uncontrolled","ton","Unpaved Low Silt","Natural Gas","2-STROKE LEAN-BURN","Shoe Mounted ","Light Rust","White","Good","Bolted","Typical ","Current PTE, (lb/hr)"]
["Rail Car","10:90","Baghouse","NO",null,"Operating Permit","Existing Plant","Milo","Partially Enclosed","Conveyor","Covered & Supressant","rack dryer","CO2 Scubber","WDGS","Partially Enclosed","Rail Car","Submerged Loading","Denaturant","Horizontal","Under Ground","External Floating Roof","Liquid Mounted","Dense Rust",1,0.99,"Grain Handling","Low Nox burners","Post-NSPS","Beerwell","Continous Fermentation","Scrubber","RTO","Baghouse","gal","Unpaved Medium Silt","Gasoline","4-STROKE LEAN-BURN","Rim Mounted","Dense Rust","Aluminum/ Specular","Poor","Welded","Detail","Current PTE, (ton/yr)"]
[null,"20:80",null,null,null,null,null,"Cellulose","Choke-flow","Dump Truck","None","self‐cleaning screens","No Control",null,"Other","Both","Bottom-Fill Loading","Denatured Ethanol",null,null,"Internal Floating Roof","Vapor Mounted","Gunite Lining",2,null,"Receiving & Handling","Flue Gas recirculation",null,null,null,null,null,"Oiler",null,"Unpaved High Silt","Dual Fuel (95% NG + Diesel","4-STROKE RICH-BURN",null,"Gunite Lining","Aluminum/ Diffuse",null,null,null,"PTE after the project, (lb/hr)"]
[null,"30:70",null,null,null,null,null,"Other","Other","Loadout Spout",null,"other",null,null,null,null,null,"Corrosion Inhibitor",null,null,null,null,null,3,null,null,null,null,null,null,null,null,null,null,"Paved Low Silt",null,null,null,null,"Gray/ Light",null,null,null,"PTE after the project, (ton/yr)"]
[null,"40:60",null,null,null,null,null,null,null,"Other",null,null,null,null,null,null,null,"Hydrochloric Acid",null,null,null,null,null,4,null,null,null,null,null,null,null,null,null,null,"Paved Medium Silt",null,null,null,null,"Gray/ Medium",null,null,null,"Project PTE, (lb/hr)"]
[null,"50:50",null,null,null,null,null,null,null,null,null,null,null,null,null,null,null,null,null,null,null,null,null,5,null,null,null,null,null,null,null,null,null,null,"Paved High Silt",null,null,null,null,"Red/ Prime",null,null,null,"Project PTE, (ton/yr)"]
[null,"60:40",null,null,null,null,null,null,null,null,null,null,null,null,null,null,null,null,null,null,null,null,null,6]
[null,"70:30",null,null,null,null,null,null,null,null,null,null,null,null,null,null,null,null,null,null,null,null,null,7,null,null,null,null,null,null,null,null,null,null,null,null,null,null,null,null,null,null,null,"Current Fugitive PTE, (lb/hr)"]
[null,"80:20",null,null,null,null,null,null,null,null,null,null,null,null,null,null,null,null,null,null,null,null,null,8,null,null,null,null,null,null,null,null,null,null,null,null,null,null,null,null,null,null,null,"Current Fugitive PTE, (ton/yr)"]
[null,"90:10",null,null,null,null,null,null,null,null,null,null,null,null,null,null,null,null,null,null,null,null,null,9,null,null,null,null,null,null,null,null,null,null,null,null,null,null,null,null,null,null,null,"Fugitive PTE after the Project, (lb/hr)"]
[null,"100:10",null,null,null,null,null,null,null,null,null,null,null,null,null,null,null,null,null,null,null,null,null,10,null,null,null,null,null,null,null,null,null,null,null,null,null,null,null,null,null,null,null,"Fugitive PTE after the Project, (ton/yr)"]
[null,null,null,null,null,null,null,null,null,null,null,null,null,null,null,null,null,null,null,null,null,null,null,11,null,null,null,null,null,null,null,null,null,null,null,null,null,null,null,null,null,null,null,"Project Fugitive PTE, (lb/hr)"]
[null,null,null,null,null,null,null,null,null,null,null,null,null,null,null,null,null,null,null,null,null,null,null,12,null,null,null,null,null,null,null,null,null,null,null,null,null,null,null,null,null,null,null,"Project Fugitive PTE, (ton/yr)"]
[null,null,null,null,null,null,null,null,null,null,null,null,null,null,null,null,null,null,null,null,null,null,null,13]
[null,null,null,null,null,null,null,null,null,null,null,null,null,null,null,null,null,null,null,null,null,null,null,14]
[null,null,null,null,null,null,null,null,null,null,null,null,null,null,null,null,null,null,null,null,null,null,null,15]
[null,null,null,null,null,null,null,null,null,null,null,null,null,null,null,null,null,null,null,null,null,null,null,16]
[null,null,null,null,null,null,null,null,null,null,null,null,null,null,null,null,null,null,null,null,null,null,null,17]
[null,null,null,null,null,null,null,null,null,null,null,null,null,null,null,null,null,null,null,null,null,null,null,18]
[null,null,null,null,null,null,null,null,null,null,null,null,null,null,null,null,null,null,null,null,null,null,null,19]
[null,null,null,null,null,null,null,null,null,null,null,null,null,null,null,null,null,null,null,null,null,null,null,20]